Workbook

Sheet Öğr.Gör. Ön Değ.
A1: T.C.
A2: BAYBURT ÜNİVERSİTESİ
A3: ÖĞRETİM ELEMANI ÖN DEĞERLENDİRME TUTANAĞI
A4: Üniversitemize bağlı birimlere, 2547 sayılı Kanunun ilgili maddeleri ve 09.11.2018 tarihli ve 30590 sayılı Resmi Gazetede yayımlanan "Öğretim Üyesi Dışındaki Öğretim Elemanı Kadrolarına Yapılacak Atamalarda Uygulanacak Merkezi Sınav İle Giriş Sınavlarına İlişkin Usul ve Esaslar Hakkında Yönetmelik” 10. Maddesi Uyarınca Lisans ve Ön Lisans Düzeyindeki Eğitim Veren Yerlere Alınacak Akademik Personele Ait Ön Değerlendirme Sonuç Tutanağı
A5: İlan No: | E5: Birimi: | I5: ….. Fakültesi / Rektörlük
A6: İlan Tarihi: | C6: …/.../.... | E6: Bölümü: | I6: ….. Bölümü / Başkanlığı / Ofisi / Merkezi
A7: Kadro Unvanı: | C7: Öğretim Görevlisi (Uygulamalı Birim) / (Lisans/Ders Verecek-Zorunlu Ortak Ders) | E7: Anabilim Dalı/Alanı: | I7: ….. Anabilim Dalı
A8: Kadro Adedi: | E8: Öndeğerlendirme Tarihi: | I8: …/.../....
A9: İlan Özel Şartı:
A10: SINAVIN YAPILACAĞI YER, TARİH ve SAAT : | E10: ……... ../…/…. Günü Saat: …:….
A11: Sıra No | B11: Başvuranın | E11: Başvuru Şartı | H11: İlan Şartına Uygunluğu (Tecrübe / Nitelikler) | I11: Ön Sıralama Değerlendirme Sonuçları
B12: T.C. Kimlik No | C12: Adı | D12: Soyadı | E12: Alanındaki Ales Puanı | F12: Yabancı Dil Puanı | G12: Tezli Yüksek Lisans Belgesi | I12: ALES (%60) | J12: Yabancı Dil Puanı (%40) | K12: Toplam Puan | L12: Ön Değerlendirme Sonucu
A13: 1 | B13: 11111111111 | C13: Örnek | D13: Örnek | E13: 81.50555 | F13: 81.56 | G13: Mevcut | H13: Uygun | I13: =E13*0.6 -> 48.90333 | J13: =F13*0.4 -> 32.624 | K13: =I13+J13 -> 81.52733 | L13: Sınava Girebilir
A14: 2 | B14: 11111111111 | C14: Örnek Örnek | D14: Örnek | E14: 80.60743 | F14: 82.03 | G14: Mevcut | H14: Uygun | I14: 48.364458 | J14: 32.812 | K14: 81.176458 | L14: Sınava Girebilir
A15: 3 | B15: 11111111111 | C15: Örnek | D15: Örnek Örnek | E15: 79.27563 | F15: 82.53 | G15: Mevcut | H15: Uygun | I15: 47.565378 | J15: 33.012 | K15: 80.577378 | L15: Sınava Girebilir
A16: 4 | B16: 11111111111 | C16: Örnek Örnek | D16: Örnek Örnek | E16: 78.11375 | F16: 81.56 | G16: Mevcut | H16: Uygun | I16: 46.86825 | J16: 32.624 | K16: 79.49225 | L16: Sınava Girebilir
A17: 5 | B17: 11111111111 | C17: Örnek | D17: Örnek | E17: 77.50555 | F17: 80.56 | G17: Mevcut | H17: Uygun | I17: 46.50333 | J17: 32.224 | K17: 78.72733 | L17: Sınava Girebilir
A18: 6 | B18: 11111111111 | C18: Örnek | D18: Örnek | E18: 76.60743 | F18: 79.03 | G18: Mevcut | H18: Uygun | I18: 45.964458 | J18: 31.612 | K18: 77.576458 | L18: Sınava Girebilir
A19: 7 | B19: 11111111111 | C19: Örnek | D19: Örnek | E19: 75.27563 | F19: 78.53 | G19: Mevcut | H19: Uygun | I19: 45.165378 | J19: 31.412 | K19: 76.577378 | L19: Sınava Girebilir
A20: 8 | B20: 11111111111 | C20: Örnek | D20: Örnek | E20: 74.11375 | F20: 77.56 | G20: Mevcut | H20: Uygun | I20: 44.46825 | J20: 31.024 | K20: 75.49225 | L20: Sınava Girebilir
A21: 9 | B21: 11111111111 | C21: Örnek | D21: Örnek | E21: 73.50555 | F21: 76.56 | G21: Mevcut | H21: Uygun | I21: 44.10333 | J21: 30.624 | K21: 74.72733 | L21: Sınava Girebilir
A22: 10 | B22: 11111111111 | C22: Örnek | D22: Örnek | E22: 72.60743 | F22: 75.03 | G22: Mevcut | H22: Uygun | I22: 43.564458 | J22: 30.012 | K22: 73.576458 | L22: Sınava Girebilir
A23: 11 | B23: 11111111111 | C23: Örnek | D23: Örnek | E23: 71.27563 | F23: 74.53 | G23: Mevcut | H23: Uygun | I23: 42.765378 | J23: 29.812 | K23: 72.577378 | L23: Yönetmelik Gereği Elendi *
A24: 12 | B24: 11111111111 | C24: Örnek | D24: Örnek | E24: 70.11375 | F24: 73.56 | G24: Mevcut | H24: Uygun | I24: 42.06825 | J24: 29.424 | K24: 71.49225 | L24: Yönetmelik Gereği Elendi *
A25: 13 | B25: 11111111111 | C25: Örnek | D25: Örnek | E25: 70.50555 | F25: 72.56 | G25: Mevcut | H25: Uygun | I25: 42.30333 | J25: 29.024 | K25: 71.32733 | L25: Yönetmelik Gereği Elendi *
A26: 14 | B26: 11111111111 | C26: Örnek | D26: Örnek | E26: 70.60743 | F26: 72.03 | G26: Mevcut | H26: Uygun Değil | I26: 42.364458 | J26: 28.812 | K26: 71.176458 | L26: Başvuru Şartını Sağlamıyor (Tecrübe süresi ilan şartını taşımıyor)
A27: 15 | B27: 11111111111 | C27: Örnek | D27: Örnek | E27: 70.27563 | F27: 71.53 | G27: Mevcut Değil | H27: Uygun Değil | I27: 42.165378 | J27: 28.612 | K27: 70.777378 | L27: Başvuru Şartını Sağlamıyor (Tezli Yüksek Şartını Sağlamıyor)
A28: 16 | B28: 11111111111 | C28: Örnek | D28: Örnek | E28: 68 | F28: 95 | G28: Mevcut | H28: Uygun Değil | I28: 40.8 | J28: 38 | K28: 78.8 | L28: Başvuru Şartını Sağlamıyor (Ales puanı yetersiz)
A29: 17 | B29: 11111111111 | C29: Örnek | D29: Örnek | E29: 80 | F29: 75 | G29: Mevcut | H29: Uygun Değil | I29: 48 | J29: 30 | K29: 78 | L29: Başvuru Şartını Sağlamıyor (Lisans Mezuniyet alanı ilanla uyumlu değil)
A30: 18 | B30: 11111111111 | C30: Örnek | D30: Örnek | E30: 80 | F30: 45 | G30: Mevcut | H30: Uygun Değil | I30: 48 | J30: 18 | K30: 66 | L30: Başvuru Şartını Sağlamıyor (Yabancı Dil Puanı Yetersiz)

Sheet Ön Değ. Rapor
A1: T.C.
A2: BAYBURT ÜNİVERSİTESİ
A3: ÖĞRETİM ELEMANI ÖN DEĞERLENDİRME TUTANAĞI
A4: Üniversitemize bağlı birimlere, 2547 sayılı Kanunun ilgili maddeleri ve 09.11.2018 tarihli ve 30590 sayılı Resmi Gazetede yayımlanan "Öğretim Üyesi Dışındaki Öğretim Elemanı Kadrolarına Yapılacak Atamalarda Uygulanacak Merkezi Sınav İle Giriş Sınavlarına İlişkin Usul ve Esaslar Hakkında Yönetmelik” 10. Maddesi Uyarınca Lisans ve Ön Lisans Düzeyindeki Eğitim Veren Yerlere Alınacak Akademik Personele Ait Ön Değerlendirme Sonuç Tutanağı
A5: İlan No: | C5: =IF('Öğr.Gör. Ön Değ.'!C5="","",'Öğr.Gör. Ön Değ.'!C5) ->  | E5: Birimi: | I5: =IF('Öğr.Gör. Ön Değ.'!I5="","",'Öğr.Gör. Ön Değ.'!I5) -> ….. Fakültesi / Rektörlük
A6: İlan Tarihi: | C6: =IF('Öğr.Gör. Ön Değ.'!C6="","",'Öğr.Gör. Ön Değ.'!C6) -> …/.../.... | E6: Bölümü: | I6: =IF('Öğr.Gör. Ön Değ.'!I6="","",'Öğr.Gör. Ön Değ.'!I6) -> ….. Bölümü / Başkanlığı / Ofisi / Merkezi
A7: Kadro Unvanı: | C7: =IF('Öğr.Gör. Ön Değ.'!C7="","",'Öğr.Gör. Ön Değ.'!C7) -> Öğretim Görevlisi (Uygulamalı Birim) / (Lisans/Ders Verecek-Zorunlu Ortak Ders) | E7: Anabilim Dalı/Alanı: | I7: =IF('Öğr.Gör. Ön Değ.'!I7="","",'Öğr.Gör. Ön Değ.'!I7) -> ….. Anabilim Dalı
A8: Kadro Adedi: | C8: =IF('Öğr.Gör. Ön Değ.'!C8="","",'Öğr.Gör. Ön Değ.'!C8) ->  | E8: Öndeğerlendirme Tarihi: | I8: =IF('Öğr.Gör. Ön Değ.'!I8="","",'Öğr.Gör. Ön Değ.'!I8) -> …/.../....
A9: İlan Özel Şartı: | C9: =IF('Öğr.Gör. Ön Değ.'!C9="","",'Öğr.Gör. Ön Değ.'!C9) -> 
A10: SINAVIN YAPILACAĞI YER, TARİH ve SAAT : | E10: =IF('Öğr.Gör. Ön Değ.'!E10="","",'Öğr.Gör. Ön Değ.'!E10) -> ……... ../…/…. Günü Saat: …:….
A11: Sıra No | B11: Başvuranın | E11: Başvuru Şartı | H11: İlan Şartına Uygunluğu (Tecrübe / Nitelikler) | I11: Ön Sıralama Değerlendirme Sonuçları
B12: T.C. Kimlik No | C12: Adı | D12: Soyadı | E12: Alanındaki Ales Puanı | F12: Yabancı Dil Puanı | G12: Tezli Yüksek Lisans Belgesi | I12: ALES (%60) | J12: Yabancı Dil Puanı (%40) | K12: Toplam Puan | L12: Ön Değerlendirme Sonucu
A13: =IF('Öğr.Gör. Ön Değ.'!A13="","",'Öğr.Gör. Ön Değ.'!A13) -> 1 | B13: =IF('Öğr.Gör. Ön Değ.'!B13="","",LEFT('Öğr.Gör. Ön Değ.'!B13,3)&REPT("*",4)&RIGHT('Öğr.Gör. Ön Değ.'!B13,2)) -> 111****11 | C13: =IF('Öğr.Gör. Ön Değ.'!C13="","",IF(ISERR(FIND(" ",'Öğr.Gör. Ön Değ.'!C13))=TRUE,LEFT('Öğr.Gör. Ön Değ.'!C13,2)&REPT("*",3),LEFT('Öğr.Gör. Ön Değ.'!C13,2)&REPT("*",3)&" "&MID('Öğr.Gör. Ön Değ.'!C13,FIND(" ",'Öğr.Gör. Ön Değ.'!C13)+1,2)&REPT("*",3))) -> Ör*** | D13: =IF('Öğr.Gör. Ön Değ.'!D13="","",IF(ISERR(FIND(" ",'Öğr.Gör. Ön Değ.'!D13))=TRUE,LEFT('Öğr.Gör. Ön Değ.'!D13,2)&REPT("*",3),LEFT('Öğr.Gör. Ön Değ.'!D13,2)&REPT("*",3)&" "&MID('Öğr.Gör. Ön Değ.'!D13,FIND(" ",'Öğr.Gör. Ön Değ.'!D13)+1,2)&REPT("*",3))) -> Ör*** | E13: =IF('Öğr.Gör. Ön Değ.'!E13="","",'Öğr.Gör. Ön Değ.'!E13) -> 81.50555 | F13: =IF('Öğr.Gör. Ön Değ.'!F13="","",'Öğr.Gör. Ön Değ.'!F13) -> 81.56 | G13: =IF('Öğr.Gör. Ön Değ.'!G13="","",'Öğr.Gör. Ön Değ.'!G13) -> Mevcut | H13: =IF('Öğr.Gör. Ön Değ.'!H13="","",'Öğr.Gör. Ön Değ.'!H13) -> Uygun | I13: =IF('Öğr.Gör. Ön Değ.'!I13="","",'Öğr.Gör. Ön Değ.'!I13) -> 48.90333 | J13: =IF('Öğr.Gör. Ön Değ.'!J13="","",'Öğr.Gör. Ön Değ.'!J13) -> 32.624 | K13: =IF('Öğr.Gör. Ön Değ.'!K13="","",'Öğr.Gör. Ön Değ.'!K13) -> 81.52733 | L13: =IF('Öğr.Gör. Ön Değ.'!L13="","",'Öğr.Gör. Ön Değ.'!L13) -> Sınava Girebilir
A14: =IF('Öğr.Gör. Ön Değ.'!A14="","",'Öğr.Gör. Ön Değ.'!A14) -> 2 | B14: =IF('Öğr.Gör. Ön Değ.'!B14="","",LEFT('Öğr.Gör. Ön Değ.'!B14,3)&REPT("*",4)&RIGHT('Öğr.Gör. Ön Değ.'!B14,2)) -> 111****11 | C14: =IF('Öğr.Gör. Ön Değ.'!C14="","",IF(ISERR(FIND(" ",'Öğr.Gör. Ön Değ.'!C14))=TRUE,LEFT('Öğr.Gör. Ön Değ.'!C14,2)&REPT("*",3),LEFT('Öğr.Gör. Ön Değ.'!C14,2)&REPT("*",3)&" "&MID('Öğr.Gör. Ön Değ.'!C14,FIND(" ",'Öğr.Gör. Ön Değ.'!C14)+1,2)&REPT("*",3))) -> Ör*** Ör*** | D14: =IF('Öğr.Gör. Ön Değ.'!D14="","",IF(ISERR(FIND(" ",'Öğr.Gör. Ön Değ.'!D14))=TRUE,LEFT('Öğr.Gör. Ön Değ.'!D14,2)&REPT("*",3),LEFT('Öğr.Gör. Ön Değ.'!D14,2)&REPT("*",3)&" "&MID('Öğr.Gör. Ön Değ.'!D14,FIND(" ",'Öğr.Gör. Ön Değ.'!D14)+1,2)&REPT("*",3))) -> Ör*** | E14: =IF('Öğr.Gör. Ön Değ.'!E14="","",'Öğr.Gör. Ön Değ.'!E14) -> 80.60743 | F14: =IF('Öğr.Gör. Ön Değ.'!F14="","",'Öğr.Gör. Ön Değ.'!F14) -> 82.03 | G14: =IF('Öğr.Gör. Ön Değ.'!G14="","",'Öğr.Gör. Ön Değ.'!G14) -> Mevcut | H14: =IF('Öğr.Gör. Ön Değ.'!H14="","",'Öğr.Gör. Ön Değ.'!H14) -> Uygun | I14: =IF('Öğr.Gör. Ön Değ.'!I14="","",'Öğr.Gör. Ön Değ.'!I14) -> 48.364458 | J14: =IF('Öğr.Gör. Ön Değ.'!J14="","",'Öğr.Gör. Ön Değ.'!J14) -> 32.812 | K14: =IF('Öğr.Gör. Ön Değ.'!K14="","",'Öğr.Gör. Ön Değ.'!K14) -> 81.176458 | L14: =IF('Öğr.Gör. Ön Değ.'!L14="","",'Öğr.Gör. Ön Değ.'!L14) -> Sınava Girebilir
A15: =IF('Öğr.Gör. Ön Değ.'!A15="","",'Öğr.Gör. Ön Değ.'!A15) -> 3 | B15: =IF('Öğr.Gör. Ön Değ.'!B15="","",LEFT('Öğr.Gör. Ön Değ.'!B15,3)&REPT("*",4)&RIGHT('Öğr.Gör. Ön Değ.'!B15,2)) -> 111****11 | C15: =IF('Öğr.Gör. Ön Değ.'!C15="","",IF(ISERR(FIND(" ",'Öğr.Gör. Ön Değ.'!C15))=TRUE,LEFT('Öğr.Gör. Ön Değ.'!C15,2)&REPT("*",3),LEFT('Öğr.Gör. Ön Değ.'!C15,2)&REPT("*",3)&" "&MID('Öğr.Gör. Ön Değ.'!C15,FIND(" ",'Öğr.Gör. Ön Değ.'!C15)+1,2)&REPT("*",3))) -> Ör*** | D15: =IF('Öğr.Gör. Ön Değ.'!D15="","",IF(ISERR(FIND(" ",'Öğr.Gör. Ön Değ.'!D15))=TRUE,LEFT('Öğr.Gör. Ön Değ.'!D15,2)&REPT("*",3),LEFT('Öğr.Gör. Ön Değ.'!D15,2)&REPT("*",3)&" "&MID('Öğr.Gör. Ön Değ.'!D15,FIND(" ",'Öğr.Gör. Ön Değ.'!D15)+1,2)&REPT("*",3))) -> Ör*** Ör*** | E15: =IF('Öğr.Gör. Ön Değ.'!E15="","",'Öğr.Gör. Ön Değ.'!E15) -> 79.27563 | F15: =IF('Öğr.Gör. Ön Değ.'!F15="","",'Öğr.Gör. Ön Değ.'!F15) -> 82.53 | G15: =IF('Öğr.Gör. Ön Değ.'!G15="","",'Öğr.Gör. Ön Değ.'!G15) -> Mevcut | H15: =IF('Öğr.Gör. Ön Değ.'!H15="","",'Öğr.Gör. Ön Değ.'!H15) -> Uygun | I15: =IF('Öğr.Gör. Ön Değ.'!I15="","",'Öğr.Gör. Ön Değ.'!I15) -> 47.565378 | J15: =IF('Öğr.Gör. Ön Değ.'!J15="","",'Öğr.Gör. Ön Değ.'!J15) -> 33.012 | K15: =IF('Öğr.Gör. Ön Değ.'!K15="","",'Öğr.Gör. Ön Değ.'!K15) -> 80.577378 | L15: =IF('Öğr.Gör. Ön Değ.'!L15="","",'Öğr.Gör. Ön Değ.'!L15) -> Sınava Girebilir
A16: =IF('Öğr.Gör. Ön Değ.'!A16="","",'Öğr.Gör. Ön Değ.'!A16) -> 4 | B16: =IF('Öğr.Gör. Ön Değ.'!B16="","",LEFT('Öğr.Gör. Ön Değ.'!B16,3)&REPT("*",4)&RIGHT('Öğr.Gör. Ön Değ.'!B16,2)) -> 111****11 | C16: =IF('Öğr.Gör. Ön Değ.'!C16="","",IF(ISERR(FIND(" ",'Öğr.Gör. Ön Değ.'!C16))=TRUE,LEFT('Öğr.Gör. Ön Değ.'!C16,2)&REPT("*",3),LEFT('Öğr.Gör. Ön Değ.'!C16,2)&REPT("*",3)&" "&MID('Öğr.Gör. Ön Değ.'!C16,FIND(" ",'Öğr.Gör. Ön Değ.'!C16)+1,2)&REPT("*",3))) -> Ör*** Ör*** | D16: =IF('Öğr.Gör. Ön Değ.'!D16="","",IF(ISERR(FIND(" ",'Öğr.Gör. Ön Değ.'!D16))=TRUE,LEFT('Öğr.Gör. Ön Değ.'!D16,2)&REPT("*",3),LEFT('Öğr.Gör. Ön Değ.'!D16,2)&REPT("*",3)&" "&MID('Öğr.Gör. Ön Değ.'!D16,FIND(" ",'Öğr.Gör. Ön Değ.'!D16)+1,2)&REPT("*",3))) -> Ör*** Ör*** | E16: =IF('Öğr.Gör. Ön Değ.'!E16="","",'Öğr.Gör. Ön Değ.'!E16) -> 78.11375 | F16: =IF('Öğr.Gör. Ön Değ.'!F16="","",'Öğr.Gör. Ön Değ.'!F16) -> 81.56 | G16: =IF('Öğr.Gör. Ön Değ.'!G16="","",'Öğr.Gör. Ön Değ.'!G16) -> Mevcut | H16: =IF('Öğr.Gör. Ön Değ.'!H16="","",'Öğr.Gör. Ön Değ.'!H16) -> Uygun | I16: =IF('Öğr.Gör. Ön Değ.'!I16="","",'Öğr.Gör. Ön Değ.'!I16) -> 46.86825 | J16: =IF('Öğr.Gör. Ön Değ.'!J16="","",'Öğr.Gör. Ön Değ.'!J16) -> 32.624 | K16: =IF('Öğr.Gör. Ön Değ.'!K16="","",'Öğr.Gör. Ön Değ.'!K16) -> 79.49225 | L16: =IF('Öğr.Gör. Ön Değ.'!L16="","",'Öğr.Gör. Ön Değ.'!L16) -> Sınava Girebilir
A17: =IF('Öğr.Gör. Ön Değ.'!A17="","",'Öğr.Gör. Ön Değ.'!A17) -> 5 | B17: =IF('Öğr.Gör. Ön Değ.'!B17="","",LEFT('Öğr.Gör. Ön Değ.'!B17,3)&REPT("*",4)&RIGHT('Öğr.Gör. Ön Değ.'!B17,2)) -> 111****11 | C17: =IF('Öğr.Gör. Ön Değ.'!C17="","",IF(ISERR(FIND(" ",'Öğr.Gör. Ön Değ.'!C17))=TRUE,LEFT('Öğr.Gör. Ön Değ.'!C17,2)&REPT("*",3),LEFT('Öğr.Gör. Ön Değ.'!C17,2)&REPT("*",3)&" "&MID('Öğr.Gör. Ön Değ.'!C17,FIND(" ",'Öğr.Gör. Ön Değ.'!C17)+1,2)&REPT("*",3))) -> Ör*** | D17: =IF('Öğr.Gör. Ön Değ.'!D17="","",IF(ISERR(FIND(" ",'Öğr.Gör. Ön Değ.'!D17))=TRUE,LEFT('Öğr.Gör. Ön Değ.'!D17,2)&REPT("*",3),LEFT('Öğr.Gör. Ön Değ.'!D17,2)&REPT("*",3)&" "&MID('Öğr.Gör. Ön Değ.'!D17,FIND(" ",'Öğr.Gör. Ön Değ.'!D17)+1,2)&REPT("*",3))) -> Ör*** | E17: =IF('Öğr.Gör. Ön Değ.'!E17="","",'Öğr.Gör. Ön Değ.'!E17) -> 77.50555 | F17: =IF('Öğr.Gör. Ön Değ.'!F17="","",'Öğr.Gör. Ön Değ.'!F17) -> 80.56 | G17: =IF('Öğr.Gör. Ön Değ.'!G17="","",'Öğr.Gör. Ön Değ.'!G17) -> Mevcut | H17: =IF('Öğr.Gör. Ön Değ.'!H17="","",'Öğr.Gör. Ön Değ.'!H17) -> Uygun | I17: =IF('Öğr.Gör. Ön Değ.'!I17="","",'Öğr.Gör. Ön Değ.'!I17) -> 46.50333 | J17: =IF('Öğr.Gör. Ön Değ.'!J17="","",'Öğr.Gör. Ön Değ.'!J17) -> 32.224 | K17: =IF('Öğr.Gör. Ön Değ.'!K17="","",'Öğr.Gör. Ön Değ.'!K17) -> 78.72733 | L17: =IF('Öğr.Gör. Ön Değ.'!L17="","",'Öğr.Gör. Ön Değ.'!L17) -> Sınava Girebilir
A18: =IF('Öğr.Gör. Ön Değ.'!A18="","",'Öğr.Gör. Ön Değ.'!A18) -> 6 | B18: =IF('Öğr.Gör. Ön Değ.'!B18="","",LEFT('Öğr.Gör. Ön Değ.'!B18,3)&REPT("*",4)&RIGHT('Öğr.Gör. Ön Değ.'!B18,2)) -> 111****11 | C18: =IF('Öğr.Gör. Ön Değ.'!C18="","",IF(ISERR(FIND(" ",'Öğr.Gör. Ön Değ.'!C18))=TRUE,LEFT('Öğr.Gör. Ön Değ.'!C18,2)&REPT("*",3),LEFT('Öğr.Gör. Ön Değ.'!C18,2)&REPT("*",3)&" "&MID('Öğr.Gör. Ön Değ.'!C18,FIND(" ",'Öğr.Gör. Ön Değ.'!C18)+1,2)&REPT("*",3))) -> Ör*** | D18: =IF('Öğr.Gör. Ön Değ.'!D18="","",IF(ISERR(FIND(" ",'Öğr.Gör. Ön Değ.'!D18))=TRUE,LEFT('Öğr.Gör. Ön Değ.'!D18,2)&REPT("*",3),LEFT('Öğr.Gör. Ön Değ.'!D18,2)&REPT("*",3)&" "&MID('Öğr.Gör. Ön Değ.'!D18,FIND(" ",'Öğr.Gör. Ön Değ.'!D18)+1,2)&REPT("*",3))) -> Ör*** | E18: =IF('Öğr.Gör. Ön Değ.'!E18="","",'Öğr.Gör. Ön Değ.'!E18) -> 76.60743 | F18: =IF('Öğr.Gör. Ön Değ.'!F18="","",'Öğr.Gör. Ön Değ.'!F18) -> 79.03 | G18: =IF('Öğr.Gör. Ön Değ.'!G18="","",'Öğr.Gör. Ön Değ.'!G18) -> Mevcut | H18: =IF('Öğr.Gör. Ön Değ.'!H18="","",'Öğr.Gör. Ön Değ.'!H18) -> Uygun | I18: =IF('Öğr.Gör. Ön Değ.'!I18="","",'Öğr.Gör. Ön Değ.'!I18) -> 45.964458 | J18: =IF('Öğr.Gör. Ön Değ.'!J18="","",'Öğr.Gör. Ön Değ.'!J18) -> 31.612 | K18: =IF('Öğr.Gör. Ön Değ.'!K18="","",'Öğr.Gör. Ön Değ.'!K18) -> 77.576458 | L18: =IF('Öğr.Gör. Ön Değ.'!L18="","",'Öğr.Gör. Ön Değ.'!L18) -> Sınava Girebilir
A19: =IF('Öğr.Gör. Ön Değ.'!A19="","",'Öğr.Gör. Ön Değ.'!A19) -> 7 | B19: =IF('Öğr.Gör. Ön Değ.'!B19="","",LEFT('Öğr.Gör. Ön Değ.'!B19,3)&REPT("*",4)&RIGHT('Öğr.Gör. Ön Değ.'!B19,2)) -> 111****11 | C19: =IF('Öğr.Gör. Ön Değ.'!C19="","",IF(ISERR(FIND(" ",'Öğr.Gör. Ön Değ.'!C19))=TRUE,LEFT('Öğr.Gör. Ön Değ.'!C19,2)&REPT("*",3),LEFT('Öğr.Gör. Ön Değ.'!C19,2)&REPT("*",3)&" "&MID('Öğr.Gör. Ön Değ.'!C19,FIND(" ",'Öğr.Gör. Ön Değ.'!C19)+1,2)&REPT("*",3))) -> Ör*** | D19: =IF('Öğr.Gör. Ön Değ.'!D19="","",IF(ISERR(FIND(" ",'Öğr.Gör. Ön Değ.'!D19))=TRUE,LEFT('Öğr.Gör. Ön Değ.'!D19,2)&REPT("*",3),LEFT('Öğr.Gör. Ön Değ.'!D19,2)&REPT("*",3)&" "&MID('Öğr.Gör. Ön Değ.'!D19,FIND(" ",'Öğr.Gör. Ön Değ.'!D19)+1,2)&REPT("*",3))) -> Ör*** | E19: =IF('Öğr.Gör. Ön Değ.'!E19="","",'Öğr.Gör. Ön Değ.'!E19) -> 75.27563 | F19: =IF('Öğr.Gör. Ön Değ.'!F19="","",'Öğr.Gör. Ön Değ.'!F19) -> 78.53 | G19: =IF('Öğr.Gör. Ön Değ.'!G19="","",'Öğr.Gör. Ön Değ.'!G19) -> Mevcut | H19: =IF('Öğr.Gör. Ön Değ.'!H19="","",'Öğr.Gör. Ön Değ.'!H19) -> Uygun | I19: =IF('Öğr.Gör. Ön Değ.'!I19="","",'Öğr.Gör. Ön Değ.'!I19) -> 45.165378 | J19: =IF('Öğr.Gör. Ön Değ.'!J19="","",'Öğr.Gör. Ön Değ.'!J19) -> 31.412 | K19: =IF('Öğr.Gör. Ön Değ.'!K19="","",'Öğr.Gör. Ön Değ.'!K19) -> 76.577378 | L19: =IF('Öğr.Gör. Ön Değ.'!L19="","",'Öğr.Gör. Ön Değ.'!L19) -> Sınava Girebilir
A20: =IF('Öğr.Gör. Ön Değ.'!A20="","",'Öğr.Gör. Ön Değ.'!A20) -> 8 | B20: =IF('Öğr.Gör. Ön Değ.'!B20="","",LEFT('Öğr.Gör. Ön Değ.'!B20,3)&REPT("*",4)&RIGHT('Öğr.Gör. Ön Değ.'!B20,2)) -> 111****11 | C20: =IF('Öğr.Gör. Ön Değ.'!C20="","",IF(ISERR(FIND(" ",'Öğr.Gör. Ön Değ.'!C20))=TRUE,LEFT('Öğr.Gör. Ön Değ.'!C20,2)&REPT("*",3),LEFT('Öğr.Gör. Ön Değ.'!C20,2)&REPT("*",3)&" "&MID('Öğr.Gör. Ön Değ.'!C20,FIND(" ",'Öğr.Gör. Ön Değ.'!C20)+1,2)&REPT("*",3))) -> Ör*** | D20: =IF('Öğr.Gör. Ön Değ.'!D20="","",IF(ISERR(FIND(" ",'Öğr.Gör. Ön Değ.'!D20))=TRUE,LEFT('Öğr.Gör. Ön Değ.'!D20,2)&REPT("*",3),LEFT('Öğr.Gör. Ön Değ.'!D20,2)&REPT("*",3)&" "&MID('Öğr.Gör. Ön Değ.'!D20,FIND(" ",'Öğr.Gör. Ön Değ.'!D20)+1,2)&REPT("*",3))) -> Ör*** | E20: =IF('Öğr.Gör. Ön Değ.'!E20="","",'Öğr.Gör. Ön Değ.'!E20) -> 74.11375 | F20: =IF('Öğr.Gör. Ön Değ.'!F20="","",'Öğr.Gör. Ön Değ.'!F20) -> 77.56 | G20: =IF('Öğr.Gör. Ön Değ.'!G20="","",'Öğr.Gör. Ön Değ.'!G20) -> Mevcut | H20: =IF('Öğr.Gör. Ön Değ.'!H20="","",'Öğr.Gör. Ön Değ.'!H20) -> Uygun | I20: =IF('Öğr.Gör. Ön Değ.'!I20="","",'Öğr.Gör. Ön Değ.'!I20) -> 44.46825 | J20: =IF('Öğr.Gör. Ön Değ.'!J20="","",'Öğr.Gör. Ön Değ.'!J20) -> 31.024 | K20: =IF('Öğr.Gör. Ön Değ.'!K20="","",'Öğr.Gör. Ön Değ.'!K20) -> 75.49225 | L20: =IF('Öğr.Gör. Ön Değ.'!L20="","",'Öğr.Gör. Ön Değ.'!L20) -> Sınava Girebilir
A21: =IF('Öğr.Gör. Ön Değ.'!A21="","",'Öğr.Gör. Ön Değ.'!A21) -> 9 | B21: =IF('Öğr.Gör. Ön Değ.'!B21="","",LEFT('Öğr.Gör. Ön Değ.'!B21,3)&REPT("*",4)&RIGHT('Öğr.Gör. Ön Değ.'!B21,2)) -> 111****11 | C21: =IF('Öğr.Gör. Ön Değ.'!C21="","",IF(ISERR(FIND(" ",'Öğr.Gör. Ön Değ.'!C21))=TRUE,LEFT('Öğr.Gör. Ön Değ.'!C21,2)&REPT("*",3),LEFT('Öğr.Gör. Ön Değ.'!C21,2)&REPT("*",3)&" "&MID('Öğr.Gör. Ön Değ.'!C21,FIND(" ",'Öğr.Gör. Ön Değ.'!C21)+1,2)&REPT("*",3))) -> Ör*** | D21: =IF('Öğr.Gör. Ön Değ.'!D21="","",IF(ISERR(FIND(" ",'Öğr.Gör. Ön Değ.'!D21))=TRUE,LEFT('Öğr.Gör. Ön Değ.'!D21,2)&REPT("*",3),LEFT('Öğr.Gör. Ön Değ.'!D21,2)&REPT("*",3)&" "&MID('Öğr.Gör. Ön Değ.'!D21,FIND(" ",'Öğr.Gör. Ön Değ.'!D21)+1,2)&REPT("*",3))) -> Ör*** | E21: =IF('Öğr.Gör. Ön Değ.'!E21="","",'Öğr.Gör. Ön Değ.'!E21) -> 73.50555 | F21: =IF('Öğr.Gör. Ön Değ.'!F21="","",'Öğr.Gör. Ön Değ.'!F21) -> 76.56 | G21: =IF('Öğr.Gör. Ön Değ.'!G21="","",'Öğr.Gör. Ön Değ.'!G21) -> Mevcut | H21: =IF('Öğr.Gör. Ön Değ.'!H21="","",'Öğr.Gör. Ön Değ.'!H21) -> Uygun | I21: =IF('Öğr.Gör. Ön Değ.'!I21="","",'Öğr.Gör. Ön Değ.'!I21) -> 44.10333 | J21: =IF('Öğr.Gör. Ön Değ.'!J21="","",'Öğr.Gör. Ön Değ.'!J21) -> 30.624 | K21: =IF('Öğr.Gör. Ön Değ.'!K21="","",'Öğr.Gör. Ön Değ.'!K21) -> 74.72733 | L21: =IF('Öğr.Gör. Ön Değ.'!L21="","",'Öğr.Gör. Ön Değ.'!L21) -> Sınava Girebilir
A22: =IF('Öğr.Gör. Ön Değ.'!A22="","",'Öğr.Gör. Ön Değ.'!A22) -> 10 | B22: =IF('Öğr.Gör. Ön Değ.'!B22="","",LEFT('Öğr.Gör. Ön Değ.'!B22,3)&REPT("*",4)&RIGHT('Öğr.Gör. Ön Değ.'!B22,2)) -> 111****11 | C22: =IF('Öğr.Gör. Ön Değ.'!C22="","",IF(ISERR(FIND(" ",'Öğr.Gör. Ön Değ.'!C22))=TRUE,LEFT('Öğr.Gör. Ön Değ.'!C22,2)&REPT("*",3),LEFT('Öğr.Gör. Ön Değ.'!C22,2)&REPT("*",3)&" "&MID('Öğr.Gör. Ön Değ.'!C22,FIND(" ",'Öğr.Gör. Ön Değ.'!C22)+1,2)&REPT("*",3))) -> Ör*** | D22: =IF('Öğr.Gör. Ön Değ.'!D22="","",IF(ISERR(FIND(" ",'Öğr.Gör. Ön Değ.'!D22))=TRUE,LEFT('Öğr.Gör. Ön Değ.'!D22,2)&REPT("*",3),LEFT('Öğr.Gör. Ön Değ.'!D22,2)&REPT("*",3)&" "&MID('Öğr.Gör. Ön Değ.'!D22,FIND(" ",'Öğr.Gör. Ön Değ.'!D22)+1,2)&REPT("*",3))) -> Ör*** | E22: =IF('Öğr.Gör. Ön Değ.'!E22="","",'Öğr.Gör. Ön Değ.'!E22) -> 72.60743 | F22: =IF('Öğr.Gör. Ön Değ.'!F22="","",'Öğr.Gör. Ön Değ.'!F22) -> 75.03 | G22: =IF('Öğr.Gör. Ön Değ.'!G22="","",'Öğr.Gör. Ön Değ.'!G22) -> Mevcut | H22: =IF('Öğr.Gör. Ön Değ.'!H22="","",'Öğr.Gör. Ön Değ.'!H22) -> Uygun | I22: =IF('Öğr.Gör. Ön Değ.'!I22="","",'Öğr.Gör. Ön Değ.'!I22) -> 43.564458 | J22: =IF('Öğr.Gör. Ön Değ.'!J22="","",'Öğr.Gör. Ön Değ.'!J22) -> 30.012 | K22: =IF('Öğr.Gör. Ön Değ.'!K22="","",'Öğr.Gör. Ön Değ.'!K22) -> 73.576458 | L22: =IF('Öğr.Gör. Ön Değ.'!L22="","",'Öğr.Gör. Ön Değ.'!L22) -> Sınava Girebilir
A23: =IF('Öğr.Gör. Ön Değ.'!A23="","",'Öğr.Gör. Ön Değ.'!A23) -> 11 | B23: =IF('Öğr.Gör. Ön Değ.'!B23="","",LEFT('Öğr.Gör. Ön Değ.'!B23,3)&REPT("*",4)&RIGHT('Öğr.Gör. Ön Değ.'!B23,2)) -> 111****11 | C23: =IF('Öğr.Gör. Ön Değ.'!C23="","",IF(ISERR(FIND(" ",'Öğr.Gör. Ön Değ.'!C23))=TRUE,LEFT('Öğr.Gör. Ön Değ.'!C23,2)&REPT("*",3),LEFT('Öğr.Gör. Ön Değ.'!C23,2)&REPT("*",3)&" "&MID('Öğr.Gör. Ön Değ.'!C23,FIND(" ",'Öğr.Gör. Ön Değ.'!C23)+1,2)&REPT("*",3))) -> Ör*** | D23: =IF('Öğr.Gör. Ön Değ.'!D23="","",IF(ISERR(FIND(" ",'Öğr.Gör. Ön Değ.'!D23))=TRUE,LEFT('Öğr.Gör. Ön Değ.'!D23,2)&REPT("*",3),LEFT('Öğr.Gör. Ön Değ.'!D23,2)&REPT("*",3)&" "&MID('Öğr.Gör. Ön Değ.'!D23,FIND(" ",'Öğr.Gör. Ön Değ.'!D23)+1,2)&REPT("*",3))) -> Ör*** | E23: =IF('Öğr.Gör. Ön Değ.'!E23="","",'Öğr.Gör. Ön Değ.'!E23) -> 71.27563 | F23: =IF('Öğr.Gör. Ön Değ.'!F23="","",'Öğr.Gör. Ön Değ.'!F23) -> 74.53 | G23: =IF('Öğr.Gör. Ön Değ.'!G23="","",'Öğr.Gör. Ön Değ.'!G23) -> Mevcut | H23: =IF('Öğr.Gör. Ön Değ.'!H23="","",'Öğr.Gör. Ön Değ.'!H23) -> Uygun | I23: =IF('Öğr.Gör. Ön Değ.'!I23="","",'Öğr.Gör. Ön Değ.'!I23) -> 42.765378 | J23: =IF('Öğr.Gör. Ön Değ.'!J23="","",'Öğr.Gör. Ön Değ.'!J23) -> 29.812 | K23: =IF('Öğr.Gör. Ön Değ.'!K23="","",'Öğr.Gör. Ön Değ.'!K23) -> 72.577378 | L23: =IF('Öğr.Gör. Ön Değ.'!L23="","",'Öğr.Gör. Ön Değ.'!L23) -> Yönetmelik Gereği Elendi *
A24: =IF('Öğr.Gör. Ön Değ.'!A24="","",'Öğr.Gör. Ön Değ.'!A24) -> 12 | B24: =IF('Öğr.Gör. Ön Değ.'!B24="","",LEFT('Öğr.Gör. Ön Değ.'!B24,3)&REPT("*",4)&RIGHT('Öğr.Gör. Ön Değ.'!B24,2)) -> 111****11 | C24: =IF('Öğr.Gör. Ön Değ.'!C24="","",IF(ISERR(FIND(" ",'Öğr.Gör. Ön Değ.'!C24))=TRUE,LEFT('Öğr.Gör. Ön Değ.'!C24,2)&REPT("*",3),LEFT('Öğr.Gör. Ön Değ.'!C24,2)&REPT("*",3)&" "&MID('Öğr.Gör. Ön Değ.'!C24,FIND(" ",'Öğr.Gör. Ön Değ.'!C24)+1,2)&REPT("*",3))) -> Ör*** | D24: =IF('Öğr.Gör. Ön Değ.'!D24="","",IF(ISERR(FIND(" ",'Öğr.Gör. Ön Değ.'!D24))=TRUE,LEFT('Öğr.Gör. Ön Değ.'!D24,2)&REPT("*",3),LEFT('Öğr.Gör. Ön Değ.'!D24,2)&REPT("*",3)&" "&MID('Öğr.Gör. Ön Değ.'!D24,FIND(" ",'Öğr.Gör. Ön Değ.'!D24)+1,2)&REPT("*",3))) -> Ör*** | E24: =IF('Öğr.Gör. Ön Değ.'!E24="","",'Öğr.Gör. Ön Değ.'!E24) -> 70.11375 | F24: =IF('Öğr.Gör. Ön Değ.'!F24="","",'Öğr.Gör. Ön Değ.'!F24) -> 73.56 | G24: =IF('Öğr.Gör. Ön Değ.'!G24="","",'Öğr.Gör. Ön Değ.'!G24) -> Mevcut | H24: =IF('Öğr.Gör. Ön Değ.'!H24="","",'Öğr.Gör. Ön Değ.'!H24) -> Uygun | I24: =IF('Öğr.Gör. Ön Değ.'!I24="","",'Öğr.Gör. Ön Değ.'!I24) -> 42.06825 | J24: =IF('Öğr.Gör. Ön Değ.'!J24="","",'Öğr.Gör. Ön Değ.'!J24) -> 29.424 | K24: =IF('Öğr.Gör. Ön Değ.'!K24="","",'Öğr.Gör. Ön Değ.'!K24) -> 71.49225 | L24: =IF('Öğr.Gör. Ön Değ.'!L24="","",'Öğr.Gör. Ön Değ.'!L24) -> Yönetmelik Gereği Elendi *
A25: =IF('Öğr.Gör. Ön Değ.'!A25="","",'Öğr.Gör. Ön Değ.'!A25) -> 13 | B25: =IF('Öğr.Gör. Ön Değ.'!B25="","",LEFT('Öğr.Gör. Ön Değ.'!B25,3)&REPT("*",4)&RIGHT('Öğr.Gör. Ön Değ.'!B25,2)) -> 111****11 | C25: =IF('Öğr.Gör. Ön Değ.'!C25="","",IF(ISERR(FIND(" ",'Öğr.Gör. Ön Değ.'!C25))=TRUE,LEFT('Öğr.Gör. Ön Değ.'!C25,2)&REPT("*",3),LEFT('Öğr.Gör. Ön Değ.'!C25,2)&REPT("*",3)&" "&MID('Öğr.Gör. Ön Değ.'!C25,FIND(" ",'Öğr.Gör. Ön Değ.'!C25)+1,2)&REPT("*",3))) -> Ör*** | D25: =IF('Öğr.Gör. Ön Değ.'!D25="","",IF(ISERR(FIND(" ",'Öğr.Gör. Ön Değ.'!D25))=TRUE,LEFT('Öğr.Gör. Ön Değ.'!D25,2)&REPT("*",3),LEFT('Öğr.Gör. Ön Değ.'!D25,2)&REPT("*",3)&" "&MID('Öğr.Gör. Ön Değ.'!D25,FIND(" ",'Öğr.Gör. Ön Değ.'!D25)+1,2)&REPT("*",3))) -> Ör*** | E25: =IF('Öğr.Gör. Ön Değ.'!E25="","",'Öğr.Gör. Ön Değ.'!E25) -> 70.50555 | F25: =IF('Öğr.Gör. Ön Değ.'!F25="","",'Öğr.Gör. Ön Değ.'!F25) -> 72.56 | G25: =IF('Öğr.Gör. Ön Değ.'!G25="","",'Öğr.Gör. Ön Değ.'!G25) -> Mevcut | H25: =IF('Öğr.Gör. Ön Değ.'!H25="","",'Öğr.Gör. Ön Değ.'!H25) -> Uygun | I25: =IF('Öğr.Gör. Ön Değ.'!I25="","",'Öğr.Gör. Ön Değ.'!I25) -> 42.30333 | J25: =IF('Öğr.Gör. Ön Değ.'!J25="","",'Öğr.Gör. Ön Değ.'!J25) -> 29.024 | K25: =IF('Öğr.Gör. Ön Değ.'!K25="","",'Öğr.Gör. Ön Değ.'!K25) -> 71.32733 | L25: =IF('Öğr.Gör. Ön Değ.'!L25="","",'Öğr.Gör. Ön Değ.'!L25) -> Yönetmelik Gereği Elendi *
A26: =IF('Öğr.Gör. Ön Değ.'!A26="","",'Öğr.Gör. Ön Değ.'!A26) -> 14 | B26: =IF('Öğr.Gör. Ön Değ.'!B26="","",LEFT('Öğr.Gör. Ön Değ.'!B26,3)&REPT("*",4)&RIGHT('Öğr.Gör. Ön Değ.'!B26,2)) -> 111****11 | C26: =IF('Öğr.Gör. Ön Değ.'!C26="","",IF(ISERR(FIND(" ",'Öğr.Gör. Ön Değ.'!C26))=TRUE,LEFT('Öğr.Gör. Ön Değ.'!C26,2)&REPT("*",3),LEFT('Öğr.Gör. Ön Değ.'!C26,2)&REPT("*",3)&" "&MID('Öğr.Gör. Ön Değ.'!C26,FIND(" ",'Öğr.Gör. Ön Değ.'!C26)+1,2)&REPT("*",3))) -> Ör*** | D26: =IF('Öğr.Gör. Ön Değ.'!D26="","",IF(ISERR(FIND(" ",'Öğr.Gör. Ön Değ.'!D26))=TRUE,LEFT('Öğr.Gör. Ön Değ.'!D26,2)&REPT("*",3),LEFT('Öğr.Gör. Ön Değ.'!D26,2)&REPT("*",3)&" "&MID('Öğr.Gör. Ön Değ.'!D26,FIND(" ",'Öğr.Gör. Ön Değ.'!D26)+1,2)&REPT("*",3))) -> Ör*** | E26: =IF('Öğr.Gör. Ön Değ.'!E26="","",'Öğr.Gör. Ön Değ.'!E26) -> 70.60743 | F26: =IF('Öğr.Gör. Ön Değ.'!F26="","",'Öğr.Gör. Ön Değ.'!F26) -> 72.03 | G26: =IF('Öğr.Gör. Ön Değ.'!G26="","",'Öğr.Gör. Ön Değ.'!G26) -> Mevcut | H26: =IF('Öğr.Gör. Ön Değ.'!H26="","",'Öğr.Gör. Ön Değ.'!H26) -> Uygun Değil | I26: =IF('Öğr.Gör. Ön Değ.'!I26="","",'Öğr.Gör. Ön Değ.'!I26) -> 42.364458 | J26: =IF('Öğr.Gör. Ön Değ.'!J26="","",'Öğr.Gör. Ön Değ.'!J26) -> 28.812 | K26: =IF('Öğr.Gör. Ön Değ.'!K26="","",'Öğr.Gör. Ön Değ.'!K26) -> 71.176458 | L26: =IF('Öğr.Gör. Ön Değ.'!L26="","",'Öğr.Gör. Ön Değ.'!L26) -> Başvuru Şartını Sağlamıyor (Tecrübe süresi ilan şartını taşımıyor)
A27: =IF('Öğr.Gör. Ön Değ.'!A27="","",'Öğr.Gör. Ön Değ.'!A27) -> 15 | B27: =IF('Öğr.Gör. Ön Değ.'!B27="","",LEFT('Öğr.Gör. Ön Değ.'!B27,3)&REPT("*",4)&RIGHT('Öğr.Gör. Ön Değ.'!B27,2)) -> 111****11 | C27: =IF('Öğr.Gör. Ön Değ.'!C27="","",IF(ISERR(FIND(" ",'Öğr.Gör. Ön Değ.'!C27))=TRUE,LEFT('Öğr.Gör. Ön Değ.'!C27,2)&REPT("*",3),LEFT('Öğr.Gör. Ön Değ.'!C27,2)&REPT("*",3)&" "&MID('Öğr.Gör. Ön Değ.'!C27,FIND(" ",'Öğr.Gör. Ön Değ.'!C27)+1,2)&REPT("*",3))) -> Ör*** | D27: =IF('Öğr.Gör. Ön Değ.'!D27="","",IF(ISERR(FIND(" ",'Öğr.Gör. Ön Değ.'!D27))=TRUE,LEFT('Öğr.Gör. Ön Değ.'!D27,2)&REPT("*",3),LEFT('Öğr.Gör. Ön Değ.'!D27,2)&REPT("*",3)&" "&MID('Öğr.Gör. Ön Değ.'!D27,FIND(" ",'Öğr.Gör. Ön Değ.'!D27)+1,2)&REPT("*",3))) -> Ör*** | E27: =IF('Öğr.Gör. Ön Değ.'!E27="","",'Öğr.Gör. Ön Değ.'!E27) -> 70.27563 | F27: =IF('Öğr.Gör. Ön Değ.'!F27="","",'Öğr.Gör. Ön Değ.'!F27) -> 71.53 | G27: =IF('Öğr.Gör. Ön Değ.'!G27="","",'Öğr.Gör. Ön Değ.'!G27) -> Mevcut Değil | H27: =IF('Öğr.Gör. Ön Değ.'!H27="","",'Öğr.Gör. Ön Değ.'!H27) -> Uygun Değil | I27: =IF('Öğr.Gör. Ön Değ.'!I27="","",'Öğr.Gör. Ön Değ.'!I27) -> 42.165378 | J27: =IF('Öğr.Gör. Ön Değ.'!J27="","",'Öğr.Gör. Ön Değ.'!J27) -> 28.612 | K27: =IF('Öğr.Gör. Ön Değ.'!K27="","",'Öğr.Gör. Ön Değ.'!K27) -> 70.777378 | L27: =IF('Öğr.Gör. Ön Değ.'!L27="","",'Öğr.Gör. Ön Değ.'!L27) -> Başvuru Şartını Sağlamıyor (Tezli Yüksek Şartını Sağlamıyor)
A28: =IF('Öğr.Gör. Ön Değ.'!A28="","",'Öğr.Gör. Ön Değ.'!A28) -> 16 | B28: =IF('Öğr.Gör. Ön Değ.'!B28="","",LEFT('Öğr.Gör. Ön Değ.'!B28,3)&REPT("*",4)&RIGHT('Öğr.Gör. Ön Değ.'!B28,2)) -> 111****11 | C28: =IF('Öğr.Gör. Ön Değ.'!C28="","",IF(ISERR(FIND(" ",'Öğr.Gör. Ön Değ.'!C28))=TRUE,LEFT('Öğr.Gör. Ön Değ.'!C28,2)&REPT("*",3),LEFT('Öğr.Gör. Ön Değ.'!C28,2)&REPT("*",3)&" "&MID('Öğr.Gör. Ön Değ.'!C28,FIND(" ",'Öğr.Gör. Ön Değ.'!C28)+1,2)&REPT("*",3))) -> Ör*** | D28: =IF('Öğr.Gör. Ön Değ.'!D28="","",IF(ISERR(FIND(" ",'Öğr.Gör. Ön Değ.'!D28))=TRUE,LEFT('Öğr.Gör. Ön Değ.'!D28,2)&REPT("*",3),LEFT('Öğr.Gör. Ön Değ.'!D28,2)&REPT("*",3)&" "&MID('Öğr.Gör. Ön Değ.'!D28,FIND(" ",'Öğr.Gör. Ön Değ.'!D28)+1,2)&REPT("*",3))) -> Ör*** | E28: =IF('Öğr.Gör. Ön Değ.'!E28="","",'Öğr.Gör. Ön Değ.'!E28) -> 68 | F28: =IF('Öğr.Gör. Ön Değ.'!F28="","",'Öğr.Gör. Ön Değ.'!F28) -> 95 | G28: =IF('Öğr.Gör. Ön Değ.'!G28="","",'Öğr.Gör. Ön Değ.'!G28) -> Mevcut | H28: =IF('Öğr.Gör. Ön Değ.'!H28="","",'Öğr.Gör. Ön Değ.'!H28) -> Uygun Değil | I28: =IF('Öğr.Gör. Ön Değ.'!I28="","",'Öğr.Gör. Ön Değ.'!I28) -> 40.8 | J28: =IF('Öğr.Gör. Ön Değ.'!J28="","",'Öğr.Gör. Ön Değ.'!J28) -> 38 | K28: =IF('Öğr.Gör. Ön Değ.'!K28="","",'Öğr.Gör. Ön Değ.'!K28) -> 78.8 | L28: =IF('Öğr.Gör. Ön Değ.'!L28="","",'Öğr.Gör. Ön Değ.'!L28) -> Başvuru Şartını Sağlamıyor (Ales puanı yetersiz)
A29: =IF('Öğr.Gör. Ön Değ.'!A29="","",'Öğr.Gör. Ön Değ.'!A29) -> 17 | B29: =IF('Öğr.Gör. Ön Değ.'!B29="","",LEFT('Öğr.Gör. Ön Değ.'!B29,3)&REPT("*",4)&RIGHT('Öğr.Gör. Ön Değ.'!B29,2)) -> 111****11 | C29: =IF('Öğr.Gör. Ön Değ.'!C29="","",IF(ISERR(FIND(" ",'Öğr.Gör. Ön Değ.'!C29))=TRUE,LEFT('Öğr.Gör. Ön Değ.'!C29,2)&REPT("*",3),LEFT('Öğr.Gör. Ön Değ.'!C29,2)&REPT("*",3)&" "&MID('Öğr.Gör. Ön Değ.'!C29,FIND(" ",'Öğr.Gör. Ön Değ.'!C29)+1,2)&REPT("*",3))) -> Ör*** | D29: =IF('Öğr.Gör. Ön Değ.'!D29="","",IF(ISERR(FIND(" ",'Öğr.Gör. Ön Değ.'!D29))=TRUE,LEFT('Öğr.Gör. Ön Değ.'!D29,2)&REPT("*",3),LEFT('Öğr.Gör. Ön Değ.'!D29,2)&REPT("*",3)&" "&MID('Öğr.Gör. Ön Değ.'!D29,FIND(" ",'Öğr.Gör. Ön Değ.'!D29)+1,2)&REPT("*",3))) -> Ör*** | E29: =IF('Öğr.Gör. Ön Değ.'!E29="","",'Öğr.Gör. Ön Değ.'!E29) -> 80 | F29: =IF('Öğr.Gör. Ön Değ.'!F29="","",'Öğr.Gör. Ön Değ.'!F29) -> 75 | G29: =IF('Öğr.Gör. Ön Değ.'!G29="","",'Öğr.Gör. Ön Değ.'!G29) -> Mevcut | H29: =IF('Öğr.Gör. Ön Değ.'!H29="","",'Öğr.Gör. Ön Değ.'!H29) -> Uygun Değil | I29: =IF('Öğr.Gör. Ön Değ.'!I29="","",'Öğr.Gör. Ön Değ.'!I29) -> 48 | J29: =IF('Öğr.Gör. Ön Değ.'!J29="","",'Öğr.Gör. Ön Değ.'!J29) -> 30 | K29: =IF('Öğr.Gör. Ön Değ.'!K29="","",'Öğr.Gör. Ön Değ.'!K29) -> 78 | L29: =IF('Öğr.Gör. Ön Değ.'!L29="","",'Öğr.Gör. Ön Değ.'!L29) -> Başvuru Şartını Sağlamıyor (Lisans Mezuniyet alanı ilanla uyumlu değil)
A30: =IF('Öğr.Gör. Ön Değ.'!A30="","",'Öğr.Gör. Ön Değ.'!A30) -> 18 | B30: =IF('Öğr.Gör. Ön Değ.'!B30="","",LEFT('Öğr.Gör. Ön Değ.'!B30,3)&REPT("*",4)&RIGHT('Öğr.Gör. Ön Değ.'!B30,2)) -> 111****11 | C30: =IF('Öğr.Gör. Ön Değ.'!C30="","",IF(ISERR(FIND(" ",'Öğr.Gör. Ön Değ.'!C30))=TRUE,LEFT('Öğr.Gör. Ön Değ.'!C30,2)&REPT("*",3),LEFT('Öğr.Gör. Ön Değ.'!C30,2)&REPT("*",3)&" "&MID('Öğr.Gör. Ön Değ.'!C30,FIND(" ",'Öğr.Gör. Ön Değ.'!C30)+1,2)&REPT("*",3))) -> Ör*** | D30: =IF('Öğr.Gör. Ön Değ.'!D30="","",IF(ISERR(FIND(" ",'Öğr.Gör. Ön Değ.'!D30))=TRUE,LEFT('Öğr.Gör. Ön Değ.'!D30,2)&REPT("*",3),LEFT('Öğr.Gör. Ön Değ.'!D30,2)&REPT("*",3)&" "&MID('Öğr.Gör. Ön Değ.'!D30,FIND(" ",'Öğr.Gör. Ön Değ.'!D30)+1,2)&REPT("*",3))) -> Ör*** | E30: =IF('Öğr.Gör. Ön Değ.'!E30="","",'Öğr.Gör. Ön Değ.'!E30) -> 80 | F30: =IF('Öğr.Gör. Ön Değ.'!F30="","",'Öğr.Gör. Ön Değ.'!F30) -> 45 | G30: =IF('Öğr.Gör. Ön Değ.'!G30="","",'Öğr.Gör. Ön Değ.'!G30) -> Mevcut | H30: =IF('Öğr.Gör. Ön Değ.'!H30="","",'Öğr.Gör. Ön Değ.'!H30) -> Uygun Değil | I30: =IF('Öğr.Gör. Ön Değ.'!I30="","",'Öğr.Gör. Ön Değ.'!I30) -> 48 | J30: =IF('Öğr.Gör. Ön Değ.'!J30="","",'Öğr.Gör. Ön Değ.'!J30) -> 18 | K30: =IF('Öğr.Gör. Ön Değ.'!K30="","",'Öğr.Gör. Ön Değ.'!K30) -> 66 | L30: =IF('Öğr.Gör. Ön Değ.'!L30="","",'Öğr.Gör. Ön Değ.'!L30) -> Başvuru Şartını Sağlamıyor (Yabancı Dil Puanı Yetersiz)
A31: =IF('Öğr.Gör. Ön Değ.'!A31="","",'Öğr.Gör. Ön Değ.'!A31) ->  | B31: =IF('Öğr.Gör. Ön Değ.'!B31="","",LEFT('Öğr.Gör. Ön Değ.'!B31,3)&REPT("*",4)&RIGHT('Öğr.Gör. Ön Değ.'!B31,2)) ->  | C31: =IF('Öğr.Gör. Ön Değ.'!C31="","",IF(ISERR(FIND(" ",'Öğr.Gör. Ön Değ.'!C31))=TRUE,LEFT('Öğr.Gör. Ön Değ.'!C31,2)&REPT("*",3),LEFT('Öğr.Gör. Ön Değ.'!C31,2)&REPT("*",3)&" "&MID('Öğr.Gör. Ön Değ.'!C31,FIND(" ",'Öğr.Gör. Ön Değ.'!C31)+1,2)&REPT("*",3))) ->  | D31: =IF('Öğr.Gör. Ön Değ.'!D31="","",IF(ISERR(FIND(" ",'Öğr.Gör. Ön Değ.'!D31))=TRUE,LEFT('Öğr.Gör. Ön Değ.'!D31,2)&REPT("*",3),LEFT('Öğr.Gör. Ön Değ.'!D31,2)&REPT("*",3)&" "&MID('Öğr.Gör. Ön Değ.'!D31,FIND(" ",'Öğr.Gör. Ön Değ.'!D31)+1,2)&REPT("*",3))) ->  | E31: =IF('Öğr.Gör. Ön Değ.'!E31="","",'Öğr.Gör. Ön Değ.'!E31) ->  | F31: =IF('Öğr.Gör. Ön Değ.'!F31="","",'Öğr.Gör. Ön Değ.'!F31) ->  | G31: =IF('Öğr.Gör. Ön Değ.'!G31="","",'Öğr.Gör. Ön Değ.'!G31) ->  | H31: =IF('Öğr.Gör. Ön Değ.'!H31="","",'Öğr.Gör. Ön Değ.'!H31) ->  | I31: =IF('Öğr.Gör. Ön Değ.'!I31="","",'Öğr.Gör. Ön Değ.'!I31) ->  | J31: =IF('Öğr.Gör. Ön Değ.'!J31="","",'Öğr.Gör. Ön Değ.'!J31) ->  | K31: =IF('Öğr.Gör. Ön Değ.'!K31="","",'Öğr.Gör. Ön Değ.'!K31) ->  | L31: =IF('Öğr.Gör. Ön Değ.'!L31="","",'Öğr.Gör. Ön Değ.'!L31) -> 
A32: =IF('Öğr.Gör. Ön Değ.'!A32="","",'Öğr.Gör. Ön Değ.'!A32) ->  | B32: =IF('Öğr.Gör. Ön Değ.'!B32="","",LEFT('Öğr.Gör. Ön Değ.'!B32,3)&REPT("*",4)&RIGHT('Öğr.Gör. Ön Değ.'!B32,2)) ->  | C32: =IF('Öğr.Gör. Ön Değ.'!C32="","",IF(ISERR(FIND(" ",'Öğr.Gör. Ön Değ.'!C32))=TRUE,LEFT('Öğr.Gör. Ön Değ.'!C32,2)&REPT("*",3),LEFT('Öğr.Gör. Ön Değ.'!C32,2)&REPT("*",3)&" "&MID('Öğr.Gör. Ön Değ.'!C32,FIND(" ",'Öğr.Gör. Ön Değ.'!C32)+1,2)&REPT("*",3))) ->  | D32: =IF('Öğr.Gör. Ön Değ.'!D32="","",IF(ISERR(FIND(" ",'Öğr.Gör. Ön Değ.'!D32))=TRUE,LEFT('Öğr.Gör. Ön Değ.'!D32,2)&REPT("*",3),LEFT('Öğr.Gör. Ön Değ.'!D32,2)&REPT("*",3)&" "&MID('Öğr.Gör. Ön Değ.'!D32,FIND(" ",'Öğr.Gör. Ön Değ.'!D32)+1,2)&REPT("*",3))) ->  | E32: =IF('Öğr.Gör. Ön Değ.'!E32="","",'Öğr.Gör. Ön Değ.'!E32) ->  | F32: =IF('Öğr.Gör. Ön Değ.'!F32="","",'Öğr.Gör. Ön Değ.'!F32) ->  | G32: =IF('Öğr.Gör. Ön Değ.'!G32="","",'Öğr.Gör. Ön Değ.'!G32) ->  | H32: =IF('Öğr.Gör. Ön Değ.'!H32="","",'Öğr.Gör. Ön Değ.'!H32) ->  | I32: =IF('Öğr.Gör. Ön Değ.'!I32="","",'Öğr.Gör. Ön Değ.'!I32) ->  | J32: =IF('Öğr.Gör. Ön Değ.'!J32="","",'Öğr.Gör. Ön Değ.'!J32) ->  | K32: =IF('Öğr.Gör. Ön Değ.'!K32="","",'Öğr.Gör. Ön Değ.'!K32) ->  | L32: =IF('Öğr.Gör. Ön Değ.'!L32="","",'Öğr.Gör. Ön Değ.'!L32) -> 
A33: =IF('Öğr.Gör. Ön Değ.'!A33="","",'Öğr.Gör. Ön Değ.'!A33) ->  | B33: =IF('Öğr.Gör. Ön Değ.'!B33="","",LEFT('Öğr.Gör. Ön Değ.'!B33,3)&REPT("*",4)&RIGHT('Öğr.Gör. Ön Değ.'!B33,2)) ->  | C33: =IF('Öğr.Gör. Ön Değ.'!C33="","",IF(ISERR(FIND(" ",'Öğr.Gör. Ön Değ.'!C33))=TRUE,LEFT('Öğr.Gör. Ön Değ.'!C33,2)&REPT("*",3),LEFT('Öğr.Gör. Ön Değ.'!C33,2)&REPT("*",3)&" "&MID('Öğr.Gör. Ön Değ.'!C33,FIND(" ",'Öğr.Gör. Ön Değ.'!C33)+1,2)&REPT("*",3))) ->  | D33: =IF('Öğr.Gör. Ön Değ.'!D33="","",IF(ISERR(FIND(" ",'Öğr.Gör. Ön Değ.'!D33))=TRUE,LEFT('Öğr.Gör. Ön Değ.'!D33,2)&REPT("*",3),LEFT('Öğr.Gör. Ön Değ.'!D33,2)&REPT("*",3)&" "&MID('Öğr.Gör. Ön Değ.'!D33,FIND(" ",'Öğr.Gör. Ön Değ.'!D33)+1,2)&REPT("*",3))) ->  | E33: =IF('Öğr.Gör. Ön Değ.'!E33="","",'Öğr.Gör. Ön Değ.'!E33) ->  | F33: =IF('Öğr.Gör. Ön Değ.'!F33="","",'Öğr.Gör. Ön Değ.'!F33) ->  | G33: =IF('Öğr.Gör. Ön Değ.'!G33="","",'Öğr.Gör. Ön Değ.'!G33) ->  | H33: =IF('Öğr.Gör. Ön Değ.'!H33="","",'Öğr.Gör. Ön Değ.'!H33) ->  | I33: =IF('Öğr.Gör. Ön Değ.'!I33="","",'Öğr.Gör. Ön Değ.'!I33) ->  | J33: =IF('Öğr.Gör. Ön Değ.'!J33="","",'Öğr.Gör. Ön Değ.'!J33) ->  | K33: =IF('Öğr.Gör. Ön Değ.'!K33="","",'Öğr.Gör. Ön Değ.'!K33) ->  | L33: =IF('Öğr.Gör. Ön Değ.'!L33="","",'Öğr.Gör. Ön Değ.'!L33) -> 
A34: =IF('Öğr.Gör. Ön Değ.'!A34="","",'Öğr.Gör. Ön Değ.'!A34) ->  | B34: =IF('Öğr.Gör. Ön Değ.'!B34="","",LEFT('Öğr.Gör. Ön Değ.'!B34,3)&REPT("*",4)&RIGHT('Öğr.Gör. Ön Değ.'!B34,2)) ->  | C34: =IF('Öğr.Gör. Ön Değ.'!C34="","",IF(ISERR(FIND(" ",'Öğr.Gör. Ön Değ.'!C34))=TRUE,LEFT('Öğr.Gör. Ön Değ.'!C34,2)&REPT("*",3),LEFT('Öğr.Gör. Ön Değ.'!C34,2)&REPT("*",3)&" "&MID('Öğr.Gör. Ön Değ.'!C34,FIND(" ",'Öğr.Gör. Ön Değ.'!C34)+1,2)&REPT("*",3))) ->  | D34: =IF('Öğr.Gör. Ön Değ.'!D34="","",IF(ISERR(FIND(" ",'Öğr.Gör. Ön Değ.'!D34))=TRUE,LEFT('Öğr.Gör. Ön Değ.'!D34,2)&REPT("*",3),LEFT('Öğr.Gör. Ön Değ.'!D34,2)&REPT("*",3)&" "&MID('Öğr.Gör. Ön Değ.'!D34,FIND(" ",'Öğr.Gör. Ön Değ.'!D34)+1,2)&REPT("*",3))) ->  | E34: =IF('Öğr.Gör. Ön Değ.'!E34="","",'Öğr.Gör. Ön Değ.'!E34) ->  | F34: =IF('Öğr.Gör. Ön Değ.'!F34="","",'Öğr.Gör. Ön Değ.'!F34) ->  | G34: =IF('Öğr.Gör. Ön Değ.'!G34="","",'Öğr.Gör. Ön Değ.'!G34) ->  | H34: =IF('Öğr.Gör. Ön Değ.'!H34="","",'Öğr.Gör. Ön Değ.'!H34) ->  | I34: =IF('Öğr.Gör. Ön Değ.'!I34="","",'Öğr.Gör. Ön Değ.'!I34) ->  | J34: =IF('Öğr.Gör. Ön Değ.'!J34="","",'Öğr.Gör. Ön Değ.'!J34) ->  | K34: =IF('Öğr.Gör. Ön Değ.'!K34="","",'Öğr.Gör. Ön Değ.'!K34) ->  | L34: =IF('Öğr.Gör. Ön Değ.'!L34="","",'Öğr.Gör. Ön Değ.'!L34) -> 
A35: =IF('Öğr.Gör. Ön Değ.'!A35="","",'Öğr.Gör. Ön Değ.'!A35) ->  | B35: =IF('Öğr.Gör. Ön Değ.'!B35="","",LEFT('Öğr.Gör. Ön Değ.'!B35,3)&REPT("*",4)&RIGHT('Öğr.Gör. Ön Değ.'!B35,2)) ->  | C35: =IF('Öğr.Gör. Ön Değ.'!C35="","",IF(ISERR(FIND(" ",'Öğr.Gör. Ön Değ.'!C35))=TRUE,LEFT('Öğr.Gör. Ön Değ.'!C35,2)&REPT("*",3),LEFT('Öğr.Gör. Ön Değ.'!C35,2)&REPT("*",3)&" "&MID('Öğr.Gör. Ön Değ.'!C35,FIND(" ",'Öğr.Gör. Ön Değ.'!C35)+1,2)&REPT("*",3))) ->  | D35: =IF('Öğr.Gör. Ön Değ.'!D35="","",IF(ISERR(FIND(" ",'Öğr.Gör. Ön Değ.'!D35))=TRUE,LEFT('Öğr.Gör. Ön Değ.'!D35,2)&REPT("*",3),LEFT('Öğr.Gör. Ön Değ.'!D35,2)&REPT("*",3)&" "&MID('Öğr.Gör. Ön Değ.'!D35,FIND(" ",'Öğr.Gör. Ön Değ.'!D35)+1,2)&REPT("*",3))) ->  | E35: =IF('Öğr.Gör. Ön Değ.'!E35="","",'Öğr.Gör. Ön Değ.'!E35) ->  | F35: =IF('Öğr.Gör. Ön Değ.'!F35="","",'Öğr.Gör. Ön Değ.'!F35) ->  | G35: =IF('Öğr.Gör. Ön Değ.'!G35="","",'Öğr.Gör. Ön Değ.'!G35) ->  | H35: =IF('Öğr.Gör. Ön Değ.'!H35="","",'Öğr.Gör. Ön Değ.'!H35) ->  | I35: =IF('Öğr.Gör. Ön Değ.'!I35="","",'Öğr.Gör. Ön Değ.'!I35) ->  | J35: =IF('Öğr.Gör. Ön Değ.'!J35="","",'Öğr.Gör. Ön Değ.'!J35) ->  | K35: =IF('Öğr.Gör. Ön Değ.'!K35="","",'Öğr.Gör. Ön Değ.'!K35) ->  | L35: =IF('Öğr.Gör. Ön Değ.'!L35="","",'Öğr.Gör. Ön Değ.'!L35) -> 
A36: =IF('Öğr.Gör. Ön Değ.'!A36="","",'Öğr.Gör. Ön Değ.'!A36) ->  | B36: =IF('Öğr.Gör. Ön Değ.'!B36="","",LEFT('Öğr.Gör. Ön Değ.'!B36,3)&REPT("*",4)&RIGHT('Öğr.Gör. Ön Değ.'!B36,2)) ->  | C36: =IF('Öğr.Gör. Ön Değ.'!C36="","",IF(ISERR(FIND(" ",'Öğr.Gör. Ön Değ.'!C36))=TRUE,LEFT('Öğr.Gör. Ön Değ.'!C36,2)&REPT("*",3),LEFT('Öğr.Gör. Ön Değ.'!C36,2)&REPT("*",3)&" "&MID('Öğr.Gör. Ön Değ.'!C36,FIND(" ",'Öğr.Gör. Ön Değ.'!C36)+1,2)&REPT("*",3))) ->  | D36: =IF('Öğr.Gör. Ön Değ.'!D36="","",IF(ISERR(FIND(" ",'Öğr.Gör. Ön Değ.'!D36))=TRUE,LEFT('Öğr.Gör. Ön Değ.'!D36,2)&REPT("*",3),LEFT('Öğr.Gör. Ön Değ.'!D36,2)&REPT("*",3)&" "&MID('Öğr.Gör. Ön Değ.'!D36,FIND(" ",'Öğr.Gör. Ön Değ.'!D36)+1,2)&REPT("*",3))) ->  | E36: =IF('Öğr.Gör. Ön Değ.'!E36="","",'Öğr.Gör. Ön Değ.'!E36) ->  | F36: =IF('Öğr.Gör. Ön Değ.'!F36="","",'Öğr.Gör. Ön Değ.'!F36) ->  | G36: =IF('Öğr.Gör. Ön Değ.'!G36="","",'Öğr.Gör. Ön Değ.'!G36) ->  | H36: =IF('Öğr.Gör. Ön Değ.'!H36="","",'Öğr.Gör. Ön Değ.'!H36) ->  | I36: =IF('Öğr.Gör. Ön Değ.'!I36="","",'Öğr.Gör. Ön Değ.'!I36) ->  | J36: =IF('Öğr.Gör. Ön Değ.'!J36="","",'Öğr.Gör. Ön Değ.'!J36) ->  | K36: =IF('Öğr.Gör. Ön Değ.'!K36="","",'Öğr.Gör. Ön Değ.'!K36) ->  | L36: =IF('Öğr.Gör. Ön Değ.'!L36="","",'Öğr.Gör. Ön Değ.'!L36) -> 
A37: =IF('Öğr.Gör. Ön Değ.'!A37="","",'Öğr.Gör. Ön Değ.'!A37) ->  | B37: =IF('Öğr.Gör. Ön Değ.'!B37="","",LEFT('Öğr.Gör. Ön Değ.'!B37,3)&REPT("*",4)&RIGHT('Öğr.Gör. Ön Değ.'!B37,2)) ->  | C37: =IF('Öğr.Gör. Ön Değ.'!C37="","",IF(ISERR(FIND(" ",'Öğr.Gör. Ön Değ.'!C37))=TRUE,LEFT('Öğr.Gör. Ön Değ.'!C37,2)&REPT("*",3),LEFT('Öğr.Gör. Ön Değ.'!C37,2)&REPT("*",3)&" "&MID('Öğr.Gör. Ön Değ.'!C37,FIND(" ",'Öğr.Gör. Ön Değ.'!C37)+1,2)&REPT("*",3))) ->  | D37: =IF('Öğr.Gör. Ön Değ.'!D37="","",IF(ISERR(FIND(" ",'Öğr.Gör. Ön Değ.'!D37))=TRUE,LEFT('Öğr.Gör. Ön Değ.'!D37,2)&REPT("*",3),LEFT('Öğr.Gör. Ön Değ.'!D37,2)&REPT("*",3)&" "&MID('Öğr.Gör. Ön Değ.'!D37,FIND(" ",'Öğr.Gör. Ön Değ.'!D37)+1,2)&REPT("*",3))) ->  | E37: =IF('Öğr.Gör. Ön Değ.'!E37="","",'Öğr.Gör. Ön Değ.'!E37) ->  | F37: =IF('Öğr.Gör. Ön Değ.'!F37="","",'Öğr.Gör. Ön Değ.'!F37) ->  | G37: =IF('Öğr.Gör. Ön Değ.'!G37="","",'Öğr.Gör. Ön Değ.'!G37) ->  | H37: =IF('Öğr.Gör. Ön Değ.'!H37="","",'Öğr.Gör. Ön Değ.'!H37) ->  | I37: =IF('Öğr.Gör. Ön Değ.'!I37="","",'Öğr.Gör. Ön Değ.'!I37) ->  | J37: =IF('Öğr.Gör. Ön Değ.'!J37="","",'Öğr.Gör. Ön Değ.'!J37) ->  | K37: =IF('Öğr.Gör. Ön Değ.'!K37="","",'Öğr.Gör. Ön Değ.'!K37) ->  | L37: =IF('Öğr.Gör. Ön Değ.'!L37="","",'Öğr.Gör. Ön Değ.'!L37) -> 
A38: =IF('Öğr.Gör. Ön Değ.'!A38="","",'Öğr.Gör. Ön Değ.'!A38) ->  | B38: =IF('Öğr.Gör. Ön Değ.'!B38="","",LEFT('Öğr.Gör. Ön Değ.'!B38,3)&REPT("*",4)&RIGHT('Öğr.Gör. Ön Değ.'!B38,2)) ->  | C38: =IF('Öğr.Gör. Ön Değ.'!C38="","",IF(ISERR(FIND(" ",'Öğr.Gör. Ön Değ.'!C38))=TRUE,LEFT('Öğr.Gör. Ön Değ.'!C38,2)&REPT("*",3),LEFT('Öğr.Gör. Ön Değ.'!C38,2)&REPT("*",3)&" "&MID('Öğr.Gör. Ön Değ.'!C38,FIND(" ",'Öğr.Gör. Ön Değ.'!C38)+1,2)&REPT("*",3))) ->  | D38: =IF('Öğr.Gör. Ön Değ.'!D38="","",IF(ISERR(FIND(" ",'Öğr.Gör. Ön Değ.'!D38))=TRUE,LEFT('Öğr.Gör. Ön Değ.'!D38,2)&REPT("*",3),LEFT('Öğr.Gör. Ön Değ.'!D38,2)&REPT("*",3)&" "&MID('Öğr.Gör. Ön Değ.'!D38,FIND(" ",'Öğr.Gör. Ön Değ.'!D38)+1,2)&REPT("*",3))) ->  | E38: =IF('Öğr.Gör. Ön Değ.'!E38="","",'Öğr.Gör. Ön Değ.'!E38) ->  | F38: =IF('Öğr.Gör. Ön Değ.'!F38="","",'Öğr.Gör. Ön Değ.'!F38) ->  | G38: =IF('Öğr.Gör. Ön Değ.'!G38="","",'Öğr.Gör. Ön Değ.'!G38) ->  | H38: =IF('Öğr.Gör. Ön Değ.'!H38="","",'Öğr.Gör. Ön Değ.'!H38) ->  | I38: =IF('Öğr.Gör. Ön Değ.'!I38="","",'Öğr.Gör. Ön Değ.'!I38) ->  | J38: =IF('Öğr.Gör. Ön Değ.'!J38="","",'Öğr.Gör. Ön Değ.'!J38) ->  | K38: =IF('Öğr.Gör. Ön Değ.'!K38="","",'Öğr.Gör. Ön Değ.'!K38) ->  | L38: =IF('Öğr.Gör. Ön Değ.'!L38="","",'Öğr.Gör. Ön Değ.'!L38) -> 
A39: =IF('Öğr.Gör. Ön Değ.'!A39="","",'Öğr.Gör. Ön Değ.'!A39) ->  | B39: =IF('Öğr.Gör. Ön Değ.'!B39="","",LEFT('Öğr.Gör. Ön Değ.'!B39,3)&REPT("*",4)&RIGHT('Öğr.Gör. Ön Değ.'!B39,2)) ->  | C39: =IF('Öğr.Gör. Ön Değ.'!C39="","",IF(ISERR(FIND(" ",'Öğr.Gör. Ön Değ.'!C39))=TRUE,LEFT('Öğr.Gör. Ön Değ.'!C39,2)&REPT("*",3),LEFT('Öğr.Gör. Ön Değ.'!C39,2)&REPT("*",3)&" "&MID('Öğr.Gör. Ön Değ.'!C39,FIND(" ",'Öğr.Gör. Ön Değ.'!C39)+1,2)&REPT("*",3))) ->  | D39: =IF('Öğr.Gör. Ön Değ.'!D39="","",IF(ISERR(FIND(" ",'Öğr.Gör. Ön Değ.'!D39))=TRUE,LEFT('Öğr.Gör. Ön Değ.'!D39,2)&REPT("*",3),LEFT('Öğr.Gör. Ön Değ.'!D39,2)&REPT("*",3)&" "&MID('Öğr.Gör. Ön Değ.'!D39,FIND(" ",'Öğr.Gör. Ön Değ.'!D39)+1,2)&REPT("*",3))) ->  | E39: =IF('Öğr.Gör. Ön Değ.'!E39="","",'Öğr.Gör. Ön Değ.'!E39) ->  | F39: =IF('Öğr.Gör. Ön Değ.'!F39="","",'Öğr.Gör. Ön Değ.'!F39) ->  | G39: =IF('Öğr.Gör. Ön Değ.'!G39="","",'Öğr.Gör. Ön Değ.'!G39) ->  | H39: =IF('Öğr.Gör. Ön Değ.'!H39="","",'Öğr.Gör. Ön Değ.'!H39) ->  | I39: =IF('Öğr.Gör. Ön Değ.'!I39="","",'Öğr.Gör. Ön Değ.'!I39) ->  | J39: =IF('Öğr.Gör. Ön Değ.'!J39="","",'Öğr.Gör. Ön Değ.'!J39) ->  | K39: =IF('Öğr.Gör. Ön Değ.'!K39="","",'Öğr.Gör. Ön Değ.'!K39) ->  | L39: =IF('Öğr.Gör. Ön Değ.'!L39="","",'Öğr.Gör. Ön Değ.'!L39) -> 
A40: =IF('Öğr.Gör. Ön Değ.'!A40="","",'Öğr.Gör. Ön Değ.'!A40) ->  | B40: =IF('Öğr.Gör. Ön Değ.'!B40="","",LEFT('Öğr.Gör. Ön Değ.'!B40,3)&REPT("*",4)&RIGHT('Öğr.Gör. Ön Değ.'!B40,2)) ->  | C40: =IF('Öğr.Gör. Ön Değ.'!C40="","",IF(ISERR(FIND(" ",'Öğr.Gör. Ön Değ.'!C40))=TRUE,LEFT('Öğr.Gör. Ön Değ.'!C40,2)&REPT("*",3),LEFT('Öğr.Gör. Ön Değ.'!C40,2)&REPT("*",3)&" "&MID('Öğr.Gör. Ön Değ.'!C40,FIND(" ",'Öğr.Gör. Ön Değ.'!C40)+1,2)&REPT("*",3))) ->  | D40: =IF('Öğr.Gör. Ön Değ.'!D40="","",IF(ISERR(FIND(" ",'Öğr.Gör. Ön Değ.'!D40))=TRUE,LEFT('Öğr.Gör. Ön Değ.'!D40,2)&REPT("*",3),LEFT('Öğr.Gör. Ön Değ.'!D40,2)&REPT("*",3)&" "&MID('Öğr.Gör. Ön Değ.'!D40,FIND(" ",'Öğr.Gör. Ön Değ.'!D40)+1,2)&REPT("*",3))) ->  | E40: =IF('Öğr.Gör. Ön Değ.'!E40="","",'Öğr.Gör. Ön Değ.'!E40) ->  | F40: =IF('Öğr.Gör. Ön Değ.'!F40="","",'Öğr.Gör. Ön Değ.'!F40) ->  | G40: =IF('Öğr.Gör. Ön Değ.'!G40="","",'Öğr.Gör. Ön Değ.'!G40) ->  | H40: =IF('Öğr.Gör. Ön Değ.'!H40="","",'Öğr.Gör. Ön Değ.'!H40) ->  | I40: =IF('Öğr.Gör. Ön Değ.'!I40="","",'Öğr.Gör. Ön Değ.'!I40) ->  | J40: =IF('Öğr.Gör. Ön Değ.'!J40="","",'Öğr.Gör. Ön Değ.'!J40) ->  | K40: =IF('Öğr.Gör. Ön Değ.'!K40="","",'Öğr.Gör. Ön Değ.'!K40) ->  | L40: =IF('Öğr.Gör. Ön Değ.'!L40="","",'Öğr.Gör. Ön Değ.'!L40) -> 
A41: =IF('Öğr.Gör. Ön Değ.'!A41="","",'Öğr.Gör. Ön Değ.'!A41) ->  | B41: =IF('Öğr.Gör. Ön Değ.'!B41="","",LEFT('Öğr.Gör. Ön Değ.'!B41,3)&REPT("*",4)&RIGHT('Öğr.Gör. Ön Değ.'!B41,2)) ->  | C41: =IF('Öğr.Gör. Ön Değ.'!C41="","",IF(ISERR(FIND(" ",'Öğr.Gör. Ön Değ.'!C41))=TRUE,LEFT('Öğr.Gör. Ön Değ.'!C41,2)&REPT("*",3),LEFT('Öğr.Gör. Ön Değ.'!C41,2)&REPT("*",3)&" "&MID('Öğr.Gör. Ön Değ.'!C41,FIND(" ",'Öğr.Gör. Ön Değ.'!C41)+1,2)&REPT("*",3))) ->  | D41: =IF('Öğr.Gör. Ön Değ.'!D41="","",IF(ISERR(FIND(" ",'Öğr.Gör. Ön Değ.'!D41))=TRUE,LEFT('Öğr.Gör. Ön Değ.'!D41,2)&REPT("*",3),LEFT('Öğr.Gör. Ön Değ.'!D41,2)&REPT("*",3)&" "&MID('Öğr.Gör. Ön Değ.'!D41,FIND(" ",'Öğr.Gör. Ön Değ.'!D41)+1,2)&REPT("*",3))) ->  | E41: =IF('Öğr.Gör. Ön Değ.'!E41="","",'Öğr.Gör. Ön Değ.'!E41) ->  | F41: =IF('Öğr.Gör. Ön Değ.'!F41="","",'Öğr.Gör. Ön Değ.'!F41) ->  | G41: =IF('Öğr.Gör. Ön Değ.'!G41="","",'Öğr.Gör. Ön Değ.'!G41) ->  | H41: =IF('Öğr.Gör. Ön Değ.'!H41="","",'Öğr.Gör. Ön Değ.'!H41) ->  | I41: =IF('Öğr.Gör. Ön Değ.'!I41="","",'Öğr.Gör. Ön Değ.'!I41) ->  | J41: =IF('Öğr.Gör. Ön Değ.'!J41="","",'Öğr.Gör. Ön Değ.'!J41) ->  | K41: =IF('Öğr.Gör. Ön Değ.'!K41="","",'Öğr.Gör. Ön Değ.'!K41) ->  | L41: =IF('Öğr.Gör. Ön Değ.'!L41="","",'Öğr.Gör. Ön Değ.'!L41) -> 
A42: =IF('Öğr.Gör. Ön Değ.'!A42="","",'Öğr.Gör. Ön Değ.'!A42) ->  | B42: =IF('Öğr.Gör. Ön Değ.'!B42="","",LEFT('Öğr.Gör. Ön Değ.'!B42,3)&REPT("*",4)&RIGHT('Öğr.Gör. Ön Değ.'!B42,2)) ->  | C42: =IF('Öğr.Gör. Ön Değ.'!C42="","",IF(ISERR(FIND(" ",'Öğr.Gör. Ön Değ.'!C42))=TRUE,LEFT('Öğr.Gör. Ön Değ.'!C42,2)&REPT("*",3),LEFT('Öğr.Gör. Ön Değ.'!C42,2)&REPT("*",3)&" "&MID('Öğr.Gör. Ön Değ.'!C42,FIND(" ",'Öğr.Gör. Ön Değ.'!C42)+1,2)&REPT("*",3))) ->  | D42: =IF('Öğr.Gör. Ön Değ.'!D42="","",IF(ISERR(FIND(" ",'Öğr.Gör. Ön Değ.'!D42))=TRUE,LEFT('Öğr.Gör. Ön Değ.'!D42,2)&REPT("*",3),LEFT('Öğr.Gör. Ön Değ.'!D42,2)&REPT("*",3)&" "&MID('Öğr.Gör. Ön Değ.'!D42,FIND(" ",'Öğr.Gör. Ön Değ.'!D42)+1,2)&REPT("*",3))) ->  | E42: =IF('Öğr.Gör. Ön Değ.'!E42="","",'Öğr.Gör. Ön Değ.'!E42) ->  | F42: =IF('Öğr.Gör. Ön Değ.'!F42="","",'Öğr.Gör. Ön Değ.'!F42) ->  | G42: =IF('Öğr.Gör. Ön Değ.'!G42="","",'Öğr.Gör. Ön Değ.'!G42) ->  | H42: =IF('Öğr.Gör. Ön Değ.'!H42="","",'Öğr.Gör. Ön Değ.'!H42) ->  | I42: =IF('Öğr.Gör. Ön Değ.'!I42="","",'Öğr.Gör. Ön Değ.'!I42) ->  | J42: =IF('Öğr.Gör. Ön Değ.'!J42="","",'Öğr.Gör. Ön Değ.'!J42) ->  | K42: =IF('Öğr.Gör. Ön Değ.'!K42="","",'Öğr.Gör. Ön Değ.'!K42) ->  | L42: =IF('Öğr.Gör. Ön Değ.'!L42="","",'Öğr.Gör. Ön Değ.'!L42) -> 
A43: =IF('Öğr.Gör. Ön Değ.'!A43="","",'Öğr.Gör. Ön Değ.'!A43) ->  | B43: =IF('Öğr.Gör. Ön Değ.'!B43="","",LEFT('Öğr.Gör. Ön Değ.'!B43,3)&REPT("*",4)&RIGHT('Öğr.Gör. Ön Değ.'!B43,2)) ->  | C43: =IF('Öğr.Gör. Ön Değ.'!C43="","",IF(ISERR(FIND(" ",'Öğr.Gör. Ön Değ.'!C43))=TRUE,LEFT('Öğr.Gör. Ön Değ.'!C43,2)&REPT("*",3),LEFT('Öğr.Gör. Ön Değ.'!C43,2)&REPT("*",3)&" "&MID('Öğr.Gör. Ön Değ.'!C43,FIND(" ",'Öğr.Gör. Ön Değ.'!C43)+1,2)&REPT("*",3))) ->  | D43: =IF('Öğr.Gör. Ön Değ.'!D43="","",IF(ISERR(FIND(" ",'Öğr.Gör. Ön Değ.'!D43))=TRUE,LEFT('Öğr.Gör. Ön Değ.'!D43,2)&REPT("*",3),LEFT('Öğr.Gör. Ön Değ.'!D43,2)&REPT("*",3)&" "&MID('Öğr.Gör. Ön Değ.'!D43,FIND(" ",'Öğr.Gör. Ön Değ.'!D43)+1,2)&REPT("*",3))) ->  | E43: =IF('Öğr.Gör. Ön Değ.'!E43="","",'Öğr.Gör. Ön Değ.'!E43) ->  | F43: =IF('Öğr.Gör. Ön Değ.'!F43="","",'Öğr.Gör. Ön Değ.'!F43) ->  | G43: =IF('Öğr.Gör. Ön Değ.'!G43="","",'Öğr.Gör. Ön Değ.'!G43) ->  | H43: =IF('Öğr.Gör. Ön Değ.'!H43="","",'Öğr.Gör. Ön Değ.'!H43) ->  | I43: =IF('Öğr.Gör. Ön Değ.'!I43="","",'Öğr.Gör. Ön Değ.'!I43) ->  | J43: =IF('Öğr.Gör. Ön Değ.'!J43="","",'Öğr.Gör. Ön Değ.'!J43) ->  | K43: =IF('Öğr.Gör. Ön Değ.'!K43="","",'Öğr.Gör. Ön Değ.'!K43) ->  | L43: =IF('Öğr.Gör. Ön Değ.'!L43="","",'Öğr.Gör. Ön Değ.'!L43) -> 
A44: =IF('Öğr.Gör. Ön Değ.'!A44="","",'Öğr.Gör. Ön Değ.'!A44) ->  | B44: =IF('Öğr.Gör. Ön Değ.'!B44="","",LEFT('Öğr.Gör. Ön Değ.'!B44,3)&REPT("*",4)&RIGHT('Öğr.Gör. Ön Değ.'!B44,2)) ->  | C44: =IF('Öğr.Gör. Ön Değ.'!C44="","",IF(ISERR(FIND(" ",'Öğr.Gör. Ön Değ.'!C44))=TRUE,LEFT('Öğr.Gör. Ön Değ.'!C44,2)&REPT("*",3),LEFT('Öğr.Gör. Ön Değ.'!C44,2)&REPT("*",3)&" "&MID('Öğr.Gör. Ön Değ.'!C44,FIND(" ",'Öğr.Gör. Ön Değ.'!C44)+1,2)&REPT("*",3))) ->  | D44: =IF('Öğr.Gör. Ön Değ.'!D44="","",IF(ISERR(FIND(" ",'Öğr.Gör. Ön Değ.'!D44))=TRUE,LEFT('Öğr.Gör. Ön Değ.'!D44,2)&REPT("*",3),LEFT('Öğr.Gör. Ön Değ.'!D44,2)&REPT("*",3)&" "&MID('Öğr.Gör. Ön Değ.'!D44,FIND(" ",'Öğr.Gör. Ön Değ.'!D44)+1,2)&REPT("*",3))) ->  | E44: =IF('Öğr.Gör. Ön Değ.'!E44="","",'Öğr.Gör. Ön Değ.'!E44) ->  | F44: =IF('Öğr.Gör. Ön Değ.'!F44="","",'Öğr.Gör. Ön Değ.'!F44) ->  | G44: =IF('Öğr.Gör. Ön Değ.'!G44="","",'Öğr.Gör. Ön Değ.'!G44) ->  | H44: =IF('Öğr.Gör. Ön Değ.'!H44="","",'Öğr.Gör. Ön Değ.'!H44) ->  | I44: =IF('Öğr.Gör. Ön Değ.'!I44="","",'Öğr.Gör. Ön Değ.'!I44) ->  | J44: =IF('Öğr.Gör. Ön Değ.'!J44="","",'Öğr.Gör. Ön Değ.'!J44) ->  | K44: =IF('Öğr.Gör. Ön Değ.'!K44="","",'Öğr.Gör. Ön Değ.'!K44) ->  | L44: =IF('Öğr.Gör. Ön Değ.'!L44="","",'Öğr.Gör. Ön Değ.'!L44) -> 
A45: =IF('Öğr.Gör. Ön Değ.'!A45="","",'Öğr.Gör. Ön Değ.'!A45) ->  | B45: =IF('Öğr.Gör. Ön Değ.'!B45="","",LEFT('Öğr.Gör. Ön Değ.'!B45,3)&REPT("*",4)&RIGHT('Öğr.Gör. Ön Değ.'!B45,2)) ->  | C45: =IF('Öğr.Gör. Ön Değ.'!C45="","",IF(ISERR(FIND(" ",'Öğr.Gör. Ön Değ.'!C45))=TRUE,LEFT('Öğr.Gör. Ön Değ.'!C45,2)&REPT("*",3),LEFT('Öğr.Gör. Ön Değ.'!C45,2)&REPT("*",3)&" "&MID('Öğr.Gör. Ön Değ.'!C45,FIND(" ",'Öğr.Gör. Ön Değ.'!C45)+1,2)&REPT("*",3))) ->  | D45: =IF('Öğr.Gör. Ön Değ.'!D45="","",IF(ISERR(FIND(" ",'Öğr.Gör. Ön Değ.'!D45))=TRUE,LEFT('Öğr.Gör. Ön Değ.'!D45,2)&REPT("*",3),LEFT('Öğr.Gör. Ön Değ.'!D45,2)&REPT("*",3)&" "&MID('Öğr.Gör. Ön Değ.'!D45,FIND(" ",'Öğr.Gör. Ön Değ.'!D45)+1,2)&REPT("*",3))) ->  | E45: =IF('Öğr.Gör. Ön Değ.'!E45="","",'Öğr.Gör. Ön Değ.'!E45) ->  | F45: =IF('Öğr.Gör. Ön Değ.'!F45="","",'Öğr.Gör. Ön Değ.'!F45) ->  | G45: =IF('Öğr.Gör. Ön Değ.'!G45="","",'Öğr.Gör. Ön Değ.'!G45) ->  | H45: =IF('Öğr.Gör. Ön Değ.'!H45="","",'Öğr.Gör. Ön Değ.'!H45) ->  | I45: =IF('Öğr.Gör. Ön Değ.'!I45="","",'Öğr.Gör. Ön Değ.'!I45) ->  | J45: =IF('Öğr.Gör. Ön Değ.'!J45="","",'Öğr.Gör. Ön Değ.'!J45) ->  | K45: =IF('Öğr.Gör. Ön Değ.'!K45="","",'Öğr.Gör. Ön Değ.'!K45) ->  | L45: =IF('Öğr.Gör. Ön Değ.'!L45="","",'Öğr.Gör. Ön Değ.'!L45) -> 
A46: =IF('Öğr.Gör. Ön Değ.'!A46="","",'Öğr.Gör. Ön Değ.'!A46) ->  | B46: =IF('Öğr.Gör. Ön Değ.'!B46="","",LEFT('Öğr.Gör. Ön Değ.'!B46,3)&REPT("*",4)&RIGHT('Öğr.Gör. Ön Değ.'!B46,2)) ->  | C46: =IF('Öğr.Gör. Ön Değ.'!C46="","",IF(ISERR(FIND(" ",'Öğr.Gör. Ön Değ.'!C46))=TRUE,LEFT('Öğr.Gör. Ön Değ.'!C46,2)&REPT("*",3),LEFT('Öğr.Gör. Ön Değ.'!C46,2)&REPT("*",3)&" "&MID('Öğr.Gör. Ön Değ.'!C46,FIND(" ",'Öğr.Gör. Ön Değ.'!C46)+1,2)&REPT("*",3))) ->  | D46: =IF('Öğr.Gör. Ön Değ.'!D46="","",IF(ISERR(FIND(" ",'Öğr.Gör. Ön Değ.'!D46))=TRUE,LEFT('Öğr.Gör. Ön Değ.'!D46,2)&REPT("*",3),LEFT('Öğr.Gör. Ön Değ.'!D46,2)&REPT("*",3)&" "&MID('Öğr.Gör. Ön Değ.'!D46,FIND(" ",'Öğr.Gör. Ön Değ.'!D46)+1,2)&REPT("*",3))) ->  | E46: =IF('Öğr.Gör. Ön Değ.'!E46="","",'Öğr.Gör. Ön Değ.'!E46) ->  | F46: =IF('Öğr.Gör. Ön Değ.'!F46="","",'Öğr.Gör. Ön Değ.'!F46) ->  | G46: =IF('Öğr.Gör. Ön Değ.'!G46="","",'Öğr.Gör. Ön Değ.'!G46) ->  | H46: =IF('Öğr.Gör. Ön Değ.'!H46="","",'Öğr.Gör. Ön Değ.'!H46) ->  | I46: =IF('Öğr.Gör. Ön Değ.'!I46="","",'Öğr.Gör. Ön Değ.'!I46) ->  | J46: =IF('Öğr.Gör. Ön Değ.'!J46="","",'Öğr.Gör. Ön Değ.'!J46) ->  | K46: =IF('Öğr.Gör. Ön Değ.'!K46="","",'Öğr.Gör. Ön Değ.'!K46) ->  | L46: =IF('Öğr.Gör. Ön Değ.'!L46="","",'Öğr.Gör. Ön Değ.'!L46) -> 
A47: =IF('Öğr.Gör. Ön Değ.'!A47="","",'Öğr.Gör. Ön Değ.'!A47) ->  | B47: =IF('Öğr.Gör. Ön Değ.'!B47="","",LEFT('Öğr.Gör. Ön Değ.'!B47,3)&REPT("*",4)&RIGHT('Öğr.Gör. Ön Değ.'!B47,2)) ->  | C47: =IF('Öğr.Gör. Ön Değ.'!C47="","",IF(ISERR(FIND(" ",'Öğr.Gör. Ön Değ.'!C47))=TRUE,LEFT('Öğr.Gör. Ön Değ.'!C47,2)&REPT("*",3),LEFT('Öğr.Gör. Ön Değ.'!C47,2)&REPT("*",3)&" "&MID('Öğr.Gör. Ön Değ.'!C47,FIND(" ",'Öğr.Gör. Ön Değ.'!C47)+1,2)&REPT("*",3))) ->  | D47: =IF('Öğr.Gör. Ön Değ.'!D47="","",IF(ISERR(FIND(" ",'Öğr.Gör. Ön Değ.'!D47))=TRUE,LEFT('Öğr.Gör. Ön Değ.'!D47,2)&REPT("*",3),LEFT('Öğr.Gör. Ön Değ.'!D47,2)&REPT("*",3)&" "&MID('Öğr.Gör. Ön Değ.'!D47,FIND(" ",'Öğr.Gör. Ön Değ.'!D47)+1,2)&REPT("*",3))) ->  | E47: =IF('Öğr.Gör. Ön Değ.'!E47="","",'Öğr.Gör. Ön Değ.'!E47) ->  | F47: =IF('Öğr.Gör. Ön Değ.'!F47="","",'Öğr.Gör. Ön Değ.'!F47) ->  | G47: =IF('Öğr.Gör. Ön Değ.'!G47="","",'Öğr.Gör. Ön Değ.'!G47) ->  | H47: =IF('Öğr.Gör. Ön Değ.'!H47="","",'Öğr.Gör. Ön Değ.'!H47) ->  | I47: =IF('Öğr.Gör. Ön Değ.'!I47="","",'Öğr.Gör. Ön Değ.'!I47) ->  | J47: =IF('Öğr.Gör. Ön Değ.'!J47="","",'Öğr.Gör. Ön Değ.'!J47) ->  | K47: =IF('Öğr.Gör. Ön Değ.'!K47="","",'Öğr.Gör. Ön Değ.'!K47) ->  | L47: =IF('Öğr.Gör. Ön Değ.'!L47="","",'Öğr.Gör. Ön Değ.'!L47) -> 
A48: =IF('Öğr.Gör. Ön Değ.'!A48="","",'Öğr.Gör. Ön Değ.'!A48) ->  | B48: =IF('Öğr.Gör. Ön Değ.'!B48="","",LEFT('Öğr.Gör. Ön Değ.'!B48,3)&REPT("*",4)&RIGHT('Öğr.Gör. Ön Değ.'!B48,2)) ->  | C48: =IF('Öğr.Gör. Ön Değ.'!C48="","",IF(ISERR(FIND(" ",'Öğr.Gör. Ön Değ.'!C48))=TRUE,LEFT('Öğr.Gör. Ön Değ.'!C48,2)&REPT("*",3),LEFT('Öğr.Gör. Ön Değ.'!C48,2)&REPT("*",3)&" "&MID('Öğr.Gör. Ön Değ.'!C48,FIND(" ",'Öğr.Gör. Ön Değ.'!C48)+1,2)&REPT("*",3))) ->  | D48: =IF('Öğr.Gör. Ön Değ.'!D48="","",IF(ISERR(FIND(" ",'Öğr.Gör. Ön Değ.'!D48))=TRUE,LEFT('Öğr.Gör. Ön Değ.'!D48,2)&REPT("*",3),LEFT('Öğr.Gör. Ön Değ.'!D48,2)&REPT("*",3)&" "&MID('Öğr.Gör. Ön Değ.'!D48,FIND(" ",'Öğr.Gör. Ön Değ.'!D48)+1,2)&REPT("*",3))) ->  | E48: =IF('Öğr.Gör. Ön Değ.'!E48="","",'Öğr.Gör. Ön Değ.'!E48) ->  | F48: =IF('Öğr.Gör. Ön Değ.'!F48="","",'Öğr.Gör. Ön Değ.'!F48) ->  | G48: =IF('Öğr.Gör. Ön Değ.'!G48="","",'Öğr.Gör. Ön Değ.'!G48) ->  | H48: =IF('Öğr.Gör. Ön Değ.'!H48="","",'Öğr.Gör. Ön Değ.'!H48) ->  | I48: =IF('Öğr.Gör. Ön Değ.'!I48="","",'Öğr.Gör. Ön Değ.'!I48) ->  | J48: =IF('Öğr.Gör. Ön Değ.'!J48="","",'Öğr.Gör. Ön Değ.'!J48) ->  | K48: =IF('Öğr.Gör. Ön Değ.'!K48="","",'Öğr.Gör. Ön Değ.'!K48) ->  | L48: =IF('Öğr.Gör. Ön Değ.'!L48="","",'Öğr.Gör. Ön Değ.'!L48) -> 
A49: =IF('Öğr.Gör. Ön Değ.'!A49="","",'Öğr.Gör. Ön Değ.'!A49) ->  | B49: =IF('Öğr.Gör. Ön Değ.'!B49="","",LEFT('Öğr.Gör. Ön Değ.'!B49,3)&REPT("*",4)&RIGHT('Öğr.Gör. Ön Değ.'!B49,2)) ->  | C49: =IF('Öğr.Gör. Ön Değ.'!C49="","",IF(ISERR(FIND(" ",'Öğr.Gör. Ön Değ.'!C49))=TRUE,LEFT('Öğr.Gör. Ön Değ.'!C49,2)&REPT("*",3),LEFT('Öğr.Gör. Ön Değ.'!C49,2)&REPT("*",3)&" "&MID('Öğr.Gör. Ön Değ.'!C49,FIND(" ",'Öğr.Gör. Ön Değ.'!C49)+1,2)&REPT("*",3))) ->  | D49: =IF('Öğr.Gör. Ön Değ.'!D49="","",IF(ISERR(FIND(" ",'Öğr.Gör. Ön Değ.'!D49))=TRUE,LEFT('Öğr.Gör. Ön Değ.'!D49,2)&REPT("*",3),LEFT('Öğr.Gör. Ön Değ.'!D49,2)&REPT("*",3)&" "&MID('Öğr.Gör. Ön Değ.'!D49,FIND(" ",'Öğr.Gör. Ön Değ.'!D49)+1,2)&REPT("*",3))) ->  | E49: =IF('Öğr.Gör. Ön Değ.'!E49="","",'Öğr.Gör. Ön Değ.'!E49) ->  | F49: =IF('Öğr.Gör. Ön Değ.'!F49="","",'Öğr.Gör. Ön Değ.'!F49) ->  | G49: =IF('Öğr.Gör. Ön Değ.'!G49="","",'Öğr.Gör. Ön Değ.'!G49) ->  | H49: =IF('Öğr.Gör. Ön Değ.'!H49="","",'Öğr.Gör. Ön Değ.'!H49) ->  | I49: =IF('Öğr.Gör. Ön Değ.'!I49="","",'Öğr.Gör. Ön Değ.'!I49) ->  | J49: =IF('Öğr.Gör. Ön Değ.'!J49="","",'Öğr.Gör. Ön Değ.'!J49) ->  | K49: =IF('Öğr.Gör. Ön Değ.'!K49="","",'Öğr.Gör. Ön Değ.'!K49) ->  | L49: =IF('Öğr.Gör. Ön Değ.'!L49="","",'Öğr.Gör. Ön Değ.'!L49) -> 
A50: =IF('Öğr.Gör. Ön Değ.'!A50="","",'Öğr.Gör. Ön Değ.'!A50) ->  | B50: =IF('Öğr.Gör. Ön Değ.'!B50="","",LEFT('Öğr.Gör. Ön Değ.'!B50,3)&REPT("*",4)&RIGHT('Öğr.Gör. Ön Değ.'!B50,2)) ->  | C50: =IF('Öğr.Gör. Ön Değ.'!C50="","",IF(ISERR(FIND(" ",'Öğr.Gör. Ön Değ.'!C50))=TRUE,LEFT('Öğr.Gör. Ön Değ.'!C50,2)&REPT("*",3),LEFT('Öğr.Gör. Ön Değ.'!C50,2)&REPT("*",3)&" "&MID('Öğr.Gör. Ön Değ.'!C50,FIND(" ",'Öğr.Gör. Ön Değ.'!C50)+1,2)&REPT("*",3))) ->  | D50: =IF('Öğr.Gör. Ön Değ.'!D50="","",IF(ISERR(FIND(" ",'Öğr.Gör. Ön Değ.'!D50))=TRUE,LEFT('Öğr.Gör. Ön Değ.'!D50,2)&REPT("*",3),LEFT('Öğr.Gör. Ön Değ.'!D50,2)&REPT("*",3)&" "&MID('Öğr.Gör. Ön Değ.'!D50,FIND(" ",'Öğr.Gör. Ön Değ.'!D50)+1,2)&REPT("*",3))) ->  | E50: =IF('Öğr.Gör. Ön Değ.'!E50="","",'Öğr.Gör. Ön Değ.'!E50) ->  | F50: =IF('Öğr.Gör. Ön Değ.'!F50="","",'Öğr.Gör. Ön Değ.'!F50) ->  | G50: =IF('Öğr.Gör. Ön Değ.'!G50="","",'Öğr.Gör. Ön Değ.'!G50) ->  | H50: =IF('Öğr.Gör. Ön Değ.'!H50="","",'Öğr.Gör. Ön Değ.'!H50) ->  | I50: =IF('Öğr.Gör. Ön Değ.'!I50="","",'Öğr.Gör. Ön Değ.'!I50) ->  | J50: =IF('Öğr.Gör. Ön Değ.'!J50="","",'Öğr.Gör. Ön Değ.'!J50) ->  | K50: =IF('Öğr.Gör. Ön Değ.'!K50="","",'Öğr.Gör. Ön Değ.'!K50) ->  | L50: =IF('Öğr.Gör. Ön Değ.'!L50="","",'Öğr.Gör. Ön Değ.'!L50) -> 
A51: =IF('Öğr.Gör. Ön Değ.'!A51="","",'Öğr.Gör. Ön Değ.'!A51) ->  | B51: =IF('Öğr.Gör. Ön Değ.'!B51="","",LEFT('Öğr.Gör. Ön Değ.'!B51,3)&REPT("*",4)&RIGHT('Öğr.Gör. Ön Değ.'!B51,2)) ->  | C51: =IF('Öğr.Gör. Ön Değ.'!C51="","",IF(ISERR(FIND(" ",'Öğr.Gör. Ön Değ.'!C51))=TRUE,LEFT('Öğr.Gör. Ön Değ.'!C51,2)&REPT("*",3),LEFT('Öğr.Gör. Ön Değ.'!C51,2)&REPT("*",3)&" "&MID('Öğr.Gör. Ön Değ.'!C51,FIND(" ",'Öğr.Gör. Ön Değ.'!C51)+1,2)&REPT("*",3))) ->  | D51: =IF('Öğr.Gör. Ön Değ.'!D51="","",IF(ISERR(FIND(" ",'Öğr.Gör. Ön Değ.'!D51))=TRUE,LEFT('Öğr.Gör. Ön Değ.'!D51,2)&REPT("*",3),LEFT('Öğr.Gör. Ön Değ.'!D51,2)&REPT("*",3)&" "&MID('Öğr.Gör. Ön Değ.'!D51,FIND(" ",'Öğr.Gör. Ön Değ.'!D51)+1,2)&REPT("*",3))) ->  | E51: =IF('Öğr.Gör. Ön Değ.'!E51="","",'Öğr.Gör. Ön Değ.'!E51) ->  | F51: =IF('Öğr.Gör. Ön Değ.'!F51="","",'Öğr.Gör. Ön Değ.'!F51) ->  | G51: =IF('Öğr.Gör. Ön Değ.'!G51="","",'Öğr.Gör. Ön Değ.'!G51) ->  | H51: =IF('Öğr.Gör. Ön Değ.'!H51="","",'Öğr.Gör. Ön Değ.'!H51) ->  | I51: =IF('Öğr.Gör. Ön Değ.'!I51="","",'Öğr.Gör. Ön Değ.'!I51) ->  | J51: =IF('Öğr.Gör. Ön Değ.'!J51="","",'Öğr.Gör. Ön Değ.'!J51) ->  | K51: =IF('Öğr.Gör. Ön Değ.'!K51="","",'Öğr.Gör. Ön Değ.'!K51) ->  | L51: =IF('Öğr.Gör. Ön Değ.'!L51="","",'Öğr.Gör. Ön Değ.'!L51) -> 
A52: =IF('Öğr.Gör. Ön Değ.'!A52="","",'Öğr.Gör. Ön Değ.'!A52) ->  | B52: =IF('Öğr.Gör. Ön Değ.'!B52="","",LEFT('Öğr.Gör. Ön Değ.'!B52,3)&REPT("*",4)&RIGHT('Öğr.Gör. Ön Değ.'!B52,2)) ->  | C52: =IF('Öğr.Gör. Ön Değ.'!C52="","",IF(ISERR(FIND(" ",'Öğr.Gör. Ön Değ.'!C52))=TRUE,LEFT('Öğr.Gör. Ön Değ.'!C52,2)&REPT("*",3),LEFT('Öğr.Gör. Ön Değ.'!C52,2)&REPT("*",3)&" "&MID('Öğr.Gör. Ön Değ.'!C52,FIND(" ",'Öğr.Gör. Ön Değ.'!C52)+1,2)&REPT("*",3))) ->  | D52: =IF('Öğr.Gör. Ön Değ.'!D52="","",IF(ISERR(FIND(" ",'Öğr.Gör. Ön Değ.'!D52))=TRUE,LEFT('Öğr.Gör. Ön Değ.'!D52,2)&REPT("*",3),LEFT('Öğr.Gör. Ön Değ.'!D52,2)&REPT("*",3)&" "&MID('Öğr.Gör. Ön Değ.'!D52,FIND(" ",'Öğr.Gör. Ön Değ.'!D52)+1,2)&REPT("*",3))) ->  | E52: =IF('Öğr.Gör. Ön Değ.'!E52="","",'Öğr.Gör. Ön Değ.'!E52) ->  | F52: =IF('Öğr.Gör. Ön Değ.'!F52="","",'Öğr.Gör. Ön Değ.'!F52) ->  | G52: =IF('Öğr.Gör. Ön Değ.'!G52="","",'Öğr.Gör. Ön Değ.'!G52) ->  | H52: =IF('Öğr.Gör. Ön Değ.'!H52="","",'Öğr.Gör. Ön Değ.'!H52) ->  | I52: =IF('Öğr.Gör. Ön Değ.'!I52="","",'Öğr.Gör. Ön Değ.'!I52) ->  | J52: =IF('Öğr.Gör. Ön Değ.'!J52="","",'Öğr.Gör. Ön Değ.'!J52) ->  | K52: =IF('Öğr.Gör. Ön Değ.'!K52="","",'Öğr.Gör. Ön Değ.'!K52) ->  | L52: =IF('Öğr.Gör. Ön Değ.'!L52="","",'Öğr.Gör. Ön Değ.'!L52) -> 
A53: =IF('Öğr.Gör. Ön Değ.'!A53="","",'Öğr.Gör. Ön Değ.'!A53) ->  | B53: =IF('Öğr.Gör. Ön Değ.'!B53="","",LEFT('Öğr.Gör. Ön Değ.'!B53,3)&REPT("*",4)&RIGHT('Öğr.Gör. Ön Değ.'!B53,2)) ->  | C53: =IF('Öğr.Gör. Ön Değ.'!C53="","",IF(ISERR(FIND(" ",'Öğr.Gör. Ön Değ.'!C53))=TRUE,LEFT('Öğr.Gör. Ön Değ.'!C53,2)&REPT("*",3),LEFT('Öğr.Gör. Ön Değ.'!C53,2)&REPT("*",3)&" "&MID('Öğr.Gör. Ön Değ.'!C53,FIND(" ",'Öğr.Gör. Ön Değ.'!C53)+1,2)&REPT("*",3))) ->  | D53: =IF('Öğr.Gör. Ön Değ.'!D53="","",IF(ISERR(FIND(" ",'Öğr.Gör. Ön Değ.'!D53))=TRUE,LEFT('Öğr.Gör. Ön Değ.'!D53,2)&REPT("*",3),LEFT('Öğr.Gör. Ön Değ.'!D53,2)&REPT("*",3)&" "&MID('Öğr.Gör. Ön Değ.'!D53,FIND(" ",'Öğr.Gör. Ön Değ.'!D53)+1,2)&REPT("*",3))) ->  | E53: =IF('Öğr.Gör. Ön Değ.'!E53="","",'Öğr.Gör. Ön Değ.'!E53) ->  | F53: =IF('Öğr.Gör. Ön Değ.'!F53="","",'Öğr.Gör. Ön Değ.'!F53) ->  | G53: =IF('Öğr.Gör. Ön Değ.'!G53="","",'Öğr.Gör. Ön Değ.'!G53) ->  | H53: =IF('Öğr.Gör. Ön Değ.'!H53="","",'Öğr.Gör. Ön Değ.'!H53) ->  | I53: =IF('Öğr.Gör. Ön Değ.'!I53="","",'Öğr.Gör. Ön Değ.'!I53) ->  | J53: =IF('Öğr.Gör. Ön Değ.'!J53="","",'Öğr.Gör. Ön Değ.'!J53) ->  | K53: =IF('Öğr.Gör. Ön Değ.'!K53="","",'Öğr.Gör. Ön Değ.'!K53) ->  | L53: =IF('Öğr.Gör. Ön Değ.'!L53="","",'Öğr.Gör. Ön Değ.'!L53) -> 
A54: =IF('Öğr.Gör. Ön Değ.'!A54="","",'Öğr.Gör. Ön Değ.'!A54) ->  | B54: =IF('Öğr.Gör. Ön Değ.'!B54="","",LEFT('Öğr.Gör. Ön Değ.'!B54,3)&REPT("*",4)&RIGHT('Öğr.Gör. Ön Değ.'!B54,2)) ->  | C54: =IF('Öğr.Gör. Ön Değ.'!C54="","",IF(ISERR(FIND(" ",'Öğr.Gör. Ön Değ.'!C54))=TRUE,LEFT('Öğr.Gör. Ön Değ.'!C54,2)&REPT("*",3),LEFT('Öğr.Gör. Ön Değ.'!C54,2)&REPT("*",3)&" "&MID('Öğr.Gör. Ön Değ.'!C54,FIND(" ",'Öğr.Gör. Ön Değ.'!C54)+1,2)&REPT("*",3))) ->  | D54: =IF('Öğr.Gör. Ön Değ.'!D54="","",IF(ISERR(FIND(" ",'Öğr.Gör. Ön Değ.'!D54))=TRUE,LEFT('Öğr.Gör. Ön Değ.'!D54,2)&REPT("*",3),LEFT('Öğr.Gör. Ön Değ.'!D54,2)&REPT("*",3)&" "&MID('Öğr.Gör. Ön Değ.'!D54,FIND(" ",'Öğr.Gör. Ön Değ.'!D54)+1,2)&REPT("*",3))) ->  | E54: =IF('Öğr.Gör. Ön Değ.'!E54="","",'Öğr.Gör. Ön Değ.'!E54) ->  | F54: =IF('Öğr.Gör. Ön Değ.'!F54="","",'Öğr.Gör. Ön Değ.'!F54) ->  | G54: =IF('Öğr.Gör. Ön Değ.'!G54="","",'Öğr.Gör. Ön Değ.'!G54) ->  | H54: =IF('Öğr.Gör. Ön Değ.'!H54="","",'Öğr.Gör. Ön Değ.'!H54) ->  | I54: =IF('Öğr.Gör. Ön Değ.'!I54="","",'Öğr.Gör. Ön Değ.'!I54) ->  | J54: =IF('Öğr.Gör. Ön Değ.'!J54="","",'Öğr.Gör. Ön Değ.'!J54) ->  | K54: =IF('Öğr.Gör. Ön Değ.'!K54="","",'Öğr.Gör. Ön Değ.'!K54) ->  | L54: =IF('Öğr.Gör. Ön Değ.'!L54="","",'Öğr.Gör. Ön Değ.'!L54) -> 
A55: =IF('Öğr.Gör. Ön Değ.'!A55="","",'Öğr.Gör. Ön Değ.'!A55) ->  | B55: =IF('Öğr.Gör. Ön Değ.'!B55="","",LEFT('Öğr.Gör. Ön Değ.'!B55,3)&REPT("*",4)&RIGHT('Öğr.Gör. Ön Değ.'!B55,2)) ->  | C55: =IF('Öğr.Gör. Ön Değ.'!C55="","",IF(ISERR(FIND(" ",'Öğr.Gör. Ön Değ.'!C55))=TRUE,LEFT('Öğr.Gör. Ön Değ.'!C55,2)&REPT("*",3),LEFT('Öğr.Gör. Ön Değ.'!C55,2)&REPT("*",3)&" "&MID('Öğr.Gör. Ön Değ.'!C55,FIND(" ",'Öğr.Gör. Ön Değ.'!C55)+1,2)&REPT("*",3))) ->  | D55: =IF('Öğr.Gör. Ön Değ.'!D55="","",IF(ISERR(FIND(" ",'Öğr.Gör. Ön Değ.'!D55))=TRUE,LEFT('Öğr.Gör. Ön Değ.'!D55,2)&REPT("*",3),LEFT('Öğr.Gör. Ön Değ.'!D55,2)&REPT("*",3)&" "&MID('Öğr.Gör. Ön Değ.'!D55,FIND(" ",'Öğr.Gör. Ön Değ.'!D55)+1,2)&REPT("*",3))) ->  | E55: =IF('Öğr.Gör. Ön Değ.'!E55="","",'Öğr.Gör. Ön Değ.'!E55) ->  | F55: =IF('Öğr.Gör. Ön Değ.'!F55="","",'Öğr.Gör. Ön Değ.'!F55) ->  | G55: =IF('Öğr.Gör. Ön Değ.'!G55="","",'Öğr.Gör. Ön Değ.'!G55) ->  | H55: =IF('Öğr.Gör. Ön Değ.'!H55="","",'Öğr.Gör. Ön Değ.'!H55) ->  | I55: =IF('Öğr.Gör. Ön Değ.'!I55="","",'Öğr.Gör. Ön Değ.'!I55) ->  | J55: =IF('Öğr.Gör. Ön Değ.'!J55="","",'Öğr.Gör. Ön Değ.'!J55) ->  | K55: =IF('Öğr.Gör. Ön Değ.'!K55="","",'Öğr.Gör. Ön Değ.'!K55) ->  | L55: =IF('Öğr.Gör. Ön Değ.'!L55="","",'Öğr.Gör. Ön Değ.'!L55) -> 
A56: =IF('Öğr.Gör. Ön Değ.'!A56="","",'Öğr.Gör. Ön Değ.'!A56) ->  | B56: =IF('Öğr.Gör. Ön Değ.'!B56="","",LEFT('Öğr.Gör. Ön Değ.'!B56,3)&REPT("*",4)&RIGHT('Öğr.Gör. Ön Değ.'!B56,2)) ->  | C56: =IF('Öğr.Gör. Ön Değ.'!C56="","",IF(ISERR(FIND(" ",'Öğr.Gör. Ön Değ.'!C56))=TRUE,LEFT('Öğr.Gör. Ön Değ.'!C56,2)&REPT("*",3),LEFT('Öğr.Gör. Ön Değ.'!C56,2)&REPT("*",3)&" "&MID('Öğr.Gör. Ön Değ.'!C56,FIND(" ",'Öğr.Gör. Ön Değ.'!C56)+1,2)&REPT("*",3))) ->  | D56: =IF('Öğr.Gör. Ön Değ.'!D56="","",IF(ISERR(FIND(" ",'Öğr.Gör. Ön Değ.'!D56))=TRUE,LEFT('Öğr.Gör. Ön Değ.'!D56,2)&REPT("*",3),LEFT('Öğr.Gör. Ön Değ.'!D56,2)&REPT("*",3)&" "&MID('Öğr.Gör. Ön Değ.'!D56,FIND(" ",'Öğr.Gör. Ön Değ.'!D56)+1,2)&REPT("*",3))) ->  | E56: =IF('Öğr.Gör. Ön Değ.'!E56="","",'Öğr.Gör. Ön Değ.'!E56) ->  | F56: =IF('Öğr.Gör. Ön Değ.'!F56="","",'Öğr.Gör. Ön Değ.'!F56) ->  | G56: =IF('Öğr.Gör. Ön Değ.'!G56="","",'Öğr.Gör. Ön Değ.'!G56) ->  | H56: =IF('Öğr.Gör. Ön Değ.'!H56="","",'Öğr.Gör. Ön Değ.'!H56) ->  | I56: =IF('Öğr.Gör. Ön Değ.'!I56="","",'Öğr.Gör. Ön Değ.'!I56) ->  | J56: =IF('Öğr.Gör. Ön Değ.'!J56="","",'Öğr.Gör. Ön Değ.'!J56) ->  | K56: =IF('Öğr.Gör. Ön Değ.'!K56="","",'Öğr.Gör. Ön Değ.'!K56) ->  | L56: =IF('Öğr.Gör. Ön Değ.'!L56="","",'Öğr.Gör. Ön Değ.'!L56) -> 
A57: =IF('Öğr.Gör. Ön Değ.'!A57="","",'Öğr.Gör. Ön Değ.'!A57) ->  | B57: =IF('Öğr.Gör. Ön Değ.'!B57="","",LEFT('Öğr.Gör. Ön Değ.'!B57,3)&REPT("*",4)&RIGHT('Öğr.Gör. Ön Değ.'!B57,2)) ->  | C57: =IF('Öğr.Gör. Ön Değ.'!C57="","",IF(ISERR(FIND(" ",'Öğr.Gör. Ön Değ.'!C57))=TRUE,LEFT('Öğr.Gör. Ön Değ.'!C57,2)&REPT("*",3),LEFT('Öğr.Gör. Ön Değ.'!C57,2)&REPT("*",3)&" "&MID('Öğr.Gör. Ön Değ.'!C57,FIND(" ",'Öğr.Gör. Ön Değ.'!C57)+1,2)&REPT("*",3))) ->  | D57: =IF('Öğr.Gör. Ön Değ.'!D57="","",IF(ISERR(FIND(" ",'Öğr.Gör. Ön Değ.'!D57))=TRUE,LEFT('Öğr.Gör. Ön Değ.'!D57,2)&REPT("*",3),LEFT('Öğr.Gör. Ön Değ.'!D57,2)&REPT("*",3)&" "&MID('Öğr.Gör. Ön Değ.'!D57,FIND(" ",'Öğr.Gör. Ön Değ.'!D57)+1,2)&REPT("*",3))) ->  | E57: =IF('Öğr.Gör. Ön Değ.'!E57="","",'Öğr.Gör. Ön Değ.'!E57) ->  | F57: =IF('Öğr.Gör. Ön Değ.'!F57="","",'Öğr.Gör. Ön Değ.'!F57) ->  | G57: =IF('Öğr.Gör. Ön Değ.'!G57="","",'Öğr.Gör. Ön Değ.'!G57) ->  | H57: =IF('Öğr.Gör. Ön Değ.'!H57="","",'Öğr.Gör. Ön Değ.'!H57) ->  | I57: =IF('Öğr.Gör. Ön Değ.'!I57="","",'Öğr.Gör. Ön Değ.'!I57) ->  | J57: =IF('Öğr.Gör. Ön Değ.'!J57="","",'Öğr.Gör. Ön Değ.'!J57) ->  | K57: =IF('Öğr.Gör. Ön Değ.'!K57="","",'Öğr.Gör. Ön Değ.'!K57) ->  | L57: =IF('Öğr.Gör. Ön Değ.'!L57="","",'Öğr.Gör. Ön Değ.'!L57) -> 
A58: =IF('Öğr.Gör. Ön Değ.'!A58="","",'Öğr.Gör. Ön Değ.'!A58) ->  | B58: =IF('Öğr.Gör. Ön Değ.'!B58="","",LEFT('Öğr.Gör. Ön Değ.'!B58,3)&REPT("*",4)&RIGHT('Öğr.Gör. Ön Değ.'!B58,2)) ->  | C58: =IF('Öğr.Gör. Ön Değ.'!C58="","",IF(ISERR(FIND(" ",'Öğr.Gör. Ön Değ.'!C58))=TRUE,LEFT('Öğr.Gör. Ön Değ.'!C58,2)&REPT("*",3),LEFT('Öğr.Gör. Ön Değ.'!C58,2)&REPT("*",3)&" "&MID('Öğr.Gör. Ön Değ.'!C58,FIND(" ",'Öğr.Gör. Ön Değ.'!C58)+1,2)&REPT("*",3))) ->  | D58: =IF('Öğr.Gör. Ön Değ.'!D58="","",IF(ISERR(FIND(" ",'Öğr.Gör. Ön Değ.'!D58))=TRUE,LEFT('Öğr.Gör. Ön Değ.'!D58,2)&REPT("*",3),LEFT('Öğr.Gör. Ön Değ.'!D58,2)&REPT("*",3)&" "&MID('Öğr.Gör. Ön Değ.'!D58,FIND(" ",'Öğr.Gör. Ön Değ.'!D58)+1,2)&REPT("*",3))) ->  | E58: =IF('Öğr.Gör. Ön Değ.'!E58="","",'Öğr.Gör. Ön Değ.'!E58) ->  | F58: =IF('Öğr.Gör. Ön Değ.'!F58="","",'Öğr.Gör. Ön Değ.'!F58) ->  | G58: =IF('Öğr.Gör. Ön Değ.'!G58="","",'Öğr.Gör. Ön Değ.'!G58) ->  | H58: =IF('Öğr.Gör. Ön Değ.'!H58="","",'Öğr.Gör. Ön Değ.'!H58) ->  | I58: =IF('Öğr.Gör. Ön Değ.'!I58="","",'Öğr.Gör. Ön Değ.'!I58) ->  | J58: =IF('Öğr.Gör. Ön Değ.'!J58="","",'Öğr.Gör. Ön Değ.'!J58) ->  | K58: =IF('Öğr.Gör. Ön Değ.'!K58="","",'Öğr.Gör. Ön Değ.'!K58) ->  | L58: =IF('Öğr.Gör. Ön Değ.'!L58="","",'Öğr.Gör. Ön Değ.'!L58) -> 
A59: =IF('Öğr.Gör. Ön Değ.'!A59="","",'Öğr.Gör. Ön Değ.'!A59) ->  | B59: =IF('Öğr.Gör. Ön Değ.'!B59="","",LEFT('Öğr.Gör. Ön Değ.'!B59,3)&REPT("*",4)&RIGHT('Öğr.Gör. Ön Değ.'!B59,2)) ->  | C59: =IF('Öğr.Gör. Ön Değ.'!C59="","",IF(ISERR(FIND(" ",'Öğr.Gör. Ön Değ.'!C59))=TRUE,LEFT('Öğr.Gör. Ön Değ.'!C59,2)&REPT("*",3),LEFT('Öğr.Gör. Ön Değ.'!C59,2)&REPT("*",3)&" "&MID('Öğr.Gör. Ön Değ.'!C59,FIND(" ",'Öğr.Gör. Ön Değ.'!C59)+1,2)&REPT("*",3))) ->  | D59: =IF('Öğr.Gör. Ön Değ.'!D59="","",IF(ISERR(FIND(" ",'Öğr.Gör. Ön Değ.'!D59))=TRUE,LEFT('Öğr.Gör. Ön Değ.'!D59,2)&REPT("*",3),LEFT('Öğr.Gör. Ön Değ.'!D59,2)&REPT("*",3)&" "&MID('Öğr.Gör. Ön Değ.'!D59,FIND(" ",'Öğr.Gör. Ön Değ.'!D59)+1,2)&REPT("*",3))) ->  | E59: =IF('Öğr.Gör. Ön Değ.'!E59="","",'Öğr.Gör. Ön Değ.'!E59) ->  | F59: =IF('Öğr.Gör. Ön Değ.'!F59="","",'Öğr.Gör. Ön Değ.'!F59) ->  | G59: =IF('Öğr.Gör. Ön Değ.'!G59="","",'Öğr.Gör. Ön Değ.'!G59) ->  | H59: =IF('Öğr.Gör. Ön Değ.'!H59="","",'Öğr.Gör. Ön Değ.'!H59) ->  | I59: =IF('Öğr.Gör. Ön Değ.'!I59="","",'Öğr.Gör. Ön Değ.'!I59) ->  | J59: =IF('Öğr.Gör. Ön Değ.'!J59="","",'Öğr.Gör. Ön Değ.'!J59) ->  | K59: =IF('Öğr.Gör. Ön Değ.'!K59="","",'Öğr.Gör. Ön Değ.'!K59) ->  | L59: =IF('Öğr.Gör. Ön Değ.'!L59="","",'Öğr.Gör. Ön Değ.'!L59) -> 
A60: =IF('Öğr.Gör. Ön Değ.'!A60="","",'Öğr.Gör. Ön Değ.'!A60) ->  | B60: =IF('Öğr.Gör. Ön Değ.'!B60="","",LEFT('Öğr.Gör. Ön Değ.'!B60,3)&REPT("*",4)&RIGHT('Öğr.Gör. Ön Değ.'!B60,2)) ->  | C60: =IF('Öğr.Gör. Ön Değ.'!C60="","",IF(ISERR(FIND(" ",'Öğr.Gör. Ön Değ.'!C60))=TRUE,LEFT('Öğr.Gör. Ön Değ.'!C60,2)&REPT("*",3),LEFT('Öğr.Gör. Ön Değ.'!C60,2)&REPT("*",3)&" "&MID('Öğr.Gör. Ön Değ.'!C60,FIND(" ",'Öğr.Gör. Ön Değ.'!C60)+1,2)&REPT("*",3))) ->  | D60: =IF('Öğr.Gör. Ön Değ.'!D60="","",IF(ISERR(FIND(" ",'Öğr.Gör. Ön Değ.'!D60))=TRUE,LEFT('Öğr.Gör. Ön Değ.'!D60,2)&REPT("*",3),LEFT('Öğr.Gör. Ön Değ.'!D60,2)&REPT("*",3)&" "&MID('Öğr.Gör. Ön Değ.'!D60,FIND(" ",'Öğr.Gör. Ön Değ.'!D60)+1,2)&REPT("*",3))) ->  | E60: =IF('Öğr.Gör. Ön Değ.'!E60="","",'Öğr.Gör. Ön Değ.'!E60) ->  | F60: =IF('Öğr.Gör. Ön Değ.'!F60="","",'Öğr.Gör. Ön Değ.'!F60) ->  | G60: =IF('Öğr.Gör. Ön Değ.'!G60="","",'Öğr.Gör. Ön Değ.'!G60) ->  | H60: =IF('Öğr.Gör. Ön Değ.'!H60="","",'Öğr.Gör. Ön Değ.'!H60) ->  | I60: =IF('Öğr.Gör. Ön Değ.'!I60="","",'Öğr.Gör. Ön Değ.'!I60) ->  | J60: =IF('Öğr.Gör. Ön Değ.'!J60="","",'Öğr.Gör. Ön Değ.'!J60) ->  | K60: =IF('Öğr.Gör. Ön Değ.'!K60="","",'Öğr.Gör. Ön Değ.'!K60) ->  | L60: =IF('Öğr.Gör. Ön Değ.'!L60="","",'Öğr.Gör. Ön Değ.'!L60) -> 
A61: =IF('Öğr.Gör. Ön Değ.'!A61="","",'Öğr.Gör. Ön Değ.'!A61) ->  | B61: =IF('Öğr.Gör. Ön Değ.'!B61="","",LEFT('Öğr.Gör. Ön Değ.'!B61,3)&REPT("*",4)&RIGHT('Öğr.Gör. Ön Değ.'!B61,2)) ->  | C61: =IF('Öğr.Gör. Ön Değ.'!C61="","",IF(ISERR(FIND(" ",'Öğr.Gör. Ön Değ.'!C61))=TRUE,LEFT('Öğr.Gör. Ön Değ.'!C61,2)&REPT("*",3),LEFT('Öğr.Gör. Ön Değ.'!C61,2)&REPT("*",3)&" "&MID('Öğr.Gör. Ön Değ.'!C61,FIND(" ",'Öğr.Gör. Ön Değ.'!C61)+1,2)&REPT("*",3))) ->  | D61: =IF('Öğr.Gör. Ön Değ.'!D61="","",IF(ISERR(FIND(" ",'Öğr.Gör. Ön Değ.'!D61))=TRUE,LEFT('Öğr.Gör. Ön Değ.'!D61,2)&REPT("*",3),LEFT('Öğr.Gör. Ön Değ.'!D61,2)&REPT("*",3)&" "&MID('Öğr.Gör. Ön Değ.'!D61,FIND(" ",'Öğr.Gör. Ön Değ.'!D61)+1,2)&REPT("*",3))) ->  | E61: =IF('Öğr.Gör. Ön Değ.'!E61="","",'Öğr.Gör. Ön Değ.'!E61) ->  | F61: =IF('Öğr.Gör. Ön Değ.'!F61="","",'Öğr.Gör. Ön Değ.'!F61) ->  | G61: =IF('Öğr.Gör. Ön Değ.'!G61="","",'Öğr.Gör. Ön Değ.'!G61) ->  | H61: =IF('Öğr.Gör. Ön Değ.'!H61="","",'Öğr.Gör. Ön Değ.'!H61) ->  | I61: =IF('Öğr.Gör. Ön Değ.'!I61="","",'Öğr.Gör. Ön Değ.'!I61) ->  | J61: =IF('Öğr.Gör. Ön Değ.'!J61="","",'Öğr.Gör. Ön Değ.'!J61) ->  | K61: =IF('Öğr.Gör. Ön Değ.'!K61="","",'Öğr.Gör. Ön Değ.'!K61) ->  | L61: =IF('Öğr.Gör. Ön Değ.'!L61="","",'Öğr.Gör. Ön Değ.'!L61) -> 
A62: =IF('Öğr.Gör. Ön Değ.'!A62="","",'Öğr.Gör. Ön Değ.'!A62) ->  | B62: =IF('Öğr.Gör. Ön Değ.'!B62="","",LEFT('Öğr.Gör. Ön Değ.'!B62,3)&REPT("*",4)&RIGHT('Öğr.Gör. Ön Değ.'!B62,2)) ->  | C62: =IF('Öğr.Gör. Ön Değ.'!C62="","",IF(ISERR(FIND(" ",'Öğr.Gör. Ön Değ.'!C62))=TRUE,LEFT('Öğr.Gör. Ön Değ.'!C62,2)&REPT("*",3),LEFT('Öğr.Gör. Ön Değ.'!C62,2)&REPT("*",3)&" "&MID('Öğr.Gör. Ön Değ.'!C62,FIND(" ",'Öğr.Gör. Ön Değ.'!C62)+1,2)&REPT("*",3))) ->  | D62: =IF('Öğr.Gör. Ön Değ.'!D62="","",IF(ISERR(FIND(" ",'Öğr.Gör. Ön Değ.'!D62))=TRUE,LEFT('Öğr.Gör. Ön Değ.'!D62,2)&REPT("*",3),LEFT('Öğr.Gör. Ön Değ.'!D62,2)&REPT("*",3)&" "&MID('Öğr.Gör. Ön Değ.'!D62,FIND(" ",'Öğr.Gör. Ön Değ.'!D62)+1,2)&REPT("*",3))) ->  | E62: =IF('Öğr.Gör. Ön Değ.'!E62="","",'Öğr.Gör. Ön Değ.'!E62) ->  | F62: =IF('Öğr.Gör. Ön Değ.'!F62="","",'Öğr.Gör. Ön Değ.'!F62) ->  | G62: =IF('Öğr.Gör. Ön Değ.'!G62="","",'Öğr.Gör. Ön Değ.'!G62) ->  | H62: =IF('Öğr.Gör. Ön Değ.'!H62="","",'Öğr.Gör. Ön Değ.'!H62) ->  | I62: =IF('Öğr.Gör. Ön Değ.'!I62="","",'Öğr.Gör. Ön Değ.'!I62) ->  | J62: =IF('Öğr.Gör. Ön Değ.'!J62="","",'Öğr.Gör. Ön Değ.'!J62) ->  | K62: =IF('Öğr.Gör. Ön Değ.'!K62="","",'Öğr.Gör. Ön Değ.'!K62) ->  | L62: =IF('Öğr.Gör. Ön Değ.'!L62="","",'Öğr.Gör. Ön Değ.'!L62) -> 
A63: =IF('Öğr.Gör. Ön Değ.'!A63="","",'Öğr.Gör. Ön Değ.'!A63) ->  | B63: =IF('Öğr.Gör. Ön Değ.'!B63="","",LEFT('Öğr.Gör. Ön Değ.'!B63,3)&REPT("*",4)&RIGHT('Öğr.Gör. Ön Değ.'!B63,2)) ->  | C63: =IF('Öğr.Gör. Ön Değ.'!C63="","",IF(ISERR(FIND(" ",'Öğr.Gör. Ön Değ.'!C63))=TRUE,LEFT('Öğr.Gör. Ön Değ.'!C63,2)&REPT("*",3),LEFT('Öğr.Gör. Ön Değ.'!C63,2)&REPT("*",3)&" "&MID('Öğr.Gör. Ön Değ.'!C63,FIND(" ",'Öğr.Gör. Ön Değ.'!C63)+1,2)&REPT("*",3))) ->  | D63: =IF('Öğr.Gör. Ön Değ.'!D63="","",IF(ISERR(FIND(" ",'Öğr.Gör. Ön Değ.'!D63))=TRUE,LEFT('Öğr.Gör. Ön Değ.'!D63,2)&REPT("*",3),LEFT('Öğr.Gör. Ön Değ.'!D63,2)&REPT("*",3)&" "&MID('Öğr.Gör. Ön Değ.'!D63,FIND(" ",'Öğr.Gör. Ön Değ.'!D63)+1,2)&REPT("*",3))) ->  | E63: =IF('Öğr.Gör. Ön Değ.'!E63="","",'Öğr.Gör. Ön Değ.'!E63) ->  | F63: =IF('Öğr.Gör. Ön Değ.'!F63="","",'Öğr.Gör. Ön Değ.'!F63) ->  | G63: =IF('Öğr.Gör. Ön Değ.'!G63="","",'Öğr.Gör. Ön Değ.'!G63) ->  | H63: =IF('Öğr.Gör. Ön Değ.'!H63="","",'Öğr.Gör. Ön Değ.'!H63) ->  | I63: =IF('Öğr.Gör. Ön Değ.'!I63="","",'Öğr.Gör. Ön Değ.'!I63) ->  | J63: =IF('Öğr.Gör. Ön Değ.'!J63="","",'Öğr.Gör. Ön Değ.'!J63) ->  | K63: =IF('Öğr.Gör. Ön Değ.'!K63="","",'Öğr.Gör. Ön Değ.'!K63) ->  | L63: =IF('Öğr.Gör. Ön Değ.'!L63="","",'Öğr.Gör. Ön Değ.'!L63) -> 
A64: =IF('Öğr.Gör. Ön Değ.'!A64="","",'Öğr.Gör. Ön Değ.'!A64) ->  | B64: =IF('Öğr.Gör. Ön Değ.'!B64="","",LEFT('Öğr.Gör. Ön Değ.'!B64,3)&REPT("*",4)&RIGHT('Öğr.Gör. Ön Değ.'!B64,2)) ->  | C64: =IF('Öğr.Gör. Ön Değ.'!C64="","",IF(ISERR(FIND(" ",'Öğr.Gör. Ön Değ.'!C64))=TRUE,LEFT('Öğr.Gör. Ön Değ.'!C64,2)&REPT("*",3),LEFT('Öğr.Gör. Ön Değ.'!C64,2)&REPT("*",3)&" "&MID('Öğr.Gör. Ön Değ.'!C64,FIND(" ",'Öğr.Gör. Ön Değ.'!C64)+1,2)&REPT("*",3))) ->  | D64: =IF('Öğr.Gör. Ön Değ.'!D64="","",IF(ISERR(FIND(" ",'Öğr.Gör. Ön Değ.'!D64))=TRUE,LEFT('Öğr.Gör. Ön Değ.'!D64,2)&REPT("*",3),LEFT('Öğr.Gör. Ön Değ.'!D64,2)&REPT("*",3)&" "&MID('Öğr.Gör. Ön Değ.'!D64,FIND(" ",'Öğr.Gör. Ön Değ.'!D64)+1,2)&REPT("*",3))) ->  | E64: =IF('Öğr.Gör. Ön Değ.'!E64="","",'Öğr.Gör. Ön Değ.'!E64) ->  | F64: =IF('Öğr.Gör. Ön Değ.'!F64="","",'Öğr.Gör. Ön Değ.'!F64) ->  | G64: =IF('Öğr.Gör. Ön Değ.'!G64="","",'Öğr.Gör. Ön Değ.'!G64) ->  | H64: =IF('Öğr.Gör. Ön Değ.'!H64="","",'Öğr.Gör. Ön Değ.'!H64) ->  | I64: =IF('Öğr.Gör. Ön Değ.'!I64="","",'Öğr.Gör. Ön Değ.'!I64) ->  | J64: =IF('Öğr.Gör. Ön Değ.'!J64="","",'Öğr.Gör. Ön Değ.'!J64) ->  | K64: =IF('Öğr.Gör. Ön Değ.'!K64="","",'Öğr.Gör. Ön Değ.'!K64) ->  | L64: =IF('Öğr.Gör. Ön Değ.'!L64="","",'Öğr.Gör. Ön Değ.'!L64) -> 
A65: =IF('Öğr.Gör. Ön Değ.'!A65="","",'Öğr.Gör. Ön Değ.'!A65) ->  | B65: =IF('Öğr.Gör. Ön Değ.'!B65="","",LEFT('Öğr.Gör. Ön Değ.'!B65,3)&REPT("*",4)&RIGHT('Öğr.Gör. Ön Değ.'!B65,2)) ->  | C65: =IF('Öğr.Gör. Ön Değ.'!C65="","",IF(ISERR(FIND(" ",'Öğr.Gör. Ön Değ.'!C65))=TRUE,LEFT('Öğr.Gör. Ön Değ.'!C65,2)&REPT("*",3),LEFT('Öğr.Gör. Ön Değ.'!C65,2)&REPT("*",3)&" "&MID('Öğr.Gör. Ön Değ.'!C65,FIND(" ",'Öğr.Gör. Ön Değ.'!C65)+1,2)&REPT("*",3))) ->  | D65: =IF('Öğr.Gör. Ön Değ.'!D65="","",IF(ISERR(FIND(" ",'Öğr.Gör. Ön Değ.'!D65))=TRUE,LEFT('Öğr.Gör. Ön Değ.'!D65,2)&REPT("*",3),LEFT('Öğr.Gör. Ön Değ.'!D65,2)&REPT("*",3)&" "&MID('Öğr.Gör. Ön Değ.'!D65,FIND(" ",'Öğr.Gör. Ön Değ.'!D65)+1,2)&REPT("*",3))) ->  | E65: =IF('Öğr.Gör. Ön Değ.'!E65="","",'Öğr.Gör. Ön Değ.'!E65) ->  | F65: =IF('Öğr.Gör. Ön Değ.'!F65="","",'Öğr.Gör. Ön Değ.'!F65) ->  | G65: =IF('Öğr.Gör. Ön Değ.'!G65="","",'Öğr.Gör. Ön Değ.'!G65) ->  | H65: =IF('Öğr.Gör. Ön Değ.'!H65="","",'Öğr.Gör. Ön Değ.'!H65) ->  | I65: =IF('Öğr.Gör. Ön Değ.'!I65="","",'Öğr.Gör. Ön Değ.'!I65) ->  | J65: =IF('Öğr.Gör. Ön Değ.'!J65="","",'Öğr.Gör. Ön Değ.'!J65) ->  | K65: =IF('Öğr.Gör. Ön Değ.'!K65="","",'Öğr.Gör. Ön Değ.'!K65) ->  | L65: =IF('Öğr.Gör. Ön Değ.'!L65="","",'Öğr.Gör. Ön Değ.'!L65) -> 
A66: =IF('Öğr.Gör. Ön Değ.'!A66="","",'Öğr.Gör. Ön Değ.'!A66) ->  | B66: =IF('Öğr.Gör. Ön Değ.'!B66="","",LEFT('Öğr.Gör. Ön Değ.'!B66,3)&REPT("*",4)&RIGHT('Öğr.Gör. Ön Değ.'!B66,2)) ->  | C66: =IF('Öğr.Gör. Ön Değ.'!C66="","",IF(ISERR(FIND(" ",'Öğr.Gör. Ön Değ.'!C66))=TRUE,LEFT('Öğr.Gör. Ön Değ.'!C66,2)&REPT("*",3),LEFT('Öğr.Gör. Ön Değ.'!C66,2)&REPT("*",3)&" "&MID('Öğr.Gör. Ön Değ.'!C66,FIND(" ",'Öğr.Gör. Ön Değ.'!C66)+1,2)&REPT("*",3))) ->  | D66: =IF('Öğr.Gör. Ön Değ.'!D66="","",IF(ISERR(FIND(" ",'Öğr.Gör. Ön Değ.'!D66))=TRUE,LEFT('Öğr.Gör. Ön Değ.'!D66,2)&REPT("*",3),LEFT('Öğr.Gör. Ön Değ.'!D66,2)&REPT("*",3)&" "&MID('Öğr.Gör. Ön Değ.'!D66,FIND(" ",'Öğr.Gör. Ön Değ.'!D66)+1,2)&REPT("*",3))) ->  | E66: =IF('Öğr.Gör. Ön Değ.'!E66="","",'Öğr.Gör. Ön Değ.'!E66) ->  | F66: =IF('Öğr.Gör. Ön Değ.'!F66="","",'Öğr.Gör. Ön Değ.'!F66) ->  | G66: =IF('Öğr.Gör. Ön Değ.'!G66="","",'Öğr.Gör. Ön Değ.'!G66) ->  | H66: =IF('Öğr.Gör. Ön Değ.'!H66="","",'Öğr.Gör. Ön Değ.'!H66) ->  | I66: =IF('Öğr.Gör. Ön Değ.'!I66="","",'Öğr.Gör. Ön Değ.'!I66) ->  | J66: =IF('Öğr.Gör. Ön Değ.'!J66="","",'Öğr.Gör. Ön Değ.'!J66) ->  | K66: =IF('Öğr.Gör. Ön Değ.'!K66="","",'Öğr.Gör. Ön Değ.'!K66) ->  | L66: =IF('Öğr.Gör. Ön Değ.'!L66="","",'Öğr.Gör. Ön Değ.'!L66) -> 
A67: =IF('Öğr.Gör. Ön Değ.'!A67="","",'Öğr.Gör. Ön Değ.'!A67) ->  | B67: =IF('Öğr.Gör. Ön Değ.'!B67="","",LEFT('Öğr.Gör. Ön Değ.'!B67,3)&REPT("*",4)&RIGHT('Öğr.Gör. Ön Değ.'!B67,2)) ->  | C67: =IF('Öğr.Gör. Ön Değ.'!C67="","",IF(ISERR(FIND(" ",'Öğr.Gör. Ön Değ.'!C67))=TRUE,LEFT('Öğr.Gör. Ön Değ.'!C67,2)&REPT("*",3),LEFT('Öğr.Gör. Ön Değ.'!C67,2)&REPT("*",3)&" "&MID('Öğr.Gör. Ön Değ.'!C67,FIND(" ",'Öğr.Gör. Ön Değ.'!C67)+1,2)&REPT("*",3))) ->  | D67: =IF('Öğr.Gör. Ön Değ.'!D67="","",IF(ISERR(FIND(" ",'Öğr.Gör. Ön Değ.'!D67))=TRUE,LEFT('Öğr.Gör. Ön Değ.'!D67,2)&REPT("*",3),LEFT('Öğr.Gör. Ön Değ.'!D67,2)&REPT("*",3)&" "&MID('Öğr.Gör. Ön Değ.'!D67,FIND(" ",'Öğr.Gör. Ön Değ.'!D67)+1,2)&REPT("*",3))) ->  | E67: =IF('Öğr.Gör. Ön Değ.'!E67="","",'Öğr.Gör. Ön Değ.'!E67) ->  | F67: =IF('Öğr.Gör. Ön Değ.'!F67="","",'Öğr.Gör. Ön Değ.'!F67) ->  | G67: =IF('Öğr.Gör. Ön Değ.'!G67="","",'Öğr.Gör. Ön Değ.'!G67) ->  | H67: =IF('Öğr.Gör. Ön Değ.'!H67="","",'Öğr.Gör. Ön Değ.'!H67) ->  | I67: =IF('Öğr.Gör. Ön Değ.'!I67="","",'Öğr.Gör. Ön Değ.'!I67) ->  | J67: =IF('Öğr.Gör. Ön Değ.'!J67="","",'Öğr.Gör. Ön Değ.'!J67) ->  | K67: =IF('Öğr.Gör. Ön Değ.'!K67="","",'Öğr.Gör. Ön Değ.'!K67) ->  | L67: =IF('Öğr.Gör. Ön Değ.'!L67="","",'Öğr.Gör. Ön Değ.'!L67) -> 
A68: =IF('Öğr.Gör. Ön Değ.'!A68="","",'Öğr.Gör. Ön Değ.'!A68) ->  | B68: =IF('Öğr.Gör. Ön Değ.'!B68="","",LEFT('Öğr.Gör. Ön Değ.'!B68,3)&REPT("*",4)&RIGHT('Öğr.Gör. Ön Değ.'!B68,2)) ->  | C68: =IF('Öğr.Gör. Ön Değ.'!C68="","",IF(ISERR(FIND(" ",'Öğr.Gör. Ön Değ.'!C68))=TRUE,LEFT('Öğr.Gör. Ön Değ.'!C68,2)&REPT("*",3),LEFT('Öğr.Gör. Ön Değ.'!C68,2)&REPT("*",3)&" "&MID('Öğr.Gör. Ön Değ.'!C68,FIND(" ",'Öğr.Gör. Ön Değ.'!C68)+1,2)&REPT("*",3))) ->  | D68: =IF('Öğr.Gör. Ön Değ.'!D68="","",IF(ISERR(FIND(" ",'Öğr.Gör. Ön Değ.'!D68))=TRUE,LEFT('Öğr.Gör. Ön Değ.'!D68,2)&REPT("*",3),LEFT('Öğr.Gör. Ön Değ.'!D68,2)&REPT("*",3)&" "&MID('Öğr.Gör. Ön Değ.'!D68,FIND(" ",'Öğr.Gör. Ön Değ.'!D68)+1,2)&REPT("*",3))) ->  | E68: =IF('Öğr.Gör. Ön Değ.'!E68="","",'Öğr.Gör. Ön Değ.'!E68) ->  | F68: =IF('Öğr.Gör. Ön Değ.'!F68="","",'Öğr.Gör. Ön Değ.'!F68) ->  | G68: =IF('Öğr.Gör. Ön Değ.'!G68="","",'Öğr.Gör. Ön Değ.'!G68) ->  | H68: =IF('Öğr.Gör. Ön Değ.'!H68="","",'Öğr.Gör. Ön Değ.'!H68) ->  | I68: =IF('Öğr.Gör. Ön Değ.'!I68="","",'Öğr.Gör. Ön Değ.'!I68) ->  | J68: =IF('Öğr.Gör. Ön Değ.'!J68="","",'Öğr.Gör. Ön Değ.'!J68) ->  | K68: =IF('Öğr.Gör. Ön Değ.'!K68="","",'Öğr.Gör. Ön Değ.'!K68) ->  | L68: =IF('Öğr.Gör. Ön Değ.'!L68="","",'Öğr.Gör. Ön Değ.'!L68) -> 
A69: =IF('Öğr.Gör. Ön Değ.'!A69="","",'Öğr.Gör. Ön Değ.'!A69) ->  | B69: =IF('Öğr.Gör. Ön Değ.'!B69="","",LEFT('Öğr.Gör. Ön Değ.'!B69,3)&REPT("*",4)&RIGHT('Öğr.Gör. Ön Değ.'!B69,2)) ->  | C69: =IF('Öğr.Gör. Ön Değ.'!C69="","",IF(ISERR(FIND(" ",'Öğr.Gör. Ön Değ.'!C69))=TRUE,LEFT('Öğr.Gör. Ön Değ.'!C69,2)&REPT("*",3),LEFT('Öğr.Gör. Ön Değ.'!C69,2)&REPT("*",3)&" "&MID('Öğr.Gör. Ön Değ.'!C69,FIND(" ",'Öğr.Gör. Ön Değ.'!C69)+1,2)&REPT("*",3))) ->  | D69: =IF('Öğr.Gör. Ön Değ.'!D69="","",IF(ISERR(FIND(" ",'Öğr.Gör. Ön Değ.'!D69))=TRUE,LEFT('Öğr.Gör. Ön Değ.'!D69,2)&REPT("*",3),LEFT('Öğr.Gör. Ön Değ.'!D69,2)&REPT("*",3)&" "&MID('Öğr.Gör. Ön Değ.'!D69,FIND(" ",'Öğr.Gör. Ön Değ.'!D69)+1,2)&REPT("*",3))) ->  | E69: =IF('Öğr.Gör. Ön Değ.'!E69="","",'Öğr.Gör. Ön Değ.'!E69) ->  | F69: =IF('Öğr.Gör. Ön Değ.'!F69="","",'Öğr.Gör. Ön Değ.'!F69) ->  | G69: =IF('Öğr.Gör. Ön Değ.'!G69="","",'Öğr.Gör. Ön Değ.'!G69) ->  | H69: =IF('Öğr.Gör. Ön Değ.'!H69="","",'Öğr.Gör. Ön Değ.'!H69) ->  | I69: =IF('Öğr.Gör. Ön Değ.'!I69="","",'Öğr.Gör. Ön Değ.'!I69) ->  | J69: =IF('Öğr.Gör. Ön Değ.'!J69="","",'Öğr.Gör. Ön Değ.'!J69) ->  | K69: =IF('Öğr.Gör. Ön Değ.'!K69="","",'Öğr.Gör. Ön Değ.'!K69) ->  | L69: =IF('Öğr.Gör. Ön Değ.'!L69="","",'Öğr.Gör. Ön Değ.'!L69) -> 
A70: =IF('Öğr.Gör. Ön Değ.'!A70="","",'Öğr.Gör. Ön Değ.'!A70) ->  | B70: =IF('Öğr.Gör. Ön Değ.'!B70="","",LEFT('Öğr.Gör. Ön Değ.'!B70,3)&REPT("*",4)&RIGHT('Öğr.Gör. Ön Değ.'!B70,2)) ->  | C70: =IF('Öğr.Gör. Ön Değ.'!C70="","",IF(ISERR(FIND(" ",'Öğr.Gör. Ön Değ.'!C70))=TRUE,LEFT('Öğr.Gör. Ön Değ.'!C70,2)&REPT("*",3),LEFT('Öğr.Gör. Ön Değ.'!C70,2)&REPT("*",3)&" "&MID('Öğr.Gör. Ön Değ.'!C70,FIND(" ",'Öğr.Gör. Ön Değ.'!C70)+1,2)&REPT("*",3))) ->  | D70: =IF('Öğr.Gör. Ön Değ.'!D70="","",IF(ISERR(FIND(" ",'Öğr.Gör. Ön Değ.'!D70))=TRUE,LEFT('Öğr.Gör. Ön Değ.'!D70,2)&REPT("*",3),LEFT('Öğr.Gör. Ön Değ.'!D70,2)&REPT("*",3)&" "&MID('Öğr.Gör. Ön Değ.'!D70,FIND(" ",'Öğr.Gör. Ön Değ.'!D70)+1,2)&REPT("*",3))) ->  | E70: =IF('Öğr.Gör. Ön Değ.'!E70="","",'Öğr.Gör. Ön Değ.'!E70) ->  | F70: =IF('Öğr.Gör. Ön Değ.'!F70="","",'Öğr.Gör. Ön Değ.'!F70) ->  | G70: =IF('Öğr.Gör. Ön Değ.'!G70="","",'Öğr.Gör. Ön Değ.'!G70) ->  | H70: =IF('Öğr.Gör. Ön Değ.'!H70="","",'Öğr.Gör. Ön Değ.'!H70) ->  | I70: =IF('Öğr.Gör. Ön Değ.'!I70="","",'Öğr.Gör. Ön Değ.'!I70) ->  | J70: =IF('Öğr.Gör. Ön Değ.'!J70="","",'Öğr.Gör. Ön Değ.'!J70) ->  | K70: =IF('Öğr.Gör. Ön Değ.'!K70="","",'Öğr.Gör. Ön Değ.'!K70) ->  | L70: =IF('Öğr.Gör. Ön Değ.'!L70="","",'Öğr.Gör. Ön Değ.'!L70) -> 
A71: =IF('Öğr.Gör. Ön Değ.'!A71="","",'Öğr.Gör. Ön Değ.'!A71) ->  | B71: =IF('Öğr.Gör. Ön Değ.'!B71="","",LEFT('Öğr.Gör. Ön Değ.'!B71,3)&REPT("*",4)&RIGHT('Öğr.Gör. Ön Değ.'!B71,2)) ->  | C71: =IF('Öğr.Gör. Ön Değ.'!C71="","",IF(ISERR(FIND(" ",'Öğr.Gör. Ön Değ.'!C71))=TRUE,LEFT('Öğr.Gör. Ön Değ.'!C71,2)&REPT("*",3),LEFT('Öğr.Gör. Ön Değ.'!C71,2)&REPT("*",3)&" "&MID('Öğr.Gör. Ön Değ.'!C71,FIND(" ",'Öğr.Gör. Ön Değ.'!C71)+1,2)&REPT("*",3))) ->  | D71: =IF('Öğr.Gör. Ön Değ.'!D71="","",IF(ISERR(FIND(" ",'Öğr.Gör. Ön Değ.'!D71))=TRUE,LEFT('Öğr.Gör. Ön Değ.'!D71,2)&REPT("*",3),LEFT('Öğr.Gör. Ön Değ.'!D71,2)&REPT("*",3)&" "&MID('Öğr.Gör. Ön Değ.'!D71,FIND(" ",'Öğr.Gör. Ön Değ.'!D71)+1,2)&REPT("*",3))) ->  | E71: =IF('Öğr.Gör. Ön Değ.'!E71="","",'Öğr.Gör. Ön Değ.'!E71) ->  | F71: =IF('Öğr.Gör. Ön Değ.'!F71="","",'Öğr.Gör. Ön Değ.'!F71) ->  | G71: =IF('Öğr.Gör. Ön Değ.'!G71="","",'Öğr.Gör. Ön Değ.'!G71) ->  | H71: =IF('Öğr.Gör. Ön Değ.'!H71="","",'Öğr.Gör. Ön Değ.'!H71) ->  | I71: =IF('Öğr.Gör. Ön Değ.'!I71="","",'Öğr.Gör. Ön Değ.'!I71) ->  | J71: =IF('Öğr.Gör. Ön Değ.'!J71="","",'Öğr.Gör. Ön Değ.'!J71) ->  | K71: =IF('Öğr.Gör. Ön Değ.'!K71="","",'Öğr.Gör. Ön Değ.'!K71) ->  | L71: =IF('Öğr.Gör. Ön Değ.'!L71="","",'Öğr.Gör. Ön Değ.'!L71) -> 
A72: =IF('Öğr.Gör. Ön Değ.'!A72="","",'Öğr.Gör. Ön Değ.'!A72) ->  | B72: =IF('Öğr.Gör. Ön Değ.'!B72="","",LEFT('Öğr.Gör. Ön Değ.'!B72,3)&REPT("*",4)&RIGHT('Öğr.Gör. Ön Değ.'!B72,2)) ->  | C72: =IF('Öğr.Gör. Ön Değ.'!C72="","",IF(ISERR(FIND(" ",'Öğr.Gör. Ön Değ.'!C72))=TRUE,LEFT('Öğr.Gör. Ön Değ.'!C72,2)&REPT("*",3),LEFT('Öğr.Gör. Ön Değ.'!C72,2)&REPT("*",3)&" "&MID('Öğr.Gör. Ön Değ.'!C72,FIND(" ",'Öğr.Gör. Ön Değ.'!C72)+1,2)&REPT("*",3))) ->  | D72: =IF('Öğr.Gör. Ön Değ.'!D72="","",IF(ISERR(FIND(" ",'Öğr.Gör. Ön Değ.'!D72))=TRUE,LEFT('Öğr.Gör. Ön Değ.'!D72,2)&REPT("*",3),LEFT('Öğr.Gör. Ön Değ.'!D72,2)&REPT("*",3)&" "&MID('Öğr.Gör. Ön Değ.'!D72,FIND(" ",'Öğr.Gör. Ön Değ.'!D72)+1,2)&REPT("*",3))) ->  | E72: =IF('Öğr.Gör. Ön Değ.'!E72="","",'Öğr.Gör. Ön Değ.'!E72) ->  | F72: =IF('Öğr.Gör. Ön Değ.'!F72="","",'Öğr.Gör. Ön Değ.'!F72) ->  | G72: =IF('Öğr.Gör. Ön Değ.'!G72="","",'Öğr.Gör. Ön Değ.'!G72) ->  | H72: =IF('Öğr.Gör. Ön Değ.'!H72="","",'Öğr.Gör. Ön Değ.'!H72) ->  | I72: =IF('Öğr.Gör. Ön Değ.'!I72="","",'Öğr.Gör. Ön Değ.'!I72) ->  | J72: =IF('Öğr.Gör. Ön Değ.'!J72="","",'Öğr.Gör. Ön Değ.'!J72) ->  | K72: =IF('Öğr.Gör. Ön Değ.'!K72="","",'Öğr.Gör. Ön Değ.'!K72) ->  | L72: =IF('Öğr.Gör. Ön Değ.'!L72="","",'Öğr.Gör. Ön Değ.'!L72) -> 
A73: =IF('Öğr.Gör. Ön Değ.'!A73="","",'Öğr.Gör. Ön Değ.'!A73) ->  | B73: =IF('Öğr.Gör. Ön Değ.'!B73="","",LEFT('Öğr.Gör. Ön Değ.'!B73,3)&REPT("*",4)&RIGHT('Öğr.Gör. Ön Değ.'!B73,2)) ->  | C73: =IF('Öğr.Gör. Ön Değ.'!C73="","",IF(ISERR(FIND(" ",'Öğr.Gör. Ön Değ.'!C73))=TRUE,LEFT('Öğr.Gör. Ön Değ.'!C73,2)&REPT("*",3),LEFT('Öğr.Gör. Ön Değ.'!C73,2)&REPT("*",3)&" "&MID('Öğr.Gör. Ön Değ.'!C73,FIND(" ",'Öğr.Gör. Ön Değ.'!C73)+1,2)&REPT("*",3))) ->  | D73: =IF('Öğr.Gör. Ön Değ.'!D73="","",IF(ISERR(FIND(" ",'Öğr.Gör. Ön Değ.'!D73))=TRUE,LEFT('Öğr.Gör. Ön Değ.'!D73,2)&REPT("*",3),LEFT('Öğr.Gör. Ön Değ.'!D73,2)&REPT("*",3)&" "&MID('Öğr.Gör. Ön Değ.'!D73,FIND(" ",'Öğr.Gör. Ön Değ.'!D73)+1,2)&REPT("*",3))) ->  | E73: =IF('Öğr.Gör. Ön Değ.'!E73="","",'Öğr.Gör. Ön Değ.'!E73) ->  | F73: =IF('Öğr.Gör. Ön Değ.'!F73="","",'Öğr.Gör. Ön Değ.'!F73) ->  | G73: =IF('Öğr.Gör. Ön Değ.'!G73="","",'Öğr.Gör. Ön Değ.'!G73) ->  | H73: =IF('Öğr.Gör. Ön Değ.'!H73="","",'Öğr.Gör. Ön Değ.'!H73) ->  | I73: =IF('Öğr.Gör. Ön Değ.'!I73="","",'Öğr.Gör. Ön Değ.'!I73) ->  | J73: =IF('Öğr.Gör. Ön Değ.'!J73="","",'Öğr.Gör. Ön Değ.'!J73) ->  | K73: =IF('Öğr.Gör. Ön Değ.'!K73="","",'Öğr.Gör. Ön Değ.'!K73) ->  | L73: =IF('Öğr.Gör. Ön Değ.'!L73="","",'Öğr.Gör. Ön Değ.'!L73) -> 
A74: =IF('Öğr.Gör. Ön Değ.'!A74="","",'Öğr.Gör. Ön Değ.'!A74) ->  | B74: =IF('Öğr.Gör. Ön Değ.'!B74="","",LEFT('Öğr.Gör. Ön Değ.'!B74,3)&REPT("*",4)&RIGHT('Öğr.Gör. Ön Değ.'!B74,2)) ->  | C74: =IF('Öğr.Gör. Ön Değ.'!C74="","",IF(ISERR(FIND(" ",'Öğr.Gör. Ön Değ.'!C74))=TRUE,LEFT('Öğr.Gör. Ön Değ.'!C74,2)&REPT("*",3),LEFT('Öğr.Gör. Ön Değ.'!C74,2)&REPT("*",3)&" "&MID('Öğr.Gör. Ön Değ.'!C74,FIND(" ",'Öğr.Gör. Ön Değ.'!C74)+1,2)&REPT("*",3))) ->  | D74: =IF('Öğr.Gör. Ön Değ.'!D74="","",IF(ISERR(FIND(" ",'Öğr.Gör. Ön Değ.'!D74))=TRUE,LEFT('Öğr.Gör. Ön Değ.'!D74,2)&REPT("*",3),LEFT('Öğr.Gör. Ön Değ.'!D74,2)&REPT("*",3)&" "&MID('Öğr.Gör. Ön Değ.'!D74,FIND(" ",'Öğr.Gör. Ön Değ.'!D74)+1,2)&REPT("*",3))) ->  | E74: =IF('Öğr.Gör. Ön Değ.'!E74="","",'Öğr.Gör. Ön Değ.'!E74) ->  | F74: =IF('Öğr.Gör. Ön Değ.'!F74="","",'Öğr.Gör. Ön Değ.'!F74) ->  | G74: =IF('Öğr.Gör. Ön Değ.'!G74="","",'Öğr.Gör. Ön Değ.'!G74) ->  | H74: =IF('Öğr.Gör. Ön Değ.'!H74="","",'Öğr.Gör. Ön Değ.'!H74) ->  | I74: =IF('Öğr.Gör. Ön Değ.'!I74="","",'Öğr.Gör. Ön Değ.'!I74) ->  | J74: =IF('Öğr.Gör. Ön Değ.'!J74="","",'Öğr.Gör. Ön Değ.'!J74) ->  | K74: =IF('Öğr.Gör. Ön Değ.'!K74="","",'Öğr.Gör. Ön Değ.'!K74) ->  | L74: =IF('Öğr.Gör. Ön Değ.'!L74="","",'Öğr.Gör. Ön Değ.'!L74) -> 
A75: =IF('Öğr.Gör. Ön Değ.'!A75="","",'Öğr.Gör. Ön Değ.'!A75) ->  | B75: =IF('Öğr.Gör. Ön Değ.'!B75="","",LEFT('Öğr.Gör. Ön Değ.'!B75,3)&REPT("*",4)&RIGHT('Öğr.Gör. Ön Değ.'!B75,2)) ->  | C75: =IF('Öğr.Gör. Ön Değ.'!C75="","",IF(ISERR(FIND(" ",'Öğr.Gör. Ön Değ.'!C75))=TRUE,LEFT('Öğr.Gör. Ön Değ.'!C75,2)&REPT("*",3),LEFT('Öğr.Gör. Ön Değ.'!C75,2)&REPT("*",3)&" "&MID('Öğr.Gör. Ön Değ.'!C75,FIND(" ",'Öğr.Gör. Ön Değ.'!C75)+1,2)&REPT("*",3))) ->  | D75: =IF('Öğr.Gör. Ön Değ.'!D75="","",IF(ISERR(FIND(" ",'Öğr.Gör. Ön Değ.'!D75))=TRUE,LEFT('Öğr.Gör. Ön Değ.'!D75,2)&REPT("*",3),LEFT('Öğr.Gör. Ön Değ.'!D75,2)&REPT("*",3)&" "&MID('Öğr.Gör. Ön Değ.'!D75,FIND(" ",'Öğr.Gör. Ön Değ.'!D75)+1,2)&REPT("*",3))) ->  | E75: =IF('Öğr.Gör. Ön Değ.'!E75="","",'Öğr.Gör. Ön Değ.'!E75) ->  | F75: =IF('Öğr.Gör. Ön Değ.'!F75="","",'Öğr.Gör. Ön Değ.'!F75) ->  | G75: =IF('Öğr.Gör. Ön Değ.'!G75="","",'Öğr.Gör. Ön Değ.'!G75) ->  | H75: =IF('Öğr.Gör. Ön Değ.'!H75="","",'Öğr.Gör. Ön Değ.'!H75) ->  | I75: =IF('Öğr.Gör. Ön Değ.'!I75="","",'Öğr.Gör. Ön Değ.'!I75) ->  | J75: =IF('Öğr.Gör. Ön Değ.'!J75="","",'Öğr.Gör. Ön Değ.'!J75) ->  | K75: =IF('Öğr.Gör. Ön Değ.'!K75="","",'Öğr.Gör. Ön Değ.'!K75) ->  | L75: =IF('Öğr.Gör. Ön Değ.'!L75="","",'Öğr.Gör. Ön Değ.'!L75) -> 

Sheet Lisans Öğr.Gör. Sonuç
A1: T.C.
A2: BAYBURT ÜNİVERSİTESİ
A3: GİRİŞ SINAVI SONUÇ TUTANAĞI
A4: Üniversitemize bağlı birimlere, 2547 sayılı Kanunun ilgili maddeleri ve 09.11.2018 tarih ve 30590 sayılı Resmi Gazetede yayımlanan "Öğretim Üyesi Dışındaki Öğretim Elemanı Kadrolarına Naklen veya Açıktan Yapılacak Atamalarda Uygulanacak Merkezi Sınav ile Giriş Sınavlarına İlişkin Usul ve Esaslar Hakkında Yönetmelik” 11. ve 12. maddeleri hükümleri uyarınca yapılan Giriş Sınavında başarılı olan adayların isimleri aşağıda belirtilmiştir.
A5: İlan No: | G5: Birimi: | J5: ….. Fakültesi / Yüksekokulu / Rektörlük
A6: İlan Tarihi: | C6: …/.../.... | G6: Bölümü: | J6: ….. Bölümü / … Ofisi / Başkanlığı
A7: Kadro Unvanı: | C7: Öğretim Görevlisi (Uygulamalı Birim) / (Lisans/Ders Verecek-Zorunlu Ortak Ders) | G7: Anabili Dalı: | J7: …… Anabilim Dalı
A8: Kadro Adedi: | C8: 1 | G8: Sınav Tarihi: | J8: …/.../.... | L8: Sonuç Tarihi: | N8: …/.../....
A9: İlan Özel Şartı:
A10: Sıra No | B10: Başvuranın | E10: ALES Puanı | G10: Yabancı Dil Puanı | I10: Lisans Mezuniyet Notu | K10: Giriş Sınavı | M10: (A+B+C+D) Değerlendirme Notu | N10: Sonuç
B11: T.C. Kimlik No | C11: Adı | D11: Soyadı | E11: Puanı | F11: (A) Puanın %30' u | G11: Puanı | H11: (B) Puanın %10' u | I11: 100' lük Sistem | J11: (C) Notun %30' u | K11: Giriş Sınav Notu | L11: (D) Notunun %30' u
A12: 1 | B12: 11111111111 | C12: Örnek | D12: Örnek | E12: 82.51392 | F12: =E12*0.3 -> 24.754176 | G12: 62.5 | H12: =G12*0.1 -> 6.25 | I12: 76.66 | J12: =I12*0.3 -> 22.998 | K12: 95 | L12: =K12*0.3 -> 28.5 | M12: =F12+H12+J12+L12 -> 82.502176 | N12: BAŞARILI (ASIL)
A13: 2 | B13: 11111111111 | C13: Örnek Örnek | D13: Örnek | E13: 85.03048 | F13: =E13*0.3 -> 25.509144 | G13: 52.5 | H13: =G13*0.1 -> 5.25 | I13: 76.66 | J13: =I13*0.3 -> 22.998 | K13: 63 | L13: =K13*0.3 -> 18.9 | M13: =F13+H13+J13+L13 -> 72.657144 | N13: BAŞARILI (YEDEK)
A14: 3 | B14: 11111111111 | C14: Örnek | D14: Örnek Örnek | E14: 84.43135 | F14: =E14*0.3 -> 25.329405 | G14: 70 | H14: =G14*0.1 -> 7 | I14: 83.66 | J14: =I14*0.3 -> 25.098 | K14: 45 | L14: =K14*0.3 -> 13.5 | M14: =F14+H14+J14+L14 -> 70.927405 | N14: YÖNETMELİK GEREĞİ ELENDİ*
A15: 4 | B15: 11111111111 | C15: Örnek Örnek | D15: Örnek Örnek | E15: 84.43135 | F15: =E15*0.3 -> 25.329405 | G15: 50 | H15: =G15*0.1 -> 5 | I15: 76.66 | J15: =I15*0.3 -> 22.998 | K15: 35 | L15: =K15*0.3 -> 10.5 | M15: =F15+H15+J15+L15 -> 63.827405 | N15: BAŞARISIZ**
A16: 5 | B16: 11111111111 | C16: Örnek | D16: Örnek | E16: 84.43135 | F16: =E16*0.3 -> 25.329405 | G16: 70 | H16: =G16*0.1 -> 7 | I16: 83.66 | J16: =I16*0.3 -> 25.098 | K16: Sınava Girmedi | L16: - | M16: - | N16: SINAVA GİRMEDİ

Sheet Sonuç Rapor
A1: T.C.
A2: BAYBURT ÜNİVERSİTESİ
A3: GİRİŞ SINAVI SONUÇ TUTANAĞI
A4: Üniversitemize bağlı birimlere, 2547 sayılı Kanunun ilgili maddeleri ve 09.11.2018 tarih ve 30590 sayılı Resmi Gazetede yayımlanan "Öğretim Üyesi Dışındaki Öğretim Elemanı Kadrolarına Naklen veya Açıktan Yapılacak Atamalarda Uygulanacak Merkezi Sınav ile Giriş Sınavlarına İlişkin Usul ve Esaslar Hakkında Yönetmelik” 11. ve 12. maddeleri hükümleri uyarınca yapılan Giriş Sınavında başarılı olan adayların isimleri aşağıda belirtilmiştir.
A5: İlan No: | C5: =IF('Lisans Öğr.Gör. Sonuç'!C5="","",'Lisans Öğr.Gör. Sonuç'!C5) ->  | G5: Birimi: | J5: =IF('Lisans Öğr.Gör. Sonuç'!J5="","",'Lisans Öğr.Gör. Sonuç'!J5) -> ….. Fakültesi / Yüksekokulu / Rektörlük
A6: İlan Tarihi: | C6: =IF('Lisans Öğr.Gör. Sonuç'!C6="","",'Lisans Öğr.Gör. Sonuç'!C6) -> …/.../.... | G6: Bölümü: | J6: =IF('Lisans Öğr.Gör. Sonuç'!J6="","",'Lisans Öğr.Gör. Sonuç'!J6) -> ….. Bölümü / … Ofisi / Başkanlığı
A7: Kadro Unvanı: | C7: =IF('Lisans Öğr.Gör. Sonuç'!C7="","",'Lisans Öğr.Gör. Sonuç'!C7) -> Öğretim Görevlisi (Uygulamalı Birim) / (Lisans/Ders Verecek-Zorunlu Ortak Ders) | G7: Anabili Dalı: | J7: =IF('Lisans Öğr.Gör. Sonuç'!J7="","",'Lisans Öğr.Gör. Sonuç'!J7) -> …… Anabilim Dalı
A8: Kadro Adedi: | C8: =IF('Lisans Öğr.Gör. Sonuç'!C8="","",'Lisans Öğr.Gör. Sonuç'!C8) -> 1 | G8: Sınav Tarihi: | J8: =IF('Lisans Öğr.Gör. Sonuç'!J8="","",'Lisans Öğr.Gör. Sonuç'!J8) -> …/.../.... | L8: Sonuç Tarihi: | N8: =IF('Lisans Öğr.Gör. Sonuç'!N8="","",'Lisans Öğr.Gör. Sonuç'!N8) -> …/.../....
A9: İlan Özel Şartı: | C9: =IF('Lisans Öğr.Gör. Sonuç'!C9="","",'Lisans Öğr.Gör. Sonuç'!C9) -> 
A10: Sıra No | B10: Başvuranın | E10: ALES Puanı | G10: Yabancı Dil Puanı | I10: Lisans Mezuniyet Notu | K10: Giriş Sınavı | M10: (A+B+C+D) Değerlendirme Notu | N10: Sonuç
B11: T.C. Kimlik No | C11: Adı | D11: Soyadı | E11: Puanı | F11: (A) Puanın %30' u | G11: Puanı | H11: (B) Puanın %10' u | I11: 100' lük Sistem | J11: (C) Notun %30' u | K11: Giriş Sınav Notu | L11: (D) Notunun %30' u
A12: =IF('Lisans Öğr.Gör. Sonuç'!A12="","",'Lisans Öğr.Gör. Sonuç'!A12) -> 1 | B12: =IF('Lisans Öğr.Gör. Sonuç'!B12="","",LEFT('Lisans Öğr.Gör. Sonuç'!B12,3)&REPT("*",4)&RIGHT('Lisans Öğr.Gör. Sonuç'!B12,2)) -> 111****11 | C12: =IF('Lisans Öğr.Gör. Sonuç'!C12="","",IF(ISERR(FIND(" ",'Lisans Öğr.Gör. Sonuç'!C12))=TRUE,LEFT('Lisans Öğr.Gör. Sonuç'!C12,2)&REPT("*",3),LEFT('Lisans Öğr.Gör. Sonuç'!C12,2)&REPT("*",3)&" "&MID('Lisans Öğr.Gör. Sonuç'!C12,FIND(" ",'Lisans Öğr.Gör. Sonuç'!C12)+1,2)&REPT("*",3))) -> Ör*** | D12: =IF('Lisans Öğr.Gör. Sonuç'!D12="","",IF(ISERR(FIND(" ",'Lisans Öğr.Gör. Sonuç'!D12))=TRUE,LEFT('Lisans Öğr.Gör. Sonuç'!D12,2)&REPT("*",3),LEFT('Lisans Öğr.Gör. Sonuç'!D12,2)&REPT("*",3)&" "&MID('Lisans Öğr.Gör. Sonuç'!D12,FIND(" ",'Lisans Öğr.Gör. Sonuç'!D12)+1,2)&REPT("*",3))) -> Ör*** | E12: =IF('Lisans Öğr.Gör. Sonuç'!E12="","",'Lisans Öğr.Gör. Sonuç'!E12) -> 82.51392 | F12: =IF('Lisans Öğr.Gör. Sonuç'!F12="","",'Lisans Öğr.Gör. Sonuç'!F12) -> 24.754176 | G12: =IF('Lisans Öğr.Gör. Sonuç'!G12="","",'Lisans Öğr.Gör. Sonuç'!G12) -> 62.5 | H12: =IF('Lisans Öğr.Gör. Sonuç'!H12="","",'Lisans Öğr.Gör. Sonuç'!H12) -> 6.25 | I12: =IF('Lisans Öğr.Gör. Sonuç'!I12="","",'Lisans Öğr.Gör. Sonuç'!I12) -> 76.66 | J12: =IF('Lisans Öğr.Gör. Sonuç'!J12="","",'Lisans Öğr.Gör. Sonuç'!J12) -> 22.998 | K12: =IF('Lisans Öğr.Gör. Sonuç'!K12="","",'Lisans Öğr.Gör. Sonuç'!K12) -> 95 | L12: =IF('Lisans Öğr.Gör. Sonuç'!L12="","",'Lisans Öğr.Gör. Sonuç'!L12) -> 28.5 | M12: =IF('Lisans Öğr.Gör. Sonuç'!M12="","",'Lisans Öğr.Gör. Sonuç'!M12) -> 82.502176 | N12: =IF('Lisans Öğr.Gör. Sonuç'!N12="","",'Lisans Öğr.Gör. Sonuç'!N12) -> BAŞARILI (ASIL)
A13: =IF('Lisans Öğr.Gör. Sonuç'!A13="","",'Lisans Öğr.Gör. Sonuç'!A13) -> 2 | B13: =IF('Lisans Öğr.Gör. Sonuç'!B13="","",LEFT('Lisans Öğr.Gör. Sonuç'!B13,3)&REPT("*",4)&RIGHT('Lisans Öğr.Gör. Sonuç'!B13,2)) -> 111****11 | C13: =IF('Lisans Öğr.Gör. Sonuç'!C13="","",IF(ISERR(FIND(" ",'Lisans Öğr.Gör. Sonuç'!C13))=TRUE,LEFT('Lisans Öğr.Gör. Sonuç'!C13,2)&REPT("*",3),LEFT('Lisans Öğr.Gör. Sonuç'!C13,2)&REPT("*",3)&" "&MID('Lisans Öğr.Gör. Sonuç'!C13,FIND(" ",'Lisans Öğr.Gör. Sonuç'!C13)+1,2)&REPT("*",3))) -> Ör*** Ör*** | D13: =IF('Lisans Öğr.Gör. Sonuç'!D13="","",IF(ISERR(FIND(" ",'Lisans Öğr.Gör. Sonuç'!D13))=TRUE,LEFT('Lisans Öğr.Gör. Sonuç'!D13,2)&REPT("*",3),LEFT('Lisans Öğr.Gör. Sonuç'!D13,2)&REPT("*",3)&" "&MID('Lisans Öğr.Gör. Sonuç'!D13,FIND(" ",'Lisans Öğr.Gör. Sonuç'!D13)+1,2)&REPT("*",3))) -> Ör*** | E13: =IF('Lisans Öğr.Gör. Sonuç'!E13="","",'Lisans Öğr.Gör. Sonuç'!E13) -> 85.03048 | F13: =IF('Lisans Öğr.Gör. Sonuç'!F13="","",'Lisans Öğr.Gör. Sonuç'!F13) -> 25.509144 | G13: =IF('Lisans Öğr.Gör. Sonuç'!G13="","",'Lisans Öğr.Gör. Sonuç'!G13) -> 52.5 | H13: =IF('Lisans Öğr.Gör. Sonuç'!H13="","",'Lisans Öğr.Gör. Sonuç'!H13) -> 5.25 | I13: =IF('Lisans Öğr.Gör. Sonuç'!I13="","",'Lisans Öğr.Gör. Sonuç'!I13) -> 76.66 | J13: =IF('Lisans Öğr.Gör. Sonuç'!J13="","",'Lisans Öğr.Gör. Sonuç'!J13) -> 22.998 | K13: =IF('Lisans Öğr.Gör. Sonuç'!K13="","",'Lisans Öğr.Gör. Sonuç'!K13) -> 63 | L13: =IF('Lisans Öğr.Gör. Sonuç'!L13="","",'Lisans Öğr.Gör. Sonuç'!L13) -> 18.9 | M13: =IF('Lisans Öğr.Gör. Sonuç'!M13="","",'Lisans Öğr.Gör. Sonuç'!M13) -> 72.657144 | N13: =IF('Lisans Öğr.Gör. Sonuç'!N13="","",'Lisans Öğr.Gör. Sonuç'!N13) -> BAŞARILI (YEDEK)
A14: =IF('Lisans Öğr.Gör. Sonuç'!A14="","",'Lisans Öğr.Gör. Sonuç'!A14) -> 3 | B14: =IF('Lisans Öğr.Gör. Sonuç'!B14="","",LEFT('Lisans Öğr.Gör. Sonuç'!B14,3)&REPT("*",4)&RIGHT('Lisans Öğr.Gör. Sonuç'!B14,2)) -> 111****11 | C14: =IF('Lisans Öğr.Gör. Sonuç'!C14="","",IF(ISERR(FIND(" ",'Lisans Öğr.Gör. Sonuç'!C14))=TRUE,LEFT('Lisans Öğr.Gör. Sonuç'!C14,2)&REPT("*",3),LEFT('Lisans Öğr.Gör. Sonuç'!C14,2)&REPT("*",3)&" "&MID('Lisans Öğr.Gör. Sonuç'!C14,FIND(" ",'Lisans Öğr.Gör. Sonuç'!C14)+1,2)&REPT("*",3))) -> Ör*** | D14: =IF('Lisans Öğr.Gör. Sonuç'!D14="","",IF(ISERR(FIND(" ",'Lisans Öğr.Gör. Sonuç'!D14))=TRUE,LEFT('Lisans Öğr.Gör. Sonuç'!D14,2)&REPT("*",3),LEFT('Lisans Öğr.Gör. Sonuç'!D14,2)&REPT("*",3)&" "&MID('Lisans Öğr.Gör. Sonuç'!D14,FIND(" ",'Lisans Öğr.Gör. Sonuç'!D14)+1,2)&REPT("*",3))) -> Ör*** Ör*** | E14: =IF('Lisans Öğr.Gör. Sonuç'!E14="","",'Lisans Öğr.Gör. Sonuç'!E14) -> 84.43135 | F14: =IF('Lisans Öğr.Gör. Sonuç'!F14="","",'Lisans Öğr.Gör. Sonuç'!F14) -> 25.329405 | G14: =IF('Lisans Öğr.Gör. Sonuç'!G14="","",'Lisans Öğr.Gör. Sonuç'!G14) -> 70 | H14: =IF('Lisans Öğr.Gör. Sonuç'!H14="","",'Lisans Öğr.Gör. Sonuç'!H14) -> 7 | I14: =IF('Lisans Öğr.Gör. Sonuç'!I14="","",'Lisans Öğr.Gör. Sonuç'!I14) -> 83.66 | J14: =IF('Lisans Öğr.Gör. Sonuç'!J14="","",'Lisans Öğr.Gör. Sonuç'!J14) -> 25.098 | K14: =IF('Lisans Öğr.Gör. Sonuç'!K14="","",'Lisans Öğr.Gör. Sonuç'!K14) -> 45 | L14: =IF('Lisans Öğr.Gör. Sonuç'!L14="","",'Lisans Öğr.Gör. Sonuç'!L14) -> 13.5 | M14: =IF('Lisans Öğr.Gör. Sonuç'!M14="","",'Lisans Öğr.Gör. Sonuç'!M14) -> 70.927405 | N14: =IF('Lisans Öğr.Gör. Sonuç'!N14="","",'Lisans Öğr.Gör. Sonuç'!N14) -> YÖNETMELİK GEREĞİ ELENDİ*
A15: =IF('Lisans Öğr.Gör. Sonuç'!A15="","",'Lisans Öğr.Gör. Sonuç'!A15) -> 4 | B15: =IF('Lisans Öğr.Gör. Sonuç'!B15="","",LEFT('Lisans Öğr.Gör. Sonuç'!B15,3)&REPT("*",4)&RIGHT('Lisans Öğr.Gör. Sonuç'!B15,2)) -> 111****11 | C15: =IF('Lisans Öğr.Gör. Sonuç'!C15="","",IF(ISERR(FIND(" ",'Lisans Öğr.Gör. Sonuç'!C15))=TRUE,LEFT('Lisans Öğr.Gör. Sonuç'!C15,2)&REPT("*",3),LEFT('Lisans Öğr.Gör. Sonuç'!C15,2)&REPT("*",3)&" "&MID('Lisans Öğr.Gör. Sonuç'!C15,FIND(" ",'Lisans Öğr.Gör. Sonuç'!C15)+1,2)&REPT("*",3))) -> Ör*** Ör*** | D15: =IF('Lisans Öğr.Gör. Sonuç'!D15="","",IF(ISERR(FIND(" ",'Lisans Öğr.Gör. Sonuç'!D15))=TRUE,LEFT('Lisans Öğr.Gör. Sonuç'!D15,2)&REPT("*",3),LEFT('Lisans Öğr.Gör. Sonuç'!D15,2)&REPT("*",3)&" "&MID('Lisans Öğr.Gör. Sonuç'!D15,FIND(" ",'Lisans Öğr.Gör. Sonuç'!D15)+1,2)&REPT("*",3))) -> Ör*** Ör*** | E15: =IF('Lisans Öğr.Gör. Sonuç'!E15="","",'Lisans Öğr.Gör. Sonuç'!E15) -> 84.43135 | F15: =IF('Lisans Öğr.Gör. Sonuç'!F15="","",'Lisans Öğr.Gör. Sonuç'!F15) -> 25.329405 | G15: =IF('Lisans Öğr.Gör. Sonuç'!G15="","",'Lisans Öğr.Gör. Sonuç'!G15) -> 50 | H15: =IF('Lisans Öğr.Gör. Sonuç'!H15="","",'Lisans Öğr.Gör. Sonuç'!H15) -> 5 | I15: =IF('Lisans Öğr.Gör. Sonuç'!I15="","",'Lisans Öğr.Gör. Sonuç'!I15) -> 76.66 | J15: =IF('Lisans Öğr.Gör. Sonuç'!J15="","",'Lisans Öğr.Gör. Sonuç'!J15) -> 22.998 | K15: =IF('Lisans Öğr.Gör. Sonuç'!K15="","",'Lisans Öğr.Gör. Sonuç'!K15) -> 35 | L15: =IF('Lisans Öğr.Gör. Sonuç'!L15="","",'Lisans Öğr.Gör. Sonuç'!L15) -> 10.5 | M15: =IF('Lisans Öğr.Gör. Sonuç'!M15="","",'Lisans Öğr.Gör. Sonuç'!M15) -> 63.827405 | N15: =IF('Lisans Öğr.Gör. Sonuç'!N15="","",'Lisans Öğr.Gör. Sonuç'!N15) -> BAŞARISIZ**
A16: =IF('Lisans Öğr.Gör. Sonuç'!A16="","",'Lisans Öğr.Gör. Sonuç'!A16) -> 5 | B16: =IF('Lisans Öğr.Gör. Sonuç'!B16="","",LEFT('Lisans Öğr.Gör. Sonuç'!B16,3)&REPT("*",4)&RIGHT('Lisans Öğr.Gör. Sonuç'!B16,2)) -> 111****11 | C16: =IF('Lisans Öğr.Gör. Sonuç'!C16="","",IF(ISERR(FIND(" ",'Lisans Öğr.Gör. Sonuç'!C16))=TRUE,LEFT('Lisans Öğr.Gör. Sonuç'!C16,2)&REPT("*",3),LEFT('Lisans Öğr.Gör. Sonuç'!C16,2)&REPT("*",3)&" "&MID('Lisans Öğr.Gör. Sonuç'!C16,FIND(" ",'Lisans Öğr.Gör. Sonuç'!C16)+1,2)&REPT("*",3))) -> Ör*** | D16: =IF('Lisans Öğr.Gör. Sonuç'!D16="","",IF(ISERR(FIND(" ",'Lisans Öğr.Gör. Sonuç'!D16))=TRUE,LEFT('Lisans Öğr.Gör. Sonuç'!D16,2)&REPT("*",3),LEFT('Lisans Öğr.Gör. Sonuç'!D16,2)&REPT("*",3)&" "&MID('Lisans Öğr.Gör. Sonuç'!D16,FIND(" ",'Lisans Öğr.Gör. Sonuç'!D16)+1,2)&REPT("*",3))) -> Ör*** | E16: =IF('Lisans Öğr.Gör. Sonuç'!E16="","",'Lisans Öğr.Gör. Sonuç'!E16) -> 84.43135 | F16: =IF('Lisans Öğr.Gör. Sonuç'!F16="","",'Lisans Öğr.Gör. Sonuç'!F16) -> 25.329405 | G16: =IF('Lisans Öğr.Gör. Sonuç'!G16="","",'Lisans Öğr.Gör. Sonuç'!G16) -> 70 | H16: =IF('Lisans Öğr.Gör. Sonuç'!H16="","",'Lisans Öğr.Gör. Sonuç'!H16) -> 7 | I16: =IF('Lisans Öğr.Gör. Sonuç'!I16="","",'Lisans Öğr.Gör. Sonuç'!I16) -> 83.66 | J16: =IF('Lisans Öğr.Gör. Sonuç'!J16="","",'Lisans Öğr.Gör. Sonuç'!J16) -> 25.098 | K16: =IF('Lisans Öğr.Gör. Sonuç'!K16="","",'Lisans Öğr.Gör. Sonuç'!K16) -> Sınava Girmedi | L16: =IF('Lisans Öğr.Gör. Sonuç'!L16="","",'Lisans Öğr.Gör. Sonuç'!L16) -> - | M16: =IF('Lisans Öğr.Gör. Sonuç'!M16="","",'Lisans Öğr.Gör. Sonuç'!M16) -> - | N16: =IF('Lisans Öğr.Gör. Sonuç'!N16="","",'Lisans Öğr.Gör. Sonuç'!N16) -> SINAVA GİRMEDİ
A17: =IF('Lisans Öğr.Gör. Sonuç'!A17="","",'Lisans Öğr.Gör. Sonuç'!A17) ->  | B17: =IF('Lisans Öğr.Gör. Sonuç'!B17="","",LEFT('Lisans Öğr.Gör. Sonuç'!B17,3)&REPT("*",4)&RIGHT('Lisans Öğr.Gör. Sonuç'!B17,2)) ->  | C17: =IF('Lisans Öğr.Gör. Sonuç'!C17="","",IF(ISERR(FIND(" ",'Lisans Öğr.Gör. Sonuç'!C17))=TRUE,LEFT('Lisans Öğr.Gör. Sonuç'!C17,2)&REPT("*",3),LEFT('Lisans Öğr.Gör. Sonuç'!C17,2)&REPT("*",3)&" "&MID('Lisans Öğr.Gör. Sonuç'!C17,FIND(" ",'Lisans Öğr.Gör. Sonuç'!C17)+1,2)&REPT("*",3))) ->  | D17: =IF('Lisans Öğr.Gör. Sonuç'!D17="","",IF(ISERR(FIND(" ",'Lisans Öğr.Gör. Sonuç'!D17))=TRUE,LEFT('Lisans Öğr.Gör. Sonuç'!D17,2)&REPT("*",3),LEFT('Lisans Öğr.Gör. Sonuç'!D17,2)&REPT("*",3)&" "&MID('Lisans Öğr.Gör. Sonuç'!D17,FIND(" ",'Lisans Öğr.Gör. Sonuç'!D17)+1,2)&REPT("*",3))) ->  | E17: =IF('Lisans Öğr.Gör. Sonuç'!E17="","",'Lisans Öğr.Gör. Sonuç'!E17) ->  | F17: =IF('Lisans Öğr.Gör. Sonuç'!F17="","",'Lisans Öğr.Gör. Sonuç'!F17) ->  | G17: =IF('Lisans Öğr.Gör. Sonuç'!G17="","",'Lisans Öğr.Gör. Sonuç'!G17) ->  | H17: =IF('Lisans Öğr.Gör. Sonuç'!H17="","",'Lisans Öğr.Gör. Sonuç'!H17) ->  | I17: =IF('Lisans Öğr.Gör. Sonuç'!I17="","",'Lisans Öğr.Gör. Sonuç'!I17) ->  | J17: =IF('Lisans Öğr.Gör. Sonuç'!J17="","",'Lisans Öğr.Gör. Sonuç'!J17) ->  | K17: =IF('Lisans Öğr.Gör. Sonuç'!K17="","",'Lisans Öğr.Gör. Sonuç'!K17) ->  | L17: =IF('Lisans Öğr.Gör. Sonuç'!L17="","",'Lisans Öğr.Gör. Sonuç'!L17) ->  | M17: =IF('Lisans Öğr.Gör. Sonuç'!M17="","",'Lisans Öğr.Gör. Sonuç'!M17) ->  | N17: =IF('Lisans Öğr.Gör. Sonuç'!N17="","",'Lisans Öğr.Gör. Sonuç'!N17) -> 
A18: =IF('Lisans Öğr.Gör. Sonuç'!A18="","",'Lisans Öğr.Gör. Sonuç'!A18) ->  | B18: =IF('Lisans Öğr.Gör. Sonuç'!B18="","",LEFT('Lisans Öğr.Gör. Sonuç'!B18,3)&REPT("*",4)&RIGHT('Lisans Öğr.Gör. Sonuç'!B18,2)) ->  | C18: =IF('Lisans Öğr.Gör. Sonuç'!C18="","",IF(ISERR(FIND(" ",'Lisans Öğr.Gör. Sonuç'!C18))=TRUE,LEFT('Lisans Öğr.Gör. Sonuç'!C18,2)&REPT("*",3),LEFT('Lisans Öğr.Gör. Sonuç'!C18,2)&REPT("*",3)&" "&MID('Lisans Öğr.Gör. Sonuç'!C18,FIND(" ",'Lisans Öğr.Gör. Sonuç'!C18)+1,2)&REPT("*",3))) ->  | D18: =IF('Lisans Öğr.Gör. Sonuç'!D18="","",IF(ISERR(FIND(" ",'Lisans Öğr.Gör. Sonuç'!D18))=TRUE,LEFT('Lisans Öğr.Gör. Sonuç'!D18,2)&REPT("*",3),LEFT('Lisans Öğr.Gör. Sonuç'!D18,2)&REPT("*",3)&" "&MID('Lisans Öğr.Gör. Sonuç'!D18,FIND(" ",'Lisans Öğr.Gör. Sonuç'!D18)+1,2)&REPT("*",3))) ->  | E18: =IF('Lisans Öğr.Gör. Sonuç'!E18="","",'Lisans Öğr.Gör. Sonuç'!E18) ->  | F18: =IF('Lisans Öğr.Gör. Sonuç'!F18="","",'Lisans Öğr.Gör. Sonuç'!F18) ->  | G18: =IF('Lisans Öğr.Gör. Sonuç'!G18="","",'Lisans Öğr.Gör. Sonuç'!G18) ->  | H18: =IF('Lisans Öğr.Gör. Sonuç'!H18="","",'Lisans Öğr.Gör. Sonuç'!H18) ->  | I18: =IF('Lisans Öğr.Gör. Sonuç'!I18="","",'Lisans Öğr.Gör. Sonuç'!I18) ->  | J18: =IF('Lisans Öğr.Gör. Sonuç'!J18="","",'Lisans Öğr.Gör. Sonuç'!J18) ->  | K18: =IF('Lisans Öğr.Gör. Sonuç'!K18="","",'Lisans Öğr.Gör. Sonuç'!K18) ->  | L18: =IF('Lisans Öğr.Gör. Sonuç'!L18="","",'Lisans Öğr.Gör. Sonuç'!L18) ->  | M18: =IF('Lisans Öğr.Gör. Sonuç'!M18="","",'Lisans Öğr.Gör. Sonuç'!M18) ->  | N18: =IF('Lisans Öğr.Gör. Sonuç'!N18="","",'Lisans Öğr.Gör. Sonuç'!N18) -> 
A19: =IF('Lisans Öğr.Gör. Sonuç'!A19="","",'Lisans Öğr.Gör. Sonuç'!A19) ->  | B19: =IF('Lisans Öğr.Gör. Sonuç'!B19="","",LEFT('Lisans Öğr.Gör. Sonuç'!B19,3)&REPT("*",4)&RIGHT('Lisans Öğr.Gör. Sonuç'!B19,2)) ->  | C19: =IF('Lisans Öğr.Gör. Sonuç'!C19="","",IF(ISERR(FIND(" ",'Lisans Öğr.Gör. Sonuç'!C19))=TRUE,LEFT('Lisans Öğr.Gör. Sonuç'!C19,2)&REPT("*",3),LEFT('Lisans Öğr.Gör. Sonuç'!C19,2)&REPT("*",3)&" "&MID('Lisans Öğr.Gör. Sonuç'!C19,FIND(" ",'Lisans Öğr.Gör. Sonuç'!C19)+1,2)&REPT("*",3))) ->  | D19: =IF('Lisans Öğr.Gör. Sonuç'!D19="","",IF(ISERR(FIND(" ",'Lisans Öğr.Gör. Sonuç'!D19))=TRUE,LEFT('Lisans Öğr.Gör. Sonuç'!D19,2)&REPT("*",3),LEFT('Lisans Öğr.Gör. Sonuç'!D19,2)&REPT("*",3)&" "&MID('Lisans Öğr.Gör. Sonuç'!D19,FIND(" ",'Lisans Öğr.Gör. Sonuç'!D19)+1,2)&REPT("*",3))) ->  | E19: =IF('Lisans Öğr.Gör. Sonuç'!E19="","",'Lisans Öğr.Gör. Sonuç'!E19) ->  | F19: =IF('Lisans Öğr.Gör. Sonuç'!F19="","",'Lisans Öğr.Gör. Sonuç'!F19) ->  | G19: =IF('Lisans Öğr.Gör. Sonuç'!G19="","",'Lisans Öğr.Gör. Sonuç'!G19) ->  | H19: =IF('Lisans Öğr.Gör. Sonuç'!H19="","",'Lisans Öğr.Gör. Sonuç'!H19) ->  | I19: =IF('Lisans Öğr.Gör. Sonuç'!I19="","",'Lisans Öğr.Gör. Sonuç'!I19) ->  | J19: =IF('Lisans Öğr.Gör. Sonuç'!J19="","",'Lisans Öğr.Gör. Sonuç'!J19) ->  | K19: =IF('Lisans Öğr.Gör. Sonuç'!K19="","",'Lisans Öğr.Gör. Sonuç'!K19) ->  | L19: =IF('Lisans Öğr.Gör. Sonuç'!L19="","",'Lisans Öğr.Gör. Sonuç'!L19) ->  | M19: =IF('Lisans Öğr.Gör. Sonuç'!M19="","",'Lisans Öğr.Gör. Sonuç'!M19) ->  | N19: =IF('Lisans Öğr.Gör. Sonuç'!N19="","",'Lisans Öğr.Gör. Sonuç'!N19) -> 
A20: =IF('Lisans Öğr.Gör. Sonuç'!A20="","",'Lisans Öğr.Gör. Sonuç'!A20) ->  | B20: =IF('Lisans Öğr.Gör. Sonuç'!B20="","",LEFT('Lisans Öğr.Gör. Sonuç'!B20,3)&REPT("*",4)&RIGHT('Lisans Öğr.Gör. Sonuç'!B20,2)) ->  | C20: =IF('Lisans Öğr.Gör. Sonuç'!C20="","",IF(ISERR(FIND(" ",'Lisans Öğr.Gör. Sonuç'!C20))=TRUE,LEFT('Lisans Öğr.Gör. Sonuç'!C20,2)&REPT("*",3),LEFT('Lisans Öğr.Gör. Sonuç'!C20,2)&REPT("*",3)&" "&MID('Lisans Öğr.Gör. Sonuç'!C20,FIND(" ",'Lisans Öğr.Gör. Sonuç'!C20)+1,2)&REPT("*",3))) ->  | D20: =IF('Lisans Öğr.Gör. Sonuç'!D20="","",IF(ISERR(FIND(" ",'Lisans Öğr.Gör. Sonuç'!D20))=TRUE,LEFT('Lisans Öğr.Gör. Sonuç'!D20,2)&REPT("*",3),LEFT('Lisans Öğr.Gör. Sonuç'!D20,2)&REPT("*",3)&" "&MID('Lisans Öğr.Gör. Sonuç'!D20,FIND(" ",'Lisans Öğr.Gör. Sonuç'!D20)+1,2)&REPT("*",3))) ->  | E20: =IF('Lisans Öğr.Gör. Sonuç'!E20="","",'Lisans Öğr.Gör. Sonuç'!E20) ->  | F20: =IF('Lisans Öğr.Gör. Sonuç'!F20="","",'Lisans Öğr.Gör. Sonuç'!F20) ->  | G20: =IF('Lisans Öğr.Gör. Sonuç'!G20="","",'Lisans Öğr.Gör. Sonuç'!G20) ->  | H20: =IF('Lisans Öğr.Gör. Sonuç'!H20="","",'Lisans Öğr.Gör. Sonuç'!H20) ->  | I20: =IF('Lisans Öğr.Gör. Sonuç'!I20="","",'Lisans Öğr.Gör. Sonuç'!I20) ->  | J20: =IF('Lisans Öğr.Gör. Sonuç'!J20="","",'Lisans Öğr.Gör. Sonuç'!J20) ->  | K20: =IF('Lisans Öğr.Gör. Sonuç'!K20="","",'Lisans Öğr.Gör. Sonuç'!K20) ->  | L20: =IF('Lisans Öğr.Gör. Sonuç'!L20="","",'Lisans Öğr.Gör. Sonuç'!L20) ->  | M20: =IF('Lisans Öğr.Gör. Sonuç'!M20="","",'Lisans Öğr.Gör. Sonuç'!M20) ->  | N20: =IF('Lisans Öğr.Gör. Sonuç'!N20="","",'Lisans Öğr.Gör. Sonuç'!N20) -> 
A21: =IF('Lisans Öğr.Gör. Sonuç'!A21="","",'Lisans Öğr.Gör. Sonuç'!A21) ->  | B21: =IF('Lisans Öğr.Gör. Sonuç'!B21="","",LEFT('Lisans Öğr.Gör. Sonuç'!B21,3)&REPT("*",4)&RIGHT('Lisans Öğr.Gör. Sonuç'!B21,2)) ->  | C21: =IF('Lisans Öğr.Gör. Sonuç'!C21="","",IF(ISERR(FIND(" ",'Lisans Öğr.Gör. Sonuç'!C21))=TRUE,LEFT('Lisans Öğr.Gör. Sonuç'!C21,2)&REPT("*",3),LEFT('Lisans Öğr.Gör. Sonuç'!C21,2)&REPT("*",3)&" "&MID('Lisans Öğr.Gör. Sonuç'!C21,FIND(" ",'Lisans Öğr.Gör. Sonuç'!C21)+1,2)&REPT("*",3))) ->  | D21: =IF('Lisans Öğr.Gör. Sonuç'!D21="","",IF(ISERR(FIND(" ",'Lisans Öğr.Gör. Sonuç'!D21))=TRUE,LEFT('Lisans Öğr.Gör. Sonuç'!D21,2)&REPT("*",3),LEFT('Lisans Öğr.Gör. Sonuç'!D21,2)&REPT("*",3)&" "&MID('Lisans Öğr.Gör. Sonuç'!D21,FIND(" ",'Lisans Öğr.Gör. Sonuç'!D21)+1,2)&REPT("*",3))) ->  | E21: =IF('Lisans Öğr.Gör. Sonuç'!E21="","",'Lisans Öğr.Gör. Sonuç'!E21) ->  | F21: =IF('Lisans Öğr.Gör. Sonuç'!F21="","",'Lisans Öğr.Gör. Sonuç'!F21) ->  | G21: =IF('Lisans Öğr.Gör. Sonuç'!G21="","",'Lisans Öğr.Gör. Sonuç'!G21) ->  | H21: =IF('Lisans Öğr.Gör. Sonuç'!H21="","",'Lisans Öğr.Gör. Sonuç'!H21) ->  | I21: =IF('Lisans Öğr.Gör. Sonuç'!I21="","",'Lisans Öğr.Gör. Sonuç'!I21) ->  | J21: =IF('Lisans Öğr.Gör. Sonuç'!J21="","",'Lisans Öğr.Gör. Sonuç'!J21) ->  | K21: =IF('Lisans Öğr.Gör. Sonuç'!K21="","",'Lisans Öğr.Gör. Sonuç'!K21) ->  | L21: =IF('Lisans Öğr.Gör. Sonuç'!L21="","",'Lisans Öğr.Gör. Sonuç'!L21) ->  | M21: =IF('Lisans Öğr.Gör. Sonuç'!M21="","",'Lisans Öğr.Gör. Sonuç'!M21) ->  | N21: =IF('Lisans Öğr.Gör. Sonuç'!N21="","",'Lisans Öğr.Gör. Sonuç'!N21) -> 
A22: =IF('Lisans Öğr.Gör. Sonuç'!A22="","",'Lisans Öğr.Gör. Sonuç'!A22) ->  | B22: =IF('Lisans Öğr.Gör. Sonuç'!B22="","",LEFT('Lisans Öğr.Gör. Sonuç'!B22,3)&REPT("*",4)&RIGHT('Lisans Öğr.Gör. Sonuç'!B22,2)) ->  | C22: =IF('Lisans Öğr.Gör. Sonuç'!C22="","",IF(ISERR(FIND(" ",'Lisans Öğr.Gör. Sonuç'!C22))=TRUE,LEFT('Lisans Öğr.Gör. Sonuç'!C22,2)&REPT("*",3),LEFT('Lisans Öğr.Gör. Sonuç'!C22,2)&REPT("*",3)&" "&MID('Lisans Öğr.Gör. Sonuç'!C22,FIND(" ",'Lisans Öğr.Gör. Sonuç'!C22)+1,2)&REPT("*",3))) ->  | D22: =IF('Lisans Öğr.Gör. Sonuç'!D22="","",IF(ISERR(FIND(" ",'Lisans Öğr.Gör. Sonuç'!D22))=TRUE,LEFT('Lisans Öğr.Gör. Sonuç'!D22,2)&REPT("*",3),LEFT('Lisans Öğr.Gör. Sonuç'!D22,2)&REPT("*",3)&" "&MID('Lisans Öğr.Gör. Sonuç'!D22,FIND(" ",'Lisans Öğr.Gör. Sonuç'!D22)+1,2)&REPT("*",3))) ->  | E22: =IF('Lisans Öğr.Gör. Sonuç'!E22="","",'Lisans Öğr.Gör. Sonuç'!E22) ->  | F22: =IF('Lisans Öğr.Gör. Sonuç'!F22="","",'Lisans Öğr.Gör. Sonuç'!F22) ->  | G22: =IF('Lisans Öğr.Gör. Sonuç'!G22="","",'Lisans Öğr.Gör. Sonuç'!G22) ->  | H22: =IF('Lisans Öğr.Gör. Sonuç'!H22="","",'Lisans Öğr.Gör. Sonuç'!H22) ->  | I22: =IF('Lisans Öğr.Gör. Sonuç'!I22="","",'Lisans Öğr.Gör. Sonuç'!I22) ->  | J22: =IF('Lisans Öğr.Gör. Sonuç'!J22="","",'Lisans Öğr.Gör. Sonuç'!J22) ->  | K22: =IF('Lisans Öğr.Gör. Sonuç'!K22="","",'Lisans Öğr.Gör. Sonuç'!K22) ->  | L22: =IF('Lisans Öğr.Gör. Sonuç'!L22="","",'Lisans Öğr.Gör. Sonuç'!L22) ->  | M22: =IF('Lisans Öğr.Gör. Sonuç'!M22="","",'Lisans Öğr.Gör. Sonuç'!M22) ->  | N22: =IF('Lisans Öğr.Gör. Sonuç'!N22="","",'Lisans Öğr.Gör. Sonuç'!N22) -> 
A23: =IF('Lisans Öğr.Gör. Sonuç'!A23="","",'Lisans Öğr.Gör. Sonuç'!A23) ->  | B23: =IF('Lisans Öğr.Gör. Sonuç'!B23="","",LEFT('Lisans Öğr.Gör. Sonuç'!B23,3)&REPT("*",4)&RIGHT('Lisans Öğr.Gör. Sonuç'!B23,2)) ->  | C23: =IF('Lisans Öğr.Gör. Sonuç'!C23="","",IF(ISERR(FIND(" ",'Lisans Öğr.Gör. Sonuç'!C23))=TRUE,LEFT('Lisans Öğr.Gör. Sonuç'!C23,2)&REPT("*",3),LEFT('Lisans Öğr.Gör. Sonuç'!C23,2)&REPT("*",3)&" "&MID('Lisans Öğr.Gör. Sonuç'!C23,FIND(" ",'Lisans Öğr.Gör. Sonuç'!C23)+1,2)&REPT("*",3))) ->  | D23: =IF('Lisans Öğr.Gör. Sonuç'!D23="","",IF(ISERR(FIND(" ",'Lisans Öğr.Gör. Sonuç'!D23))=TRUE,LEFT('Lisans Öğr.Gör. Sonuç'!D23,2)&REPT("*",3),LEFT('Lisans Öğr.Gör. Sonuç'!D23,2)&REPT("*",3)&" "&MID('Lisans Öğr.Gör. Sonuç'!D23,FIND(" ",'Lisans Öğr.Gör. Sonuç'!D23)+1,2)&REPT("*",3))) ->  | E23: =IF('Lisans Öğr.Gör. Sonuç'!E23="","",'Lisans Öğr.Gör. Sonuç'!E23) ->  | F23: =IF('Lisans Öğr.Gör. Sonuç'!F23="","",'Lisans Öğr.Gör. Sonuç'!F23) ->  | G23: =IF('Lisans Öğr.Gör. Sonuç'!G23="","",'Lisans Öğr.Gör. Sonuç'!G23) ->  | H23: =IF('Lisans Öğr.Gör. Sonuç'!H23="","",'Lisans Öğr.Gör. Sonuç'!H23) ->  | I23: =IF('Lisans Öğr.Gör. Sonuç'!I23="","",'Lisans Öğr.Gör. Sonuç'!I23) ->  | J23: =IF('Lisans Öğr.Gör. Sonuç'!J23="","",'Lisans Öğr.Gör. Sonuç'!J23) ->  | K23: =IF('Lisans Öğr.Gör. Sonuç'!K23="","",'Lisans Öğr.Gör. Sonuç'!K23) ->  | L23: =IF('Lisans Öğr.Gör. Sonuç'!L23="","",'Lisans Öğr.Gör. Sonuç'!L23) ->  | M23: =IF('Lisans Öğr.Gör. Sonuç'!M23="","",'Lisans Öğr.Gör. Sonuç'!M23) ->  | N23: =IF('Lisans Öğr.Gör. Sonuç'!N23="","",'Lisans Öğr.Gör. Sonuç'!N23) -> 
A24: =IF('Lisans Öğr.Gör. Sonuç'!A24="","",'Lisans Öğr.Gör. Sonuç'!A24) ->  | B24: =IF('Lisans Öğr.Gör. Sonuç'!B24="","",LEFT('Lisans Öğr.Gör. Sonuç'!B24,3)&REPT("*",4)&RIGHT('Lisans Öğr.Gör. Sonuç'!B24,2)) ->  | C24: =IF('Lisans Öğr.Gör. Sonuç'!C24="","",IF(ISERR(FIND(" ",'Lisans Öğr.Gör. Sonuç'!C24))=TRUE,LEFT('Lisans Öğr.Gör. Sonuç'!C24,2)&REPT("*",3),LEFT('Lisans Öğr.Gör. Sonuç'!C24,2)&REPT("*",3)&" "&MID('Lisans Öğr.Gör. Sonuç'!C24,FIND(" ",'Lisans Öğr.Gör. Sonuç'!C24)+1,2)&REPT("*",3))) ->  | D24: =IF('Lisans Öğr.Gör. Sonuç'!D24="","",IF(ISERR(FIND(" ",'Lisans Öğr.Gör. Sonuç'!D24))=TRUE,LEFT('Lisans Öğr.Gör. Sonuç'!D24,2)&REPT("*",3),LEFT('Lisans Öğr.Gör. Sonuç'!D24,2)&REPT("*",3)&" "&MID('Lisans Öğr.Gör. Sonuç'!D24,FIND(" ",'Lisans Öğr.Gör. Sonuç'!D24)+1,2)&REPT("*",3))) ->  | E24: =IF('Lisans Öğr.Gör. Sonuç'!E24="","",'Lisans Öğr.Gör. Sonuç'!E24) ->  | F24: =IF('Lisans Öğr.Gör. Sonuç'!F24="","",'Lisans Öğr.Gör. Sonuç'!F24) ->  | G24: =IF('Lisans Öğr.Gör. Sonuç'!G24="","",'Lisans Öğr.Gör. Sonuç'!G24) ->  | H24: =IF('Lisans Öğr.Gör. Sonuç'!H24="","",'Lisans Öğr.Gör. Sonuç'!H24) ->  | I24: =IF('Lisans Öğr.Gör. Sonuç'!I24="","",'Lisans Öğr.Gör. Sonuç'!I24) ->  | J24: =IF('Lisans Öğr.Gör. Sonuç'!J24="","",'Lisans Öğr.Gör. Sonuç'!J24) ->  | K24: =IF('Lisans Öğr.Gör. Sonuç'!K24="","",'Lisans Öğr.Gör. Sonuç'!K24) ->  | L24: =IF('Lisans Öğr.Gör. Sonuç'!L24="","",'Lisans Öğr.Gör. Sonuç'!L24) ->  | M24: =IF('Lisans Öğr.Gör. Sonuç'!M24="","",'Lisans Öğr.Gör. Sonuç'!M24) ->  | N24: =IF('Lisans Öğr.Gör. Sonuç'!N24="","",'Lisans Öğr.Gör. Sonuç'!N24) -> 
A25: =IF('Lisans Öğr.Gör. Sonuç'!A25="","",'Lisans Öğr.Gör. Sonuç'!A25) ->  | B25: =IF('Lisans Öğr.Gör. Sonuç'!B25="","",LEFT('Lisans Öğr.Gör. Sonuç'!B25,3)&REPT("*",4)&RIGHT('Lisans Öğr.Gör. Sonuç'!B25,2)) ->  | C25: =IF('Lisans Öğr.Gör. Sonuç'!C25="","",IF(ISERR(FIND(" ",'Lisans Öğr.Gör. Sonuç'!C25))=TRUE,LEFT('Lisans Öğr.Gör. Sonuç'!C25,2)&REPT("*",3),LEFT('Lisans Öğr.Gör. Sonuç'!C25,2)&REPT("*",3)&" "&MID('Lisans Öğr.Gör. Sonuç'!C25,FIND(" ",'Lisans Öğr.Gör. Sonuç'!C25)+1,2)&REPT("*",3))) ->  | D25: =IF('Lisans Öğr.Gör. Sonuç'!D25="","",IF(ISERR(FIND(" ",'Lisans Öğr.Gör. Sonuç'!D25))=TRUE,LEFT('Lisans Öğr.Gör. Sonuç'!D25,2)&REPT("*",3),LEFT('Lisans Öğr.Gör. Sonuç'!D25,2)&REPT("*",3)&" "&MID('Lisans Öğr.Gör. Sonuç'!D25,FIND(" ",'Lisans Öğr.Gör. Sonuç'!D25)+1,2)&REPT("*",3))) ->  | E25: =IF('Lisans Öğr.Gör. Sonuç'!E25="","",'Lisans Öğr.Gör. Sonuç'!E25) ->  | F25: =IF('Lisans Öğr.Gör. Sonuç'!F25="","",'Lisans Öğr.Gör. Sonuç'!F25) ->  | G25: =IF('Lisans Öğr.Gör. Sonuç'!G25="","",'Lisans Öğr.Gör. Sonuç'!G25) ->  | H25: =IF('Lisans Öğr.Gör. Sonuç'!H25="","",'Lisans Öğr.Gör. Sonuç'!H25) ->  | I25: =IF('Lisans Öğr.Gör. Sonuç'!I25="","",'Lisans Öğr.Gör. Sonuç'!I25) ->  | J25: =IF('Lisans Öğr.Gör. Sonuç'!J25="","",'Lisans Öğr.Gör. Sonuç'!J25) ->  | K25: =IF('Lisans Öğr.Gör. Sonuç'!K25="","",'Lisans Öğr.Gör. Sonuç'!K25) ->  | L25: =IF('Lisans Öğr.Gör. Sonuç'!L25="","",'Lisans Öğr.Gör. Sonuç'!L25) ->  | M25: =IF('Lisans Öğr.Gör. Sonuç'!M25="","",'Lisans Öğr.Gör. Sonuç'!M25) ->  | N25: =IF('Lisans Öğr.Gör. Sonuç'!N25="","",'Lisans Öğr.Gör. Sonuç'!N25) -> 
A26: =IF('Lisans Öğr.Gör. Sonuç'!A26="","",'Lisans Öğr.Gör. Sonuç'!A26) ->  | B26: =IF('Lisans Öğr.Gör. Sonuç'!B26="","",LEFT('Lisans Öğr.Gör. Sonuç'!B26,3)&REPT("*",4)&RIGHT('Lisans Öğr.Gör. Sonuç'!B26,2)) ->  | C26: =IF('Lisans Öğr.Gör. Sonuç'!C26="","",IF(ISERR(FIND(" ",'Lisans Öğr.Gör. Sonuç'!C26))=TRUE,LEFT('Lisans Öğr.Gör. Sonuç'!C26,2)&REPT("*",3),LEFT('Lisans Öğr.Gör. Sonuç'!C26,2)&REPT("*",3)&" "&MID('Lisans Öğr.Gör. Sonuç'!C26,FIND(" ",'Lisans Öğr.Gör. Sonuç'!C26)+1,2)&REPT("*",3))) ->  | D26: =IF('Lisans Öğr.Gör. Sonuç'!D26="","",IF(ISERR(FIND(" ",'Lisans Öğr.Gör. Sonuç'!D26))=TRUE,LEFT('Lisans Öğr.Gör. Sonuç'!D26,2)&REPT("*",3),LEFT('Lisans Öğr.Gör. Sonuç'!D26,2)&REPT("*",3)&" "&MID('Lisans Öğr.Gör. Sonuç'!D26,FIND(" ",'Lisans Öğr.Gör. Sonuç'!D26)+1,2)&REPT("*",3))) ->  | E26: =IF('Lisans Öğr.Gör. Sonuç'!E26="","",'Lisans Öğr.Gör. Sonuç'!E26) ->  | F26: =IF('Lisans Öğr.Gör. Sonuç'!F26="","",'Lisans Öğr.Gör. Sonuç'!F26) ->  | G26: =IF('Lisans Öğr.Gör. Sonuç'!G26="","",'Lisans Öğr.Gör. Sonuç'!G26) ->  | H26: =IF('Lisans Öğr.Gör. Sonuç'!H26="","",'Lisans Öğr.Gör. Sonuç'!H26) ->  | I26: =IF('Lisans Öğr.Gör. Sonuç'!I26="","",'Lisans Öğr.Gör. Sonuç'!I26) ->  | J26: =IF('Lisans Öğr.Gör. Sonuç'!J26="","",'Lisans Öğr.Gör. Sonuç'!J26) ->  | K26: =IF('Lisans Öğr.Gör. Sonuç'!K26="","",'Lisans Öğr.Gör. Sonuç'!K26) ->  | L26: =IF('Lisans Öğr.Gör. Sonuç'!L26="","",'Lisans Öğr.Gör. Sonuç'!L26) ->  | M26: =IF('Lisans Öğr.Gör. Sonuç'!M26="","",'Lisans Öğr.Gör. Sonuç'!M26) ->  | N26: =IF('Lisans Öğr.Gör. Sonuç'!N26="","",'Lisans Öğr.Gör. Sonuç'!N26) -> 
A27: =IF('Lisans Öğr.Gör. Sonuç'!A27="","",'Lisans Öğr.Gör. Sonuç'!A27) ->  | B27: =IF('Lisans Öğr.Gör. Sonuç'!B27="","",LEFT('Lisans Öğr.Gör. Sonuç'!B27,3)&REPT("*",4)&RIGHT('Lisans Öğr.Gör. Sonuç'!B27,2)) ->  | C27: =IF('Lisans Öğr.Gör. Sonuç'!C27="","",IF(ISERR(FIND(" ",'Lisans Öğr.Gör. Sonuç'!C27))=TRUE,LEFT('Lisans Öğr.Gör. Sonuç'!C27,2)&REPT("*",3),LEFT('Lisans Öğr.Gör. Sonuç'!C27,2)&REPT("*",3)&" "&MID('Lisans Öğr.Gör. Sonuç'!C27,FIND(" ",'Lisans Öğr.Gör. Sonuç'!C27)+1,2)&REPT("*",3))) ->  | D27: =IF('Lisans Öğr.Gör. Sonuç'!D27="","",IF(ISERR(FIND(" ",'Lisans Öğr.Gör. Sonuç'!D27))=TRUE,LEFT('Lisans Öğr.Gör. Sonuç'!D27,2)&REPT("*",3),LEFT('Lisans Öğr.Gör. Sonuç'!D27,2)&REPT("*",3)&" "&MID('Lisans Öğr.Gör. Sonuç'!D27,FIND(" ",'Lisans Öğr.Gör. Sonuç'!D27)+1,2)&REPT("*",3))) ->  | E27: =IF('Lisans Öğr.Gör. Sonuç'!E27="","",'Lisans Öğr.Gör. Sonuç'!E27) ->  | F27: =IF('Lisans Öğr.Gör. Sonuç'!F27="","",'Lisans Öğr.Gör. Sonuç'!F27) ->  | G27: =IF('Lisans Öğr.Gör. Sonuç'!G27="","",'Lisans Öğr.Gör. Sonuç'!G27) ->  | H27: =IF('Lisans Öğr.Gör. Sonuç'!H27="","",'Lisans Öğr.Gör. Sonuç'!H27) ->  | I27: =IF('Lisans Öğr.Gör. Sonuç'!I27="","",'Lisans Öğr.Gör. Sonuç'!I27) ->  | J27: =IF('Lisans Öğr.Gör. Sonuç'!J27="","",'Lisans Öğr.Gör. Sonuç'!J27) ->  | K27: =IF('Lisans Öğr.Gör. Sonuç'!K27="","",'Lisans Öğr.Gör. Sonuç'!K27) ->  | L27: =IF('Lisans Öğr.Gör. Sonuç'!L27="","",'Lisans Öğr.Gör. Sonuç'!L27) ->  | M27: =IF('Lisans Öğr.Gör. Sonuç'!M27="","",'Lisans Öğr.Gör. Sonuç'!M27) ->  | N27: =IF('Lisans Öğr.Gör. Sonuç'!N27="","",'Lisans Öğr.Gör. Sonuç'!N27) -> 
A28: =IF('Lisans Öğr.Gör. Sonuç'!A28="","",'Lisans Öğr.Gör. Sonuç'!A28) ->  | B28: =IF('Lisans Öğr.Gör. Sonuç'!B28="","",LEFT('Lisans Öğr.Gör. Sonuç'!B28,3)&REPT("*",4)&RIGHT('Lisans Öğr.Gör. Sonuç'!B28,2)) ->  | C28: =IF('Lisans Öğr.Gör. Sonuç'!C28="","",IF(ISERR(FIND(" ",'Lisans Öğr.Gör. Sonuç'!C28))=TRUE,LEFT('Lisans Öğr.Gör. Sonuç'!C28,2)&REPT("*",3),LEFT('Lisans Öğr.Gör. Sonuç'!C28,2)&REPT("*",3)&" "&MID('Lisans Öğr.Gör. Sonuç'!C28,FIND(" ",'Lisans Öğr.Gör. Sonuç'!C28)+1,2)&REPT("*",3))) ->  | D28: =IF('Lisans Öğr.Gör. Sonuç'!D28="","",IF(ISERR(FIND(" ",'Lisans Öğr.Gör. Sonuç'!D28))=TRUE,LEFT('Lisans Öğr.Gör. Sonuç'!D28,2)&REPT("*",3),LEFT('Lisans Öğr.Gör. Sonuç'!D28,2)&REPT("*",3)&" "&MID('Lisans Öğr.Gör. Sonuç'!D28,FIND(" ",'Lisans Öğr.Gör. Sonuç'!D28)+1,2)&REPT("*",3))) ->  | E28: =IF('Lisans Öğr.Gör. Sonuç'!E28="","",'Lisans Öğr.Gör. Sonuç'!E28) ->  | F28: =IF('Lisans Öğr.Gör. Sonuç'!F28="","",'Lisans Öğr.Gör. Sonuç'!F28) ->  | G28: =IF('Lisans Öğr.Gör. Sonuç'!G28="","",'Lisans Öğr.Gör. Sonuç'!G28) ->  | H28: =IF('Lisans Öğr.Gör. Sonuç'!H28="","",'Lisans Öğr.Gör. Sonuç'!H28) ->  | I28: =IF('Lisans Öğr.Gör. Sonuç'!I28="","",'Lisans Öğr.Gör. Sonuç'!I28) ->  | J28: =IF('Lisans Öğr.Gör. Sonuç'!J28="","",'Lisans Öğr.Gör. Sonuç'!J28) ->  | K28: =IF('Lisans Öğr.Gör. Sonuç'!K28="","",'Lisans Öğr.Gör. Sonuç'!K28) ->  | L28: =IF('Lisans Öğr.Gör. Sonuç'!L28="","",'Lisans Öğr.Gör. Sonuç'!L28) ->  | M28: =IF('Lisans Öğr.Gör. Sonuç'!M28="","",'Lisans Öğr.Gör. Sonuç'!M28) ->  | N28: =IF('Lisans Öğr.Gör. Sonuç'!N28="","",'Lisans Öğr.Gör. Sonuç'!N28) -> 
A29: =IF('Lisans Öğr.Gör. Sonuç'!A29="","",'Lisans Öğr.Gör. Sonuç'!A29) ->  | B29: =IF('Lisans Öğr.Gör. Sonuç'!B29="","",LEFT('Lisans Öğr.Gör. Sonuç'!B29,3)&REPT("*",4)&RIGHT('Lisans Öğr.Gör. Sonuç'!B29,2)) ->  | C29: =IF('Lisans Öğr.Gör. Sonuç'!C29="","",IF(ISERR(FIND(" ",'Lisans Öğr.Gör. Sonuç'!C29))=TRUE,LEFT('Lisans Öğr.Gör. Sonuç'!C29,2)&REPT("*",3),LEFT('Lisans Öğr.Gör. Sonuç'!C29,2)&REPT("*",3)&" "&MID('Lisans Öğr.Gör. Sonuç'!C29,FIND(" ",'Lisans Öğr.Gör. Sonuç'!C29)+1,2)&REPT("*",3))) ->  | D29: =IF('Lisans Öğr.Gör. Sonuç'!D29="","",IF(ISERR(FIND(" ",'Lisans Öğr.Gör. Sonuç'!D29))=TRUE,LEFT('Lisans Öğr.Gör. Sonuç'!D29,2)&REPT("*",3),LEFT('Lisans Öğr.Gör. Sonuç'!D29,2)&REPT("*",3)&" "&MID('Lisans Öğr.Gör. Sonuç'!D29,FIND(" ",'Lisans Öğr.Gör. Sonuç'!D29)+1,2)&REPT("*",3))) ->  | E29: =IF('Lisans Öğr.Gör. Sonuç'!E29="","",'Lisans Öğr.Gör. Sonuç'!E29) ->  | F29: =IF('Lisans Öğr.Gör. Sonuç'!F29="","",'Lisans Öğr.Gör. Sonuç'!F29) ->  | G29: =IF('Lisans Öğr.Gör. Sonuç'!G29="","",'Lisans Öğr.Gör. Sonuç'!G29) ->  | H29: =IF('Lisans Öğr.Gör. Sonuç'!H29="","",'Lisans Öğr.Gör. Sonuç'!H29) ->  | I29: =IF('Lisans Öğr.Gör. Sonuç'!I29="","",'Lisans Öğr.Gör. Sonuç'!I29) ->  | J29: =IF('Lisans Öğr.Gör. Sonuç'!J29="","",'Lisans Öğr.Gör. Sonuç'!J29) ->  | K29: =IF('Lisans Öğr.Gör. Sonuç'!K29="","",'Lisans Öğr.Gör. Sonuç'!K29) ->  | L29: =IF('Lisans Öğr.Gör. Sonuç'!L29="","",'Lisans Öğr.Gör. Sonuç'!L29) ->  | M29: =IF('Lisans Öğr.Gör. Sonuç'!M29="","",'Lisans Öğr.Gör. Sonuç'!M29) ->  | N29: =IF('Lisans Öğr.Gör. Sonuç'!N29="","",'Lisans Öğr.Gör. Sonuç'!N29) -> 
A30: =IF('Lisans Öğr.Gör. Sonuç'!A30="","",'Lisans Öğr.Gör. Sonuç'!A30) ->  | B30: =IF('Lisans Öğr.Gör. Sonuç'!B30="","",LEFT('Lisans Öğr.Gör. Sonuç'!B30,3)&REPT("*",4)&RIGHT('Lisans Öğr.Gör. Sonuç'!B30,2)) ->  | C30: =IF('Lisans Öğr.Gör. Sonuç'!C30="","",IF(ISERR(FIND(" ",'Lisans Öğr.Gör. Sonuç'!C30))=TRUE,LEFT('Lisans Öğr.Gör. Sonuç'!C30,2)&REPT("*",3),LEFT('Lisans Öğr.Gör. Sonuç'!C30,2)&REPT("*",3)&" "&MID('Lisans Öğr.Gör. Sonuç'!C30,FIND(" ",'Lisans Öğr.Gör. Sonuç'!C30)+1,2)&REPT("*",3))) ->  | D30: =IF('Lisans Öğr.Gör. Sonuç'!D30="","",IF(ISERR(FIND(" ",'Lisans Öğr.Gör. Sonuç'!D30))=TRUE,LEFT('Lisans Öğr.Gör. Sonuç'!D30,2)&REPT("*",3),LEFT('Lisans Öğr.Gör. Sonuç'!D30,2)&REPT("*",3)&" "&MID('Lisans Öğr.Gör. Sonuç'!D30,FIND(" ",'Lisans Öğr.Gör. Sonuç'!D30)+1,2)&REPT("*",3))) ->  | E30: =IF('Lisans Öğr.Gör. Sonuç'!E30="","",'Lisans Öğr.Gör. Sonuç'!E30) ->  | F30: =IF('Lisans Öğr.Gör. Sonuç'!F30="","",'Lisans Öğr.Gör. Sonuç'!F30) ->  | G30: =IF('Lisans Öğr.Gör. Sonuç'!G30="","",'Lisans Öğr.Gör. Sonuç'!G30) ->  | H30: =IF('Lisans Öğr.Gör. Sonuç'!H30="","",'Lisans Öğr.Gör. Sonuç'!H30) ->  | I30: =IF('Lisans Öğr.Gör. Sonuç'!I30="","",'Lisans Öğr.Gör. Sonuç'!I30) ->  | J30: =IF('Lisans Öğr.Gör. Sonuç'!J30="","",'Lisans Öğr.Gör. Sonuç'!J30) ->  | K30: =IF('Lisans Öğr.Gör. Sonuç'!K30="","",'Lisans Öğr.Gör. Sonuç'!K30) ->  | L30: =IF('Lisans Öğr.Gör. Sonuç'!L30="","",'Lisans Öğr.Gör. Sonuç'!L30) ->  | M30: =IF('Lisans Öğr.Gör. Sonuç'!M30="","",'Lisans Öğr.Gör. Sonuç'!M30) ->  | N30: =IF('Lisans Öğr.Gör. Sonuç'!N30="","",'Lisans Öğr.Gör. Sonuç'!N30) -> 
A31: =IF('Lisans Öğr.Gör. Sonuç'!A31="","",'Lisans Öğr.Gör. Sonuç'!A31) ->  | B31: =IF('Lisans Öğr.Gör. Sonuç'!B31="","",LEFT('Lisans Öğr.Gör. Sonuç'!B31,3)&REPT("*",4)&RIGHT('Lisans Öğr.Gör. Sonuç'!B31,2)) ->  | C31: =IF('Lisans Öğr.Gör. Sonuç'!C31="","",IF(ISERR(FIND(" ",'Lisans Öğr.Gör. Sonuç'!C31))=TRUE,LEFT('Lisans Öğr.Gör. Sonuç'!C31,2)&REPT("*",3),LEFT('Lisans Öğr.Gör. Sonuç'!C31,2)&REPT("*",3)&" "&MID('Lisans Öğr.Gör. Sonuç'!C31,FIND(" ",'Lisans Öğr.Gör. Sonuç'!C31)+1,2)&REPT("*",3))) ->  | D31: =IF('Lisans Öğr.Gör. Sonuç'!D31="","",IF(ISERR(FIND(" ",'Lisans Öğr.Gör. Sonuç'!D31))=TRUE,LEFT('Lisans Öğr.Gör. Sonuç'!D31,2)&REPT("*",3),LEFT('Lisans Öğr.Gör. Sonuç'!D31,2)&REPT("*",3)&" "&MID('Lisans Öğr.Gör. Sonuç'!D31,FIND(" ",'Lisans Öğr.Gör. Sonuç'!D31)+1,2)&REPT("*",3))) ->  | E31: =IF('Lisans Öğr.Gör. Sonuç'!E31="","",'Lisans Öğr.Gör. Sonuç'!E31) ->  | F31: =IF('Lisans Öğr.Gör. Sonuç'!F31="","",'Lisans Öğr.Gör. Sonuç'!F31) ->  | G31: =IF('Lisans Öğr.Gör. Sonuç'!G31="","",'Lisans Öğr.Gör. Sonuç'!G31) ->  | H31: =IF('Lisans Öğr.Gör. Sonuç'!H31="","",'Lisans Öğr.Gör. Sonuç'!H31) ->  | I31: =IF('Lisans Öğr.Gör. Sonuç'!I31="","",'Lisans Öğr.Gör. Sonuç'!I31) ->  | J31: =IF('Lisans Öğr.Gör. Sonuç'!J31="","",'Lisans Öğr.Gör. Sonuç'!J31) ->  | K31: =IF('Lisans Öğr.Gör. Sonuç'!K31="","",'Lisans Öğr.Gör. Sonuç'!K31) ->  | L31: =IF('Lisans Öğr.Gör. Sonuç'!L31="","",'Lisans Öğr.Gör. Sonuç'!L31) ->  | M31: =IF('Lisans Öğr.Gör. Sonuç'!M31="","",'Lisans Öğr.Gör. Sonuç'!M31) ->  | N31: =IF('Lisans Öğr.Gör. Sonuç'!N31="","",'Lisans Öğr.Gör. Sonuç'!N31) -> 
A32: =IF('Lisans Öğr.Gör. Sonuç'!A32="","",'Lisans Öğr.Gör. Sonuç'!A32) ->  | B32: =IF('Lisans Öğr.Gör. Sonuç'!B32="","",LEFT('Lisans Öğr.Gör. Sonuç'!B32,3)&REPT("*",4)&RIGHT('Lisans Öğr.Gör. Sonuç'!B32,2)) ->  | C32: =IF('Lisans Öğr.Gör. Sonuç'!C32="","",IF(ISERR(FIND(" ",'Lisans Öğr.Gör. Sonuç'!C32))=TRUE,LEFT('Lisans Öğr.Gör. Sonuç'!C32,2)&REPT("*",3),LEFT('Lisans Öğr.Gör. Sonuç'!C32,2)&REPT("*",3)&" "&MID('Lisans Öğr.Gör. Sonuç'!C32,FIND(" ",'Lisans Öğr.Gör. Sonuç'!C32)+1,2)&REPT("*",3))) ->  | D32: =IF('Lisans Öğr.Gör. Sonuç'!D32="","",IF(ISERR(FIND(" ",'Lisans Öğr.Gör. Sonuç'!D32))=TRUE,LEFT('Lisans Öğr.Gör. Sonuç'!D32,2)&REPT("*",3),LEFT('Lisans Öğr.Gör. Sonuç'!D32,2)&REPT("*",3)&" "&MID('Lisans Öğr.Gör. Sonuç'!D32,FIND(" ",'Lisans Öğr.Gör. Sonuç'!D32)+1,2)&REPT("*",3))) ->  | E32: =IF('Lisans Öğr.Gör. Sonuç'!E32="","",'Lisans Öğr.Gör. Sonuç'!E32) ->  | F32: =IF('Lisans Öğr.Gör. Sonuç'!F32="","",'Lisans Öğr.Gör. Sonuç'!F32) ->  | G32: =IF('Lisans Öğr.Gör. Sonuç'!G32="","",'Lisans Öğr.Gör. Sonuç'!G32) ->  | H32: =IF('Lisans Öğr.Gör. Sonuç'!H32="","",'Lisans Öğr.Gör. Sonuç'!H32) ->  | I32: =IF('Lisans Öğr.Gör. Sonuç'!I32="","",'Lisans Öğr.Gör. Sonuç'!I32) ->  | J32: =IF('Lisans Öğr.Gör. Sonuç'!J32="","",'Lisans Öğr.Gör. Sonuç'!J32) ->  | K32: =IF('Lisans Öğr.Gör. Sonuç'!K32="","",'Lisans Öğr.Gör. Sonuç'!K32) ->  | L32: =IF('Lisans Öğr.Gör. Sonuç'!L32="","",'Lisans Öğr.Gör. Sonuç'!L32) ->  | M32: =IF('Lisans Öğr.Gör. Sonuç'!M32="","",'Lisans Öğr.Gör. Sonuç'!M32) ->  | N32: =IF('Lisans Öğr.Gör. Sonuç'!N32="","",'Lisans Öğr.Gör. Sonuç'!N32) -> 
A33: =IF('Lisans Öğr.Gör. Sonuç'!A33="","",'Lisans Öğr.Gör. Sonuç'!A33) ->  | B33: =IF('Lisans Öğr.Gör. Sonuç'!B33="","",LEFT('Lisans Öğr.Gör. Sonuç'!B33,3)&REPT("*",4)&RIGHT('Lisans Öğr.Gör. Sonuç'!B33,2)) ->  | C33: =IF('Lisans Öğr.Gör. Sonuç'!C33="","",IF(ISERR(FIND(" ",'Lisans Öğr.Gör. Sonuç'!C33))=TRUE,LEFT('Lisans Öğr.Gör. Sonuç'!C33,2)&REPT("*",3),LEFT('Lisans Öğr.Gör. Sonuç'!C33,2)&REPT("*",3)&" "&MID('Lisans Öğr.Gör. Sonuç'!C33,FIND(" ",'Lisans Öğr.Gör. Sonuç'!C33)+1,2)&REPT("*",3))) ->  | D33: =IF('Lisans Öğr.Gör. Sonuç'!D33="","",IF(ISERR(FIND(" ",'Lisans Öğr.Gör. Sonuç'!D33))=TRUE,LEFT('Lisans Öğr.Gör. Sonuç'!D33,2)&REPT("*",3),LEFT('Lisans Öğr.Gör. Sonuç'!D33,2)&REPT("*",3)&" "&MID('Lisans Öğr.Gör. Sonuç'!D33,FIND(" ",'Lisans Öğr.Gör. Sonuç'!D33)+1,2)&REPT("*",3))) ->  | E33: =IF('Lisans Öğr.Gör. Sonuç'!E33="","",'Lisans Öğr.Gör. Sonuç'!E33) ->  | F33: =IF('Lisans Öğr.Gör. Sonuç'!F33="","",'Lisans Öğr.Gör. Sonuç'!F33) ->  | G33: =IF('Lisans Öğr.Gör. Sonuç'!G33="","",'Lisans Öğr.Gör. Sonuç'!G33) ->  | H33: =IF('Lisans Öğr.Gör. Sonuç'!H33="","",'Lisans Öğr.Gör. Sonuç'!H33) ->  | I33: =IF('Lisans Öğr.Gör. Sonuç'!I33="","",'Lisans Öğr.Gör. Sonuç'!I33) ->  | J33: =IF('Lisans Öğr.Gör. Sonuç'!J33="","",'Lisans Öğr.Gör. Sonuç'!J33) ->  | K33: =IF('Lisans Öğr.Gör. Sonuç'!K33="","",'Lisans Öğr.Gör. Sonuç'!K33) ->  | L33: =IF('Lisans Öğr.Gör. Sonuç'!L33="","",'Lisans Öğr.Gör. Sonuç'!L33) ->  | M33: =IF('Lisans Öğr.Gör. Sonuç'!M33="","",'Lisans Öğr.Gör. Sonuç'!M33) ->  | N33: =IF('Lisans Öğr.Gör. Sonuç'!N33="","",'Lisans Öğr.Gör. Sonuç'!N33) -> 
A34: =IF('Lisans Öğr.Gör. Sonuç'!A34="","",'Lisans Öğr.Gör. Sonuç'!A34) ->  | B34: =IF('Lisans Öğr.Gör. Sonuç'!B34="","",LEFT('Lisans Öğr.Gör. Sonuç'!B34,3)&REPT("*",4)&RIGHT('Lisans Öğr.Gör. Sonuç'!B34,2)) ->  | C34: =IF('Lisans Öğr.Gör. Sonuç'!C34="","",IF(ISERR(FIND(" ",'Lisans Öğr.Gör. Sonuç'!C34))=TRUE,LEFT('Lisans Öğr.Gör. Sonuç'!C34,2)&REPT("*",3),LEFT('Lisans Öğr.Gör. Sonuç'!C34,2)&REPT("*",3)&" "&MID('Lisans Öğr.Gör. Sonuç'!C34,FIND(" ",'Lisans Öğr.Gör. Sonuç'!C34)+1,2)&REPT("*",3))) ->  | D34: =IF('Lisans Öğr.Gör. Sonuç'!D34="","",IF(ISERR(FIND(" ",'Lisans Öğr.Gör. Sonuç'!D34))=TRUE,LEFT('Lisans Öğr.Gör. Sonuç'!D34,2)&REPT("*",3),LEFT('Lisans Öğr.Gör. Sonuç'!D34,2)&REPT("*",3)&" "&MID('Lisans Öğr.Gör. Sonuç'!D34,FIND(" ",'Lisans Öğr.Gör. Sonuç'!D34)+1,2)&REPT("*",3))) ->  | E34: =IF('Lisans Öğr.Gör. Sonuç'!E34="","",'Lisans Öğr.Gör. Sonuç'!E34) ->  | F34: =IF('Lisans Öğr.Gör. Sonuç'!F34="","",'Lisans Öğr.Gör. Sonuç'!F34) ->  | G34: =IF('Lisans Öğr.Gör. Sonuç'!G34="","",'Lisans Öğr.Gör. Sonuç'!G34) ->  | H34: =IF('Lisans Öğr.Gör. Sonuç'!H34="","",'Lisans Öğr.Gör. Sonuç'!H34) ->  | I34: =IF('Lisans Öğr.Gör. Sonuç'!I34="","",'Lisans Öğr.Gör. Sonuç'!I34) ->  | J34: =IF('Lisans Öğr.Gör. Sonuç'!J34="","",'Lisans Öğr.Gör. Sonuç'!J34) ->  | K34: =IF('Lisans Öğr.Gör. Sonuç'!K34="","",'Lisans Öğr.Gör. Sonuç'!K34) ->  | L34: =IF('Lisans Öğr.Gör. Sonuç'!L34="","",'Lisans Öğr.Gör. Sonuç'!L34) ->  | M34: =IF('Lisans Öğr.Gör. Sonuç'!M34="","",'Lisans Öğr.Gör. Sonuç'!M34) ->  | N34: =IF('Lisans Öğr.Gör. Sonuç'!N34="","",'Lisans Öğr.Gör. Sonuç'!N34) -> 
A35: =IF('Lisans Öğr.Gör. Sonuç'!A35="","",'Lisans Öğr.Gör. Sonuç'!A35) ->  | B35: =IF('Lisans Öğr.Gör. Sonuç'!B35="","",LEFT('Lisans Öğr.Gör. Sonuç'!B35,3)&REPT("*",4)&RIGHT('Lisans Öğr.Gör. Sonuç'!B35,2)) ->  | C35: =IF('Lisans Öğr.Gör. Sonuç'!C35="","",IF(ISERR(FIND(" ",'Lisans Öğr.Gör. Sonuç'!C35))=TRUE,LEFT('Lisans Öğr.Gör. Sonuç'!C35,2)&REPT("*",3),LEFT('Lisans Öğr.Gör. Sonuç'!C35,2)&REPT("*",3)&" "&MID('Lisans Öğr.Gör. Sonuç'!C35,FIND(" ",'Lisans Öğr.Gör. Sonuç'!C35)+1,2)&REPT("*",3))) ->  | D35: =IF('Lisans Öğr.Gör. Sonuç'!D35="","",IF(ISERR(FIND(" ",'Lisans Öğr.Gör. Sonuç'!D35))=TRUE,LEFT('Lisans Öğr.Gör. Sonuç'!D35,2)&REPT("*",3),LEFT('Lisans Öğr.Gör. Sonuç'!D35,2)&REPT("*",3)&" "&MID('Lisans Öğr.Gör. Sonuç'!D35,FIND(" ",'Lisans Öğr.Gör. Sonuç'!D35)+1,2)&REPT("*",3))) ->  | E35: =IF('Lisans Öğr.Gör. Sonuç'!E35="","",'Lisans Öğr.Gör. Sonuç'!E35) ->  | F35: =IF('Lisans Öğr.Gör. Sonuç'!F35="","",'Lisans Öğr.Gör. Sonuç'!F35) ->  | G35: =IF('Lisans Öğr.Gör. Sonuç'!G35="","",'Lisans Öğr.Gör. Sonuç'!G35) ->  | H35: =IF('Lisans Öğr.Gör. Sonuç'!H35="","",'Lisans Öğr.Gör. Sonuç'!H35) ->  | I35: =IF('Lisans Öğr.Gör. Sonuç'!I35="","",'Lisans Öğr.Gör. Sonuç'!I35) ->  | J35: =IF('Lisans Öğr.Gör. Sonuç'!J35="","",'Lisans Öğr.Gör. Sonuç'!J35) ->  | K35: =IF('Lisans Öğr.Gör. Sonuç'!K35="","",'Lisans Öğr.Gör. Sonuç'!K35) ->  | L35: =IF('Lisans Öğr.Gör. Sonuç'!L35="","",'Lisans Öğr.Gör. Sonuç'!L35) ->  | M35: =IF('Lisans Öğr.Gör. Sonuç'!M35="","",'Lisans Öğr.Gör. Sonuç'!M35) ->  | N35: =IF('Lisans Öğr.Gör. Sonuç'!N35="","",'Lisans Öğr.Gör. Sonuç'!N35) -> 
A36: =IF('Lisans Öğr.Gör. Sonuç'!A36="","",'Lisans Öğr.Gör. Sonuç'!A36) ->  | B36: =IF('Lisans Öğr.Gör. Sonuç'!B36="","",LEFT('Lisans Öğr.Gör. Sonuç'!B36,3)&REPT("*",4)&RIGHT('Lisans Öğr.Gör. Sonuç'!B36,2)) ->  | C36: =IF('Lisans Öğr.Gör. Sonuç'!C36="","",IF(ISERR(FIND(" ",'Lisans Öğr.Gör. Sonuç'!C36))=TRUE,LEFT('Lisans Öğr.Gör. Sonuç'!C36,2)&REPT("*",3),LEFT('Lisans Öğr.Gör. Sonuç'!C36,2)&REPT("*",3)&" "&MID('Lisans Öğr.Gör. Sonuç'!C36,FIND(" ",'Lisans Öğr.Gör. Sonuç'!C36)+1,2)&REPT("*",3))) ->  | D36: =IF('Lisans Öğr.Gör. Sonuç'!D36="","",IF(ISERR(FIND(" ",'Lisans Öğr.Gör. Sonuç'!D36))=TRUE,LEFT('Lisans Öğr.Gör. Sonuç'!D36,2)&REPT("*",3),LEFT('Lisans Öğr.Gör. Sonuç'!D36,2)&REPT("*",3)&" "&MID('Lisans Öğr.Gör. Sonuç'!D36,FIND(" ",'Lisans Öğr.Gör. Sonuç'!D36)+1,2)&REPT("*",3))) ->  | E36: =IF('Lisans Öğr.Gör. Sonuç'!E36="","",'Lisans Öğr.Gör. Sonuç'!E36) ->  | F36: =IF('Lisans Öğr.Gör. Sonuç'!F36="","",'Lisans Öğr.Gör. Sonuç'!F36) ->  | G36: =IF('Lisans Öğr.Gör. Sonuç'!G36="","",'Lisans Öğr.Gör. Sonuç'!G36) ->  | H36: =IF('Lisans Öğr.Gör. Sonuç'!H36="","",'Lisans Öğr.Gör. Sonuç'!H36) ->  | I36: =IF('Lisans Öğr.Gör. Sonuç'!I36="","",'Lisans Öğr.Gör. Sonuç'!I36) ->  | J36: =IF('Lisans Öğr.Gör. Sonuç'!J36="","",'Lisans Öğr.Gör. Sonuç'!J36) ->  | K36: =IF('Lisans Öğr.Gör. Sonuç'!K36="","",'Lisans Öğr.Gör. Sonuç'!K36) ->  | L36: =IF('Lisans Öğr.Gör. Sonuç'!L36="","",'Lisans Öğr.Gör. Sonuç'!L36) ->  | M36: =IF('Lisans Öğr.Gör. Sonuç'!M36="","",'Lisans Öğr.Gör. Sonuç'!M36) ->  | N36: =IF('Lisans Öğr.Gör. Sonuç'!N36="","",'Lisans Öğr.Gör. Sonuç'!N36) -> 
A37: =IF('Lisans Öğr.Gör. Sonuç'!A37="","",'Lisans Öğr.Gör. Sonuç'!A37) ->  | B37: =IF('Lisans Öğr.Gör. Sonuç'!B37="","",LEFT('Lisans Öğr.Gör. Sonuç'!B37,3)&REPT("*",4)&RIGHT('Lisans Öğr.Gör. Sonuç'!B37,2)) ->  | C37: =IF('Lisans Öğr.Gör. Sonuç'!C37="","",IF(ISERR(FIND(" ",'Lisans Öğr.Gör. Sonuç'!C37))=TRUE,LEFT('Lisans Öğr.Gör. Sonuç'!C37,2)&REPT("*",3),LEFT('Lisans Öğr.Gör. Sonuç'!C37,2)&REPT("*",3)&" "&MID('Lisans Öğr.Gör. Sonuç'!C37,FIND(" ",'Lisans Öğr.Gör. Sonuç'!C37)+1,2)&REPT("*",3))) ->  | D37: =IF('Lisans Öğr.Gör. Sonuç'!D37="","",IF(ISERR(FIND(" ",'Lisans Öğr.Gör. Sonuç'!D37))=TRUE,LEFT('Lisans Öğr.Gör. Sonuç'!D37,2)&REPT("*",3),LEFT('Lisans Öğr.Gör. Sonuç'!D37,2)&REPT("*",3)&" "&MID('Lisans Öğr.Gör. Sonuç'!D37,FIND(" ",'Lisans Öğr.Gör. Sonuç'!D37)+1,2)&REPT("*",3))) ->  | E37: =IF('Lisans Öğr.Gör. Sonuç'!E37="","",'Lisans Öğr.Gör. Sonuç'!E37) ->  | F37: =IF('Lisans Öğr.Gör. Sonuç'!F37="","",'Lisans Öğr.Gör. Sonuç'!F37) ->  | G37: =IF('Lisans Öğr.Gör. Sonuç'!G37="","",'Lisans Öğr.Gör. Sonuç'!G37) ->  | H37: =IF('Lisans Öğr.Gör. Sonuç'!H37="","",'Lisans Öğr.Gör. Sonuç'!H37) ->  | I37: =IF('Lisans Öğr.Gör. Sonuç'!I37="","",'Lisans Öğr.Gör. Sonuç'!I37) ->  | J37: =IF('Lisans Öğr.Gör. Sonuç'!J37="","",'Lisans Öğr.Gör. Sonuç'!J37) ->  | K37: =IF('Lisans Öğr.Gör. Sonuç'!K37="","",'Lisans Öğr.Gör. Sonuç'!K37) ->  | L37: =IF('Lisans Öğr.Gör. Sonuç'!L37="","",'Lisans Öğr.Gör. Sonuç'!L37) ->  | M37: =IF('Lisans Öğr.Gör. Sonuç'!M37="","",'Lisans Öğr.Gör. Sonuç'!M37) ->  | N37: =IF('Lisans Öğr.Gör. Sonuç'!N37="","",'Lisans Öğr.Gör. Sonuç'!N37) -> 
A38: =IF('Lisans Öğr.Gör. Sonuç'!A38="","",'Lisans Öğr.Gör. Sonuç'!A38) ->  | B38: =IF('Lisans Öğr.Gör. Sonuç'!B38="","",LEFT('Lisans Öğr.Gör. Sonuç'!B38,3)&REPT("*",4)&RIGHT('Lisans Öğr.Gör. Sonuç'!B38,2)) ->  | C38: =IF('Lisans Öğr.Gör. Sonuç'!C38="","",IF(ISERR(FIND(" ",'Lisans Öğr.Gör. Sonuç'!C38))=TRUE,LEFT('Lisans Öğr.Gör. Sonuç'!C38,2)&REPT("*",3),LEFT('Lisans Öğr.Gör. Sonuç'!C38,2)&REPT("*",3)&" "&MID('Lisans Öğr.Gör. Sonuç'!C38,FIND(" ",'Lisans Öğr.Gör. Sonuç'!C38)+1,2)&REPT("*",3))) ->  | D38: =IF('Lisans Öğr.Gör. Sonuç'!D38="","",IF(ISERR(FIND(" ",'Lisans Öğr.Gör. Sonuç'!D38))=TRUE,LEFT('Lisans Öğr.Gör. Sonuç'!D38,2)&REPT("*",3),LEFT('Lisans Öğr.Gör. Sonuç'!D38,2)&REPT("*",3)&" "&MID('Lisans Öğr.Gör. Sonuç'!D38,FIND(" ",'Lisans Öğr.Gör. Sonuç'!D38)+1,2)&REPT("*",3))) ->  | E38: =IF('Lisans Öğr.Gör. Sonuç'!E38="","",'Lisans Öğr.Gör. Sonuç'!E38) ->  | F38: =IF('Lisans Öğr.Gör. Sonuç'!F38="","",'Lisans Öğr.Gör. Sonuç'!F38) ->  | G38: =IF('Lisans Öğr.Gör. Sonuç'!G38="","",'Lisans Öğr.Gör. Sonuç'!G38) ->  | H38: =IF('Lisans Öğr.Gör. Sonuç'!H38="","",'Lisans Öğr.Gör. Sonuç'!H38) ->  | I38: =IF('Lisans Öğr.Gör. Sonuç'!I38="","",'Lisans Öğr.Gör. Sonuç'!I38) ->  | J38: =IF('Lisans Öğr.Gör. Sonuç'!J38="","",'Lisans Öğr.Gör. Sonuç'!J38) ->  | K38: =IF('Lisans Öğr.Gör. Sonuç'!K38="","",'Lisans Öğr.Gör. Sonuç'!K38) ->  | L38: =IF('Lisans Öğr.Gör. Sonuç'!L38="","",'Lisans Öğr.Gör. Sonuç'!L38) ->  | M38: =IF('Lisans Öğr.Gör. Sonuç'!M38="","",'Lisans Öğr.Gör. Sonuç'!M38) ->  | N38: =IF('Lisans Öğr.Gör. Sonuç'!N38="","",'Lisans Öğr.Gör. Sonuç'!N38) -> 
A39: =IF('Lisans Öğr.Gör. Sonuç'!A39="","",'Lisans Öğr.Gör. Sonuç'!A39) ->  | B39: =IF('Lisans Öğr.Gör. Sonuç'!B39="","",LEFT('Lisans Öğr.Gör. Sonuç'!B39,3)&REPT("*",4)&RIGHT('Lisans Öğr.Gör. Sonuç'!B39,2)) ->  | C39: =IF('Lisans Öğr.Gör. Sonuç'!C39="","",IF(ISERR(FIND(" ",'Lisans Öğr.Gör. Sonuç'!C39))=TRUE,LEFT('Lisans Öğr.Gör. Sonuç'!C39,2)&REPT("*",3),LEFT('Lisans Öğr.Gör. Sonuç'!C39,2)&REPT("*",3)&" "&MID('Lisans Öğr.Gör. Sonuç'!C39,FIND(" ",'Lisans Öğr.Gör. Sonuç'!C39)+1,2)&REPT("*",3))) ->  | D39: =IF('Lisans Öğr.Gör. Sonuç'!D39="","",IF(ISERR(FIND(" ",'Lisans Öğr.Gör. Sonuç'!D39))=TRUE,LEFT('Lisans Öğr.Gör. Sonuç'!D39,2)&REPT("*",3),LEFT('Lisans Öğr.Gör. Sonuç'!D39,2)&REPT("*",3)&" "&MID('Lisans Öğr.Gör. Sonuç'!D39,FIND(" ",'Lisans Öğr.Gör. Sonuç'!D39)+1,2)&REPT("*",3))) ->  | E39: =IF('Lisans Öğr.Gör. Sonuç'!E39="","",'Lisans Öğr.Gör. Sonuç'!E39) ->  | F39: =IF('Lisans Öğr.Gör. Sonuç'!F39="","",'Lisans Öğr.Gör. Sonuç'!F39) ->  | G39: =IF('Lisans Öğr.Gör. Sonuç'!G39="","",'Lisans Öğr.Gör. Sonuç'!G39) ->  | H39: =IF('Lisans Öğr.Gör. Sonuç'!H39="","",'Lisans Öğr.Gör. Sonuç'!H39) ->  | I39: =IF('Lisans Öğr.Gör. Sonuç'!I39="","",'Lisans Öğr.Gör. Sonuç'!I39) ->  | J39: =IF('Lisans Öğr.Gör. Sonuç'!J39="","",'Lisans Öğr.Gör. Sonuç'!J39) ->  | K39: =IF('Lisans Öğr.Gör. Sonuç'!K39="","",'Lisans Öğr.Gör. Sonuç'!K39) ->  | L39: =IF('Lisans Öğr.Gör. Sonuç'!L39="","",'Lisans Öğr.Gör. Sonuç'!L39) ->  | M39: =IF('Lisans Öğr.Gör. Sonuç'!M39="","",'Lisans Öğr.Gör. Sonuç'!M39) ->  | N39: =IF('Lisans Öğr.Gör. Sonuç'!N39="","",'Lisans Öğr.Gör. Sonuç'!N39) -> 
A40: =IF('Lisans Öğr.Gör. Sonuç'!A40="","",'Lisans Öğr.Gör. Sonuç'!A40) ->  | B40: =IF('Lisans Öğr.Gör. Sonuç'!B40="","",LEFT('Lisans Öğr.Gör. Sonuç'!B40,3)&REPT("*",4)&RIGHT('Lisans Öğr.Gör. Sonuç'!B40,2)) ->  | C40: =IF('Lisans Öğr.Gör. Sonuç'!C40="","",IF(ISERR(FIND(" ",'Lisans Öğr.Gör. Sonuç'!C40))=TRUE,LEFT('Lisans Öğr.Gör. Sonuç'!C40,2)&REPT("*",3),LEFT('Lisans Öğr.Gör. Sonuç'!C40,2)&REPT("*",3)&" "&MID('Lisans Öğr.Gör. Sonuç'!C40,FIND(" ",'Lisans Öğr.Gör. Sonuç'!C40)+1,2)&REPT("*",3))) ->  | D40: =IF('Lisans Öğr.Gör. Sonuç'!D40="","",IF(ISERR(FIND(" ",'Lisans Öğr.Gör. Sonuç'!D40))=TRUE,LEFT('Lisans Öğr.Gör. Sonuç'!D40,2)&REPT("*",3),LEFT('Lisans Öğr.Gör. Sonuç'!D40,2)&REPT("*",3)&" "&MID('Lisans Öğr.Gör. Sonuç'!D40,FIND(" ",'Lisans Öğr.Gör. Sonuç'!D40)+1,2)&REPT("*",3))) ->  | E40: =IF('Lisans Öğr.Gör. Sonuç'!E40="","",'Lisans Öğr.Gör. Sonuç'!E40) ->  | F40: =IF('Lisans Öğr.Gör. Sonuç'!F40="","",'Lisans Öğr.Gör. Sonuç'!F40) ->  | G40: =IF('Lisans Öğr.Gör. Sonuç'!G40="","",'Lisans Öğr.Gör. Sonuç'!G40) ->  | H40: =IF('Lisans Öğr.Gör. Sonuç'!H40="","",'Lisans Öğr.Gör. Sonuç'!H40) ->  | I40: =IF('Lisans Öğr.Gör. Sonuç'!I40="","",'Lisans Öğr.Gör. Sonuç'!I40) ->  | J40: =IF('Lisans Öğr.Gör. Sonuç'!J40="","",'Lisans Öğr.Gör. Sonuç'!J40) ->  | K40: =IF('Lisans Öğr.Gör. Sonuç'!K40="","",'Lisans Öğr.Gör. Sonuç'!K40) ->  | L40: =IF('Lisans Öğr.Gör. Sonuç'!L40="","",'Lisans Öğr.Gör. Sonuç'!L40) ->  | M40: =IF('Lisans Öğr.Gör. Sonuç'!M40="","",'Lisans Öğr.Gör. Sonuç'!M40) ->  | N40: =IF('Lisans Öğr.Gör. Sonuç'!N40="","",'Lisans Öğr.Gör. Sonuç'!N40) -> 
A41: =IF('Lisans Öğr.Gör. Sonuç'!A41="","",'Lisans Öğr.Gör. Sonuç'!A41) ->  | B41: =IF('Lisans Öğr.Gör. Sonuç'!B41="","",LEFT('Lisans Öğr.Gör. Sonuç'!B41,3)&REPT("*",4)&RIGHT('Lisans Öğr.Gör. Sonuç'!B41,2)) ->  | C41: =IF('Lisans Öğr.Gör. Sonuç'!C41="","",IF(ISERR(FIND(" ",'Lisans Öğr.Gör. Sonuç'!C41))=TRUE,LEFT('Lisans Öğr.Gör. Sonuç'!C41,2)&REPT("*",3),LEFT('Lisans Öğr.Gör. Sonuç'!C41,2)&REPT("*",3)&" "&MID('Lisans Öğr.Gör. Sonuç'!C41,FIND(" ",'Lisans Öğr.Gör. Sonuç'!C41)+1,2)&REPT("*",3))) ->  | D41: =IF('Lisans Öğr.Gör. Sonuç'!D41="","",IF(ISERR(FIND(" ",'Lisans Öğr.Gör. Sonuç'!D41))=TRUE,LEFT('Lisans Öğr.Gör. Sonuç'!D41,2)&REPT("*",3),LEFT('Lisans Öğr.Gör. Sonuç'!D41,2)&REPT("*",3)&" "&MID('Lisans Öğr.Gör. Sonuç'!D41,FIND(" ",'Lisans Öğr.Gör. Sonuç'!D41)+1,2)&REPT("*",3))) ->  | E41: =IF('Lisans Öğr.Gör. Sonuç'!E41="","",'Lisans Öğr.Gör. Sonuç'!E41) ->  | F41: =IF('Lisans Öğr.Gör. Sonuç'!F41="","",'Lisans Öğr.Gör. Sonuç'!F41) ->  | G41: =IF('Lisans Öğr.Gör. Sonuç'!G41="","",'Lisans Öğr.Gör. Sonuç'!G41) ->  | H41: =IF('Lisans Öğr.Gör. Sonuç'!H41="","",'Lisans Öğr.Gör. Sonuç'!H41) ->  | I41: =IF('Lisans Öğr.Gör. Sonuç'!I41="","",'Lisans Öğr.Gör. Sonuç'!I41) ->  | J41: =IF('Lisans Öğr.Gör. Sonuç'!J41="","",'Lisans Öğr.Gör. Sonuç'!J41) ->  | K41: =IF('Lisans Öğr.Gör. Sonuç'!K41="","",'Lisans Öğr.Gör. Sonuç'!K41) ->  | L41: =IF('Lisans Öğr.Gör. Sonuç'!L41="","",'Lisans Öğr.Gör. Sonuç'!L41) ->  | M41: =IF('Lisans Öğr.Gör. Sonuç'!M41="","",'Lisans Öğr.Gör. Sonuç'!M41) ->  | N41: =IF('Lisans Öğr.Gör. Sonuç'!N41="","",'Lisans Öğr.Gör. Sonuç'!N41) -> 
A42: =IF('Lisans Öğr.Gör. Sonuç'!A42="","",'Lisans Öğr.Gör. Sonuç'!A42) ->  | B42: =IF('Lisans Öğr.Gör. Sonuç'!B42="","",LEFT('Lisans Öğr.Gör. Sonuç'!B42,3)&REPT("*",4)&RIGHT('Lisans Öğr.Gör. Sonuç'!B42,2)) ->  | C42: =IF('Lisans Öğr.Gör. Sonuç'!C42="","",IF(ISERR(FIND(" ",'Lisans Öğr.Gör. Sonuç'!C42))=TRUE,LEFT('Lisans Öğr.Gör. Sonuç'!C42,2)&REPT("*",3),LEFT('Lisans Öğr.Gör. Sonuç'!C42,2)&REPT("*",3)&" "&MID('Lisans Öğr.Gör. Sonuç'!C42,FIND(" ",'Lisans Öğr.Gör. Sonuç'!C42)+1,2)&REPT("*",3))) ->  | D42: =IF('Lisans Öğr.Gör. Sonuç'!D42="","",IF(ISERR(FIND(" ",'Lisans Öğr.Gör. Sonuç'!D42))=TRUE,LEFT('Lisans Öğr.Gör. Sonuç'!D42,2)&REPT("*",3),LEFT('Lisans Öğr.Gör. Sonuç'!D42,2)&REPT("*",3)&" "&MID('Lisans Öğr.Gör. Sonuç'!D42,FIND(" ",'Lisans Öğr.Gör. Sonuç'!D42)+1,2)&REPT("*",3))) ->  | E42: =IF('Lisans Öğr.Gör. Sonuç'!E42="","",'Lisans Öğr.Gör. Sonuç'!E42) ->  | F42: =IF('Lisans Öğr.Gör. Sonuç'!F42="","",'Lisans Öğr.Gör. Sonuç'!F42) ->  | G42: =IF('Lisans Öğr.Gör. Sonuç'!G42="","",'Lisans Öğr.Gör. Sonuç'!G42) ->  | H42: =IF('Lisans Öğr.Gör. Sonuç'!H42="","",'Lisans Öğr.Gör. Sonuç'!H42) ->  | I42: =IF('Lisans Öğr.Gör. Sonuç'!I42="","",'Lisans Öğr.Gör. Sonuç'!I42) ->  | J42: =IF('Lisans Öğr.Gör. Sonuç'!J42="","",'Lisans Öğr.Gör. Sonuç'!J42) ->  | K42: =IF('Lisans Öğr.Gör. Sonuç'!K42="","",'Lisans Öğr.Gör. Sonuç'!K42) ->  | L42: =IF('Lisans Öğr.Gör. Sonuç'!L42="","",'Lisans Öğr.Gör. Sonuç'!L42) ->  | M42: =IF('Lisans Öğr.Gör. Sonuç'!M42="","",'Lisans Öğr.Gör. Sonuç'!M42) ->  | N42: =IF('Lisans Öğr.Gör. Sonuç'!N42="","",'Lisans Öğr.Gör. Sonuç'!N42) -> 
A43: =IF('Lisans Öğr.Gör. Sonuç'!A43="","",'Lisans Öğr.Gör. Sonuç'!A43) ->  | B43: =IF('Lisans Öğr.Gör. Sonuç'!B43="","",LEFT('Lisans Öğr.Gör. Sonuç'!B43,3)&REPT("*",4)&RIGHT('Lisans Öğr.Gör. Sonuç'!B43,2)) ->  | C43: =IF('Lisans Öğr.Gör. Sonuç'!C43="","",IF(ISERR(FIND(" ",'Lisans Öğr.Gör. Sonuç'!C43))=TRUE,LEFT('Lisans Öğr.Gör. Sonuç'!C43,2)&REPT("*",3),LEFT('Lisans Öğr.Gör. Sonuç'!C43,2)&REPT("*",3)&" "&MID('Lisans Öğr.Gör. Sonuç'!C43,FIND(" ",'Lisans Öğr.Gör. Sonuç'!C43)+1,2)&REPT("*",3))) ->  | D43: =IF('Lisans Öğr.Gör. Sonuç'!D43="","",IF(ISERR(FIND(" ",'Lisans Öğr.Gör. Sonuç'!D43))=TRUE,LEFT('Lisans Öğr.Gör. Sonuç'!D43,2)&REPT("*",3),LEFT('Lisans Öğr.Gör. Sonuç'!D43,2)&REPT("*",3)&" "&MID('Lisans Öğr.Gör. Sonuç'!D43,FIND(" ",'Lisans Öğr.Gör. Sonuç'!D43)+1,2)&REPT("*",3))) ->  | E43: =IF('Lisans Öğr.Gör. Sonuç'!E43="","",'Lisans Öğr.Gör. Sonuç'!E43) ->  | F43: =IF('Lisans Öğr.Gör. Sonuç'!F43="","",'Lisans Öğr.Gör. Sonuç'!F43) ->  | G43: =IF('Lisans Öğr.Gör. Sonuç'!G43="","",'Lisans Öğr.Gör. Sonuç'!G43) ->  | H43: =IF('Lisans Öğr.Gör. Sonuç'!H43="","",'Lisans Öğr.Gör. Sonuç'!H43) ->  | I43: =IF('Lisans Öğr.Gör. Sonuç'!I43="","",'Lisans Öğr.Gör. Sonuç'!I43) ->  | J43: =IF('Lisans Öğr.Gör. Sonuç'!J43="","",'Lisans Öğr.Gör. Sonuç'!J43) ->  | K43: =IF('Lisans Öğr.Gör. Sonuç'!K43="","",'Lisans Öğr.Gör. Sonuç'!K43) ->  | L43: =IF('Lisans Öğr.Gör. Sonuç'!L43="","",'Lisans Öğr.Gör. Sonuç'!L43) ->  | M43: =IF('Lisans Öğr.Gör. Sonuç'!M43="","",'Lisans Öğr.Gör. Sonuç'!M43) ->  | N43: =IF('Lisans Öğr.Gör. Sonuç'!N43="","",'Lisans Öğr.Gör. Sonuç'!N43) -> 
A44: =IF('Lisans Öğr.Gör. Sonuç'!A44="","",'Lisans Öğr.Gör. Sonuç'!A44) ->  | B44: =IF('Lisans Öğr.Gör. Sonuç'!B44="","",LEFT('Lisans Öğr.Gör. Sonuç'!B44,3)&REPT("*",4)&RIGHT('Lisans Öğr.Gör. Sonuç'!B44,2)) ->  | C44: =IF('Lisans Öğr.Gör. Sonuç'!C44="","",IF(ISERR(FIND(" ",'Lisans Öğr.Gör. Sonuç'!C44))=TRUE,LEFT('Lisans Öğr.Gör. Sonuç'!C44,2)&REPT("*",3),LEFT('Lisans Öğr.Gör. Sonuç'!C44,2)&REPT("*",3)&" "&MID('Lisans Öğr.Gör. Sonuç'!C44,FIND(" ",'Lisans Öğr.Gör. Sonuç'!C44)+1,2)&REPT("*",3))) ->  | D44: =IF('Lisans Öğr.Gör. Sonuç'!D44="","",IF(ISERR(FIND(" ",'Lisans Öğr.Gör. Sonuç'!D44))=TRUE,LEFT('Lisans Öğr.Gör. Sonuç'!D44,2)&REPT("*",3),LEFT('Lisans Öğr.Gör. Sonuç'!D44,2)&REPT("*",3)&" "&MID('Lisans Öğr.Gör. Sonuç'!D44,FIND(" ",'Lisans Öğr.Gör. Sonuç'!D44)+1,2)&REPT("*",3))) ->  | E44: =IF('Lisans Öğr.Gör. Sonuç'!E44="","",'Lisans Öğr.Gör. Sonuç'!E44) ->  | F44: =IF('Lisans Öğr.Gör. Sonuç'!F44="","",'Lisans Öğr.Gör. Sonuç'!F44) ->  | G44: =IF('Lisans Öğr.Gör. Sonuç'!G44="","",'Lisans Öğr.Gör. Sonuç'!G44) ->  | H44: =IF('Lisans Öğr.Gör. Sonuç'!H44="","",'Lisans Öğr.Gör. Sonuç'!H44) ->  | I44: =IF('Lisans Öğr.Gör. Sonuç'!I44="","",'Lisans Öğr.Gör. Sonuç'!I44) ->  | J44: =IF('Lisans Öğr.Gör. Sonuç'!J44="","",'Lisans Öğr.Gör. Sonuç'!J44) ->  | K44: =IF('Lisans Öğr.Gör. Sonuç'!K44="","",'Lisans Öğr.Gör. Sonuç'!K44) ->  | L44: =IF('Lisans Öğr.Gör. Sonuç'!L44="","",'Lisans Öğr.Gör. Sonuç'!L44) ->  | M44: =IF('Lisans Öğr.Gör. Sonuç'!M44="","",'Lisans Öğr.Gör. Sonuç'!M44) ->  | N44: =IF('Lisans Öğr.Gör. Sonuç'!N44="","",'Lisans Öğr.Gör. Sonuç'!N44) -> 
A45: =IF('Lisans Öğr.Gör. Sonuç'!A45="","",'Lisans Öğr.Gör. Sonuç'!A45) ->  | B45: =IF('Lisans Öğr.Gör. Sonuç'!B45="","",LEFT('Lisans Öğr.Gör. Sonuç'!B45,3)&REPT("*",4)&RIGHT('Lisans Öğr.Gör. Sonuç'!B45,2)) ->  | C45: =IF('Lisans Öğr.Gör. Sonuç'!C45="","",IF(ISERR(FIND(" ",'Lisans Öğr.Gör. Sonuç'!C45))=TRUE,LEFT('Lisans Öğr.Gör. Sonuç'!C45,2)&REPT("*",3),LEFT('Lisans Öğr.Gör. Sonuç'!C45,2)&REPT("*",3)&" "&MID('Lisans Öğr.Gör. Sonuç'!C45,FIND(" ",'Lisans Öğr.Gör. Sonuç'!C45)+1,2)&REPT("*",3))) ->  | D45: =IF('Lisans Öğr.Gör. Sonuç'!D45="","",IF(ISERR(FIND(" ",'Lisans Öğr.Gör. Sonuç'!D45))=TRUE,LEFT('Lisans Öğr.Gör. Sonuç'!D45,2)&REPT("*",3),LEFT('Lisans Öğr.Gör. Sonuç'!D45,2)&REPT("*",3)&" "&MID('Lisans Öğr.Gör. Sonuç'!D45,FIND(" ",'Lisans Öğr.Gör. Sonuç'!D45)+1,2)&REPT("*",3))) ->  | E45: =IF('Lisans Öğr.Gör. Sonuç'!E45="","",'Lisans Öğr.Gör. Sonuç'!E45) ->  | F45: =IF('Lisans Öğr.Gör. Sonuç'!F45="","",'Lisans Öğr.Gör. Sonuç'!F45) ->  | G45: =IF('Lisans Öğr.Gör. Sonuç'!G45="","",'Lisans Öğr.Gör. Sonuç'!G45) ->  | H45: =IF('Lisans Öğr.Gör. Sonuç'!H45="","",'Lisans Öğr.Gör. Sonuç'!H45) ->  | I45: =IF('Lisans Öğr.Gör. Sonuç'!I45="","",'Lisans Öğr.Gör. Sonuç'!I45) ->  | J45: =IF('Lisans Öğr.Gör. Sonuç'!J45="","",'Lisans Öğr.Gör. Sonuç'!J45) ->  | K45: =IF('Lisans Öğr.Gör. Sonuç'!K45="","",'Lisans Öğr.Gör. Sonuç'!K45) ->  | L45: =IF('Lisans Öğr.Gör. Sonuç'!L45="","",'Lisans Öğr.Gör. Sonuç'!L45) ->  | M45: =IF('Lisans Öğr.Gör. Sonuç'!M45="","",'Lisans Öğr.Gör. Sonuç'!M45) ->  | N45: =IF('Lisans Öğr.Gör. Sonuç'!N45="","",'Lisans Öğr.Gör. Sonuç'!N45) -> 
A46: =IF('Lisans Öğr.Gör. Sonuç'!A46="","",'Lisans Öğr.Gör. Sonuç'!A46) ->  | B46: =IF('Lisans Öğr.Gör. Sonuç'!B46="","",LEFT('Lisans Öğr.Gör. Sonuç'!B46,3)&REPT("*",4)&RIGHT('Lisans Öğr.Gör. Sonuç'!B46,2)) ->  | C46: =IF('Lisans Öğr.Gör. Sonuç'!C46="","",IF(ISERR(FIND(" ",'Lisans Öğr.Gör. Sonuç'!C46))=TRUE,LEFT('Lisans Öğr.Gör. Sonuç'!C46,2)&REPT("*",3),LEFT('Lisans Öğr.Gör. Sonuç'!C46,2)&REPT("*",3)&" "&MID('Lisans Öğr.Gör. Sonuç'!C46,FIND(" ",'Lisans Öğr.Gör. Sonuç'!C46)+1,2)&REPT("*",3))) ->  | D46: =IF('Lisans Öğr.Gör. Sonuç'!D46="","",IF(ISERR(FIND(" ",'Lisans Öğr.Gör. Sonuç'!D46))=TRUE,LEFT('Lisans Öğr.Gör. Sonuç'!D46,2)&REPT("*",3),LEFT('Lisans Öğr.Gör. Sonuç'!D46,2)&REPT("*",3)&" "&MID('Lisans Öğr.Gör. Sonuç'!D46,FIND(" ",'Lisans Öğr.Gör. Sonuç'!D46)+1,2)&REPT("*",3))) ->  | E46: =IF('Lisans Öğr.Gör. Sonuç'!E46="","",'Lisans Öğr.Gör. Sonuç'!E46) ->  | F46: =IF('Lisans Öğr.Gör. Sonuç'!F46="","",'Lisans Öğr.Gör. Sonuç'!F46) ->  | G46: =IF('Lisans Öğr.Gör. Sonuç'!G46="","",'Lisans Öğr.Gör. Sonuç'!G46) ->  | H46: =IF('Lisans Öğr.Gör. Sonuç'!H46="","",'Lisans Öğr.Gör. Sonuç'!H46) ->  | I46: =IF('Lisans Öğr.Gör. Sonuç'!I46="","",'Lisans Öğr.Gör. Sonuç'!I46) ->  | J46: =IF('Lisans Öğr.Gör. Sonuç'!J46="","",'Lisans Öğr.Gör. Sonuç'!J46) ->  | K46: =IF('Lisans Öğr.Gör. Sonuç'!K46="","",'Lisans Öğr.Gör. Sonuç'!K46) ->  | L46: =IF('Lisans Öğr.Gör. Sonuç'!L46="","",'Lisans Öğr.Gör. Sonuç'!L46) ->  | M46: =IF('Lisans Öğr.Gör. Sonuç'!M46="","",'Lisans Öğr.Gör. Sonuç'!M46) ->  | N46: =IF('Lisans Öğr.Gör. Sonuç'!N46="","",'Lisans Öğr.Gör. Sonuç'!N46) -> 
A47: =IF('Lisans Öğr.Gör. Sonuç'!A47="","",'Lisans Öğr.Gör. Sonuç'!A47) ->  | B47: =IF('Lisans Öğr.Gör. Sonuç'!B47="","",LEFT('Lisans Öğr.Gör. Sonuç'!B47,3)&REPT("*",4)&RIGHT('Lisans Öğr.Gör. Sonuç'!B47,2)) ->  | C47: =IF('Lisans Öğr.Gör. Sonuç'!C47="","",IF(ISERR(FIND(" ",'Lisans Öğr.Gör. Sonuç'!C47))=TRUE,LEFT('Lisans Öğr.Gör. Sonuç'!C47,2)&REPT("*",3),LEFT('Lisans Öğr.Gör. Sonuç'!C47,2)&REPT("*",3)&" "&MID('Lisans Öğr.Gör. Sonuç'!C47,FIND(" ",'Lisans Öğr.Gör. Sonuç'!C47)+1,2)&REPT("*",3))) ->  | D47: =IF('Lisans Öğr.Gör. Sonuç'!D47="","",IF(ISERR(FIND(" ",'Lisans Öğr.Gör. Sonuç'!D47))=TRUE,LEFT('Lisans Öğr.Gör. Sonuç'!D47,2)&REPT("*",3),LEFT('Lisans Öğr.Gör. Sonuç'!D47,2)&REPT("*",3)&" "&MID('Lisans Öğr.Gör. Sonuç'!D47,FIND(" ",'Lisans Öğr.Gör. Sonuç'!D47)+1,2)&REPT("*",3))) ->  | E47: =IF('Lisans Öğr.Gör. Sonuç'!E47="","",'Lisans Öğr.Gör. Sonuç'!E47) ->  | F47: =IF('Lisans Öğr.Gör. Sonuç'!F47="","",'Lisans Öğr.Gör. Sonuç'!F47) ->  | G47: =IF('Lisans Öğr.Gör. Sonuç'!G47="","",'Lisans Öğr.Gör. Sonuç'!G47) ->  | H47: =IF('Lisans Öğr.Gör. Sonuç'!H47="","",'Lisans Öğr.Gör. Sonuç'!H47) ->  | I47: =IF('Lisans Öğr.Gör. Sonuç'!I47="","",'Lisans Öğr.Gör. Sonuç'!I47) ->  | J47: =IF('Lisans Öğr.Gör. Sonuç'!J47="","",'Lisans Öğr.Gör. Sonuç'!J47) ->  | K47: =IF('Lisans Öğr.Gör. Sonuç'!K47="","",'Lisans Öğr.Gör. Sonuç'!K47) ->  | L47: =IF('Lisans Öğr.Gör. Sonuç'!L47="","",'Lisans Öğr.Gör. Sonuç'!L47) ->  | M47: =IF('Lisans Öğr.Gör. Sonuç'!M47="","",'Lisans Öğr.Gör. Sonuç'!M47) ->  | N47: =IF('Lisans Öğr.Gör. Sonuç'!N47="","",'Lisans Öğr.Gör. Sonuç'!N47) -> 
A48: =IF('Lisans Öğr.Gör. Sonuç'!A48="","",'Lisans Öğr.Gör. Sonuç'!A48) ->  | B48: =IF('Lisans Öğr.Gör. Sonuç'!B48="","",LEFT('Lisans Öğr.Gör. Sonuç'!B48,3)&REPT("*",4)&RIGHT('Lisans Öğr.Gör. Sonuç'!B48,2)) ->  | C48: =IF('Lisans Öğr.Gör. Sonuç'!C48="","",IF(ISERR(FIND(" ",'Lisans Öğr.Gör. Sonuç'!C48))=TRUE,LEFT('Lisans Öğr.Gör. Sonuç'!C48,2)&REPT("*",3),LEFT('Lisans Öğr.Gör. Sonuç'!C48,2)&REPT("*",3)&" "&MID('Lisans Öğr.Gör. Sonuç'!C48,FIND(" ",'Lisans Öğr.Gör. Sonuç'!C48)+1,2)&REPT("*",3))) ->  | D48: =IF('Lisans Öğr.Gör. Sonuç'!D48="","",IF(ISERR(FIND(" ",'Lisans Öğr.Gör. Sonuç'!D48))=TRUE,LEFT('Lisans Öğr.Gör. Sonuç'!D48,2)&REPT("*",3),LEFT('Lisans Öğr.Gör. Sonuç'!D48,2)&REPT("*",3)&" "&MID('Lisans Öğr.Gör. Sonuç'!D48,FIND(" ",'Lisans Öğr.Gör. Sonuç'!D48)+1,2)&REPT("*",3))) ->  | E48: =IF('Lisans Öğr.Gör. Sonuç'!E48="","",'Lisans Öğr.Gör. Sonuç'!E48) ->  | F48: =IF('Lisans Öğr.Gör. Sonuç'!F48="","",'Lisans Öğr.Gör. Sonuç'!F48) ->  | G48: =IF('Lisans Öğr.Gör. Sonuç'!G48="","",'Lisans Öğr.Gör. Sonuç'!G48) ->  | H48: =IF('Lisans Öğr.Gör. Sonuç'!H48="","",'Lisans Öğr.Gör. Sonuç'!H48) ->  | I48: =IF('Lisans Öğr.Gör. Sonuç'!I48="","",'Lisans Öğr.Gör. Sonuç'!I48) ->  | J48: =IF('Lisans Öğr.Gör. Sonuç'!J48="","",'Lisans Öğr.Gör. Sonuç'!J48) ->  | K48: =IF('Lisans Öğr.Gör. Sonuç'!K48="","",'Lisans Öğr.Gör. Sonuç'!K48) ->  | L48: =IF('Lisans Öğr.Gör. Sonuç'!L48="","",'Lisans Öğr.Gör. Sonuç'!L48) ->  | M48: =IF('Lisans Öğr.Gör. Sonuç'!M48="","",'Lisans Öğr.Gör. Sonuç'!M48) ->  | N48: =IF('Lisans Öğr.Gör. Sonuç'!N48="","",'Lisans Öğr.Gör. Sonuç'!N48) -> 
A49: =IF('Lisans Öğr.Gör. Sonuç'!A49="","",'Lisans Öğr.Gör. Sonuç'!A49) ->  | B49: =IF('Lisans Öğr.Gör. Sonuç'!B49="","",LEFT('Lisans Öğr.Gör. Sonuç'!B49,3)&REPT("*",4)&RIGHT('Lisans Öğr.Gör. Sonuç'!B49,2)) ->  | C49: =IF('Lisans Öğr.Gör. Sonuç'!C49="","",IF(ISERR(FIND(" ",'Lisans Öğr.Gör. Sonuç'!C49))=TRUE,LEFT('Lisans Öğr.Gör. Sonuç'!C49,2)&REPT("*",3),LEFT('Lisans Öğr.Gör. Sonuç'!C49,2)&REPT("*",3)&" "&MID('Lisans Öğr.Gör. Sonuç'!C49,FIND(" ",'Lisans Öğr.Gör. Sonuç'!C49)+1,2)&REPT("*",3))) ->  | D49: =IF('Lisans Öğr.Gör. Sonuç'!D49="","",IF(ISERR(FIND(" ",'Lisans Öğr.Gör. Sonuç'!D49))=TRUE,LEFT('Lisans Öğr.Gör. Sonuç'!D49,2)&REPT("*",3),LEFT('Lisans Öğr.Gör. Sonuç'!D49,2)&REPT("*",3)&" "&MID('Lisans Öğr.Gör. Sonuç'!D49,FIND(" ",'Lisans Öğr.Gör. Sonuç'!D49)+1,2)&REPT("*",3))) ->  | E49: =IF('Lisans Öğr.Gör. Sonuç'!E49="","",'Lisans Öğr.Gör. Sonuç'!E49) ->  | F49: =IF('Lisans Öğr.Gör. Sonuç'!F49="","",'Lisans Öğr.Gör. Sonuç'!F49) ->  | G49: =IF('Lisans Öğr.Gör. Sonuç'!G49="","",'Lisans Öğr.Gör. Sonuç'!G49) ->  | H49: =IF('Lisans Öğr.Gör. Sonuç'!H49="","",'Lisans Öğr.Gör. Sonuç'!H49) ->  | I49: =IF('Lisans Öğr.Gör. Sonuç'!I49="","",'Lisans Öğr.Gör. Sonuç'!I49) ->  | J49: =IF('Lisans Öğr.Gör. Sonuç'!J49="","",'Lisans Öğr.Gör. Sonuç'!J49) ->  | K49: =IF('Lisans Öğr.Gör. Sonuç'!K49="","",'Lisans Öğr.Gör. Sonuç'!K49) ->  | L49: =IF('Lisans Öğr.Gör. Sonuç'!L49="","",'Lisans Öğr.Gör. Sonuç'!L49) ->  | M49: =IF('Lisans Öğr.Gör. Sonuç'!M49="","",'Lisans Öğr.Gör. Sonuç'!M49) ->  | N49: =IF('Lisans Öğr.Gör. Sonuç'!N49="","",'Lisans Öğr.Gör. Sonuç'!N49) -> 
A50: =IF('Lisans Öğr.Gör. Sonuç'!A50="","",'Lisans Öğr.Gör. Sonuç'!A50) ->  | B50: =IF('Lisans Öğr.Gör. Sonuç'!B50="","",LEFT('Lisans Öğr.Gör. Sonuç'!B50,3)&REPT("*",4)&RIGHT('Lisans Öğr.Gör. Sonuç'!B50,2)) ->  | C50: =IF('Lisans Öğr.Gör. Sonuç'!C50="","",IF(ISERR(FIND(" ",'Lisans Öğr.Gör. Sonuç'!C50))=TRUE,LEFT('Lisans Öğr.Gör. Sonuç'!C50,2)&REPT("*",3),LEFT('Lisans Öğr.Gör. Sonuç'!C50,2)&REPT("*",3)&" "&MID('Lisans Öğr.Gör. Sonuç'!C50,FIND(" ",'Lisans Öğr.Gör. Sonuç'!C50)+1,2)&REPT("*",3))) ->  | D50: =IF('Lisans Öğr.Gör. Sonuç'!D50="","",IF(ISERR(FIND(" ",'Lisans Öğr.Gör. Sonuç'!D50))=TRUE,LEFT('Lisans Öğr.Gör. Sonuç'!D50,2)&REPT("*",3),LEFT('Lisans Öğr.Gör. Sonuç'!D50,2)&REPT("*",3)&" "&MID('Lisans Öğr.Gör. Sonuç'!D50,FIND(" ",'Lisans Öğr.Gör. Sonuç'!D50)+1,2)&REPT("*",3))) ->  | E50: =IF('Lisans Öğr.Gör. Sonuç'!E50="","",'Lisans Öğr.Gör. Sonuç'!E50) ->  | F50: =IF('Lisans Öğr.Gör. Sonuç'!F50="","",'Lisans Öğr.Gör. Sonuç'!F50) ->  | G50: =IF('Lisans Öğr.Gör. Sonuç'!G50="","",'Lisans Öğr.Gör. Sonuç'!G50) ->  | H50: =IF('Lisans Öğr.Gör. Sonuç'!H50="","",'Lisans Öğr.Gör. Sonuç'!H50) ->  | I50: =IF('Lisans Öğr.Gör. Sonuç'!I50="","",'Lisans Öğr.Gör. Sonuç'!I50) ->  | J50: =IF('Lisans Öğr.Gör. Sonuç'!J50="","",'Lisans Öğr.Gör. Sonuç'!J50) ->  | K50: =IF('Lisans Öğr.Gör. Sonuç'!K50="","",'Lisans Öğr.Gör. Sonuç'!K50) ->  | L50: =IF('Lisans Öğr.Gör. Sonuç'!L50="","",'Lisans Öğr.Gör. Sonuç'!L50) ->  | M50: =IF('Lisans Öğr.Gör. Sonuç'!M50="","",'Lisans Öğr.Gör. Sonuç'!M50) ->  | N50: =IF('Lisans Öğr.Gör. Sonuç'!N50="","",'Lisans Öğr.Gör. Sonuç'!N50) -> 
A51: =IF('Lisans Öğr.Gör. Sonuç'!A51="","",'Lisans Öğr.Gör. Sonuç'!A51) ->  | B51: =IF('Lisans Öğr.Gör. Sonuç'!B51="","",LEFT('Lisans Öğr.Gör. Sonuç'!B51,3)&REPT("*",4)&RIGHT('Lisans Öğr.Gör. Sonuç'!B51,2)) ->  | C51: =IF('Lisans Öğr.Gör. Sonuç'!C51="","",IF(ISERR(FIND(" ",'Lisans Öğr.Gör. Sonuç'!C51))=TRUE,LEFT('Lisans Öğr.Gör. Sonuç'!C51,2)&REPT("*",3),LEFT('Lisans Öğr.Gör. Sonuç'!C51,2)&REPT("*",3)&" "&MID('Lisans Öğr.Gör. Sonuç'!C51,FIND(" ",'Lisans Öğr.Gör. Sonuç'!C51)+1,2)&REPT("*",3))) ->  | D51: =IF('Lisans Öğr.Gör. Sonuç'!D51="","",IF(ISERR(FIND(" ",'Lisans Öğr.Gör. Sonuç'!D51))=TRUE,LEFT('Lisans Öğr.Gör. Sonuç'!D51,2)&REPT("*",3),LEFT('Lisans Öğr.Gör. Sonuç'!D51,2)&REPT("*",3)&" "&MID('Lisans Öğr.Gör. Sonuç'!D51,FIND(" ",'Lisans Öğr.Gör. Sonuç'!D51)+1,2)&REPT("*",3))) ->  | E51: =IF('Lisans Öğr.Gör. Sonuç'!E51="","",'Lisans Öğr.Gör. Sonuç'!E51) ->  | F51: =IF('Lisans Öğr.Gör. Sonuç'!F51="","",'Lisans Öğr.Gör. Sonuç'!F51) ->  | G51: =IF('Lisans Öğr.Gör. Sonuç'!G51="","",'Lisans Öğr.Gör. Sonuç'!G51) ->  | H51: =IF('Lisans Öğr.Gör. Sonuç'!H51="","",'Lisans Öğr.Gör. Sonuç'!H51) ->  | I51: =IF('Lisans Öğr.Gör. Sonuç'!I51="","",'Lisans Öğr.Gör. Sonuç'!I51) ->  | J51: =IF('Lisans Öğr.Gör. Sonuç'!J51="","",'Lisans Öğr.Gör. Sonuç'!J51) ->  | K51: =IF('Lisans Öğr.Gör. Sonuç'!K51="","",'Lisans Öğr.Gör. Sonuç'!K51) ->  | L51: =IF('Lisans Öğr.Gör. Sonuç'!L51="","",'Lisans Öğr.Gör. Sonuç'!L51) ->  | M51: =IF('Lisans Öğr.Gör. Sonuç'!M51="","",'Lisans Öğr.Gör. Sonuç'!M51) ->  | N51: =IF('Lisans Öğr.Gör. Sonuç'!N51="","",'Lisans Öğr.Gör. Sonuç'!N51) -> 
A52: =IF('Lisans Öğr.Gör. Sonuç'!A52="","",'Lisans Öğr.Gör. Sonuç'!A52) ->  | B52: =IF('Lisans Öğr.Gör. Sonuç'!B52="","",LEFT('Lisans Öğr.Gör. Sonuç'!B52,3)&REPT("*",4)&RIGHT('Lisans Öğr.Gör. Sonuç'!B52,2)) ->  | C52: =IF('Lisans Öğr.Gör. Sonuç'!C52="","",IF(ISERR(FIND(" ",'Lisans Öğr.Gör. Sonuç'!C52))=TRUE,LEFT('Lisans Öğr.Gör. Sonuç'!C52,2)&REPT("*",3),LEFT('Lisans Öğr.Gör. Sonuç'!C52,2)&REPT("*",3)&" "&MID('Lisans Öğr.Gör. Sonuç'!C52,FIND(" ",'Lisans Öğr.Gör. Sonuç'!C52)+1,2)&REPT("*",3))) ->  | D52: =IF('Lisans Öğr.Gör. Sonuç'!D52="","",IF(ISERR(FIND(" ",'Lisans Öğr.Gör. Sonuç'!D52))=TRUE,LEFT('Lisans Öğr.Gör. Sonuç'!D52,2)&REPT("*",3),LEFT('Lisans Öğr.Gör. Sonuç'!D52,2)&REPT("*",3)&" "&MID('Lisans Öğr.Gör. Sonuç'!D52,FIND(" ",'Lisans Öğr.Gör. Sonuç'!D52)+1,2)&REPT("*",3))) ->  | E52: =IF('Lisans Öğr.Gör. Sonuç'!E52="","",'Lisans Öğr.Gör. Sonuç'!E52) ->  | F52: =IF('Lisans Öğr.Gör. Sonuç'!F52="","",'Lisans Öğr.Gör. Sonuç'!F52) ->  | G52: =IF('Lisans Öğr.Gör. Sonuç'!G52="","",'Lisans Öğr.Gör. Sonuç'!G52) ->  | H52: =IF('Lisans Öğr.Gör. Sonuç'!H52="","",'Lisans Öğr.Gör. Sonuç'!H52) ->  | I52: =IF('Lisans Öğr.Gör. Sonuç'!I52="","",'Lisans Öğr.Gör. Sonuç'!I52) ->  | J52: =IF('Lisans Öğr.Gör. Sonuç'!J52="","",'Lisans Öğr.Gör. Sonuç'!J52) ->  | K52: =IF('Lisans Öğr.Gör. Sonuç'!K52="","",'Lisans Öğr.Gör. Sonuç'!K52) ->  | L52: =IF('Lisans Öğr.Gör. Sonuç'!L52="","",'Lisans Öğr.Gör. Sonuç'!L52) ->  | M52: =IF('Lisans Öğr.Gör. Sonuç'!M52="","",'Lisans Öğr.Gör. Sonuç'!M52) ->  | N52: =IF('Lisans Öğr.Gör. Sonuç'!N52="","",'Lisans Öğr.Gör. Sonuç'!N52) -> 
A53: =IF('Lisans Öğr.Gör. Sonuç'!A53="","",'Lisans Öğr.Gör. Sonuç'!A53) ->  | B53: =IF('Lisans Öğr.Gör. Sonuç'!B53="","",LEFT('Lisans Öğr.Gör. Sonuç'!B53,3)&REPT("*",4)&RIGHT('Lisans Öğr.Gör. Sonuç'!B53,2)) ->  | C53: =IF('Lisans Öğr.Gör. Sonuç'!C53="","",IF(ISERR(FIND(" ",'Lisans Öğr.Gör. Sonuç'!C53))=TRUE,LEFT('Lisans Öğr.Gör. Sonuç'!C53,2)&REPT("*",3),LEFT('Lisans Öğr.Gör. Sonuç'!C53,2)&REPT("*",3)&" "&MID('Lisans Öğr.Gör. Sonuç'!C53,FIND(" ",'Lisans Öğr.Gör. Sonuç'!C53)+1,2)&REPT("*",3))) ->  | D53: =IF('Lisans Öğr.Gör. Sonuç'!D53="","",IF(ISERR(FIND(" ",'Lisans Öğr.Gör. Sonuç'!D53))=TRUE,LEFT('Lisans Öğr.Gör. Sonuç'!D53,2)&REPT("*",3),LEFT('Lisans Öğr.Gör. Sonuç'!D53,2)&REPT("*",3)&" "&MID('Lisans Öğr.Gör. Sonuç'!D53,FIND(" ",'Lisans Öğr.Gör. Sonuç'!D53)+1,2)&REPT("*",3))) ->  | E53: =IF('Lisans Öğr.Gör. Sonuç'!E53="","",'Lisans Öğr.Gör. Sonuç'!E53) ->  | F53: =IF('Lisans Öğr.Gör. Sonuç'!F53="","",'Lisans Öğr.Gör. Sonuç'!F53) ->  | G53: =IF('Lisans Öğr.Gör. Sonuç'!G53="","",'Lisans Öğr.Gör. Sonuç'!G53) ->  | H53: =IF('Lisans Öğr.Gör. Sonuç'!H53="","",'Lisans Öğr.Gör. Sonuç'!H53) ->  | I53: =IF('Lisans Öğr.Gör. Sonuç'!I53="","",'Lisans Öğr.Gör. Sonuç'!I53) ->  | J53: =IF('Lisans Öğr.Gör. Sonuç'!J53="","",'Lisans Öğr.Gör. Sonuç'!J53) ->  | K53: =IF('Lisans Öğr.Gör. Sonuç'!K53="","",'Lisans Öğr.Gör. Sonuç'!K53) ->  | L53: =IF('Lisans Öğr.Gör. Sonuç'!L53="","",'Lisans Öğr.Gör. Sonuç'!L53) ->  | M53: =IF('Lisans Öğr.Gör. Sonuç'!M53="","",'Lisans Öğr.Gör. Sonuç'!M53) ->  | N53: =IF('Lisans Öğr.Gör. Sonuç'!N53="","",'Lisans Öğr.Gör. Sonuç'!N53) -> 
A54: =IF('Lisans Öğr.Gör. Sonuç'!A54="","",'Lisans Öğr.Gör. Sonuç'!A54) ->  | B54: =IF('Lisans Öğr.Gör. Sonuç'!B54="","",LEFT('Lisans Öğr.Gör. Sonuç'!B54,3)&REPT("*",4)&RIGHT('Lisans Öğr.Gör. Sonuç'!B54,2)) ->  | C54: =IF('Lisans Öğr.Gör. Sonuç'!C54="","",IF(ISERR(FIND(" ",'Lisans Öğr.Gör. Sonuç'!C54))=TRUE,LEFT('Lisans Öğr.Gör. Sonuç'!C54,2)&REPT("*",3),LEFT('Lisans Öğr.Gör. Sonuç'!C54,2)&REPT("*",3)&" "&MID('Lisans Öğr.Gör. Sonuç'!C54,FIND(" ",'Lisans Öğr.Gör. Sonuç'!C54)+1,2)&REPT("*",3))) ->  | D54: =IF('Lisans Öğr.Gör. Sonuç'!D54="","",IF(ISERR(FIND(" ",'Lisans Öğr.Gör. Sonuç'!D54))=TRUE,LEFT('Lisans Öğr.Gör. Sonuç'!D54,2)&REPT("*",3),LEFT('Lisans Öğr.Gör. Sonuç'!D54,2)&REPT("*",3)&" "&MID('Lisans Öğr.Gör. Sonuç'!D54,FIND(" ",'Lisans Öğr.Gör. Sonuç'!D54)+1,2)&REPT("*",3))) ->  | E54: =IF('Lisans Öğr.Gör. Sonuç'!E54="","",'Lisans Öğr.Gör. Sonuç'!E54) ->  | F54: =IF('Lisans Öğr.Gör. Sonuç'!F54="","",'Lisans Öğr.Gör. Sonuç'!F54) ->  | G54: =IF('Lisans Öğr.Gör. Sonuç'!G54="","",'Lisans Öğr.Gör. Sonuç'!G54) ->  | H54: =IF('Lisans Öğr.Gör. Sonuç'!H54="","",'Lisans Öğr.Gör. Sonuç'!H54) ->  | I54: =IF('Lisans Öğr.Gör. Sonuç'!I54="","",'Lisans Öğr.Gör. Sonuç'!I54) ->  | J54: =IF('Lisans Öğr.Gör. Sonuç'!J54="","",'Lisans Öğr.Gör. Sonuç'!J54) ->  | K54: =IF('Lisans Öğr.Gör. Sonuç'!K54="","",'Lisans Öğr.Gör. Sonuç'!K54) ->  | L54: =IF('Lisans Öğr.Gör. Sonuç'!L54="","",'Lisans Öğr.Gör. Sonuç'!L54) ->  | M54: =IF('Lisans Öğr.Gör. Sonuç'!M54="","",'Lisans Öğr.Gör. Sonuç'!M54) ->  | N54: =IF('Lisans Öğr.Gör. Sonuç'!N54="","",'Lisans Öğr.Gör. Sonuç'!N54) -> 
A55: =IF('Lisans Öğr.Gör. Sonuç'!A55="","",'Lisans Öğr.Gör. Sonuç'!A55) ->  | B55: =IF('Lisans Öğr.Gör. Sonuç'!B55="","",LEFT('Lisans Öğr.Gör. Sonuç'!B55,3)&REPT("*",4)&RIGHT('Lisans Öğr.Gör. Sonuç'!B55,2)) ->  | C55: =IF('Lisans Öğr.Gör. Sonuç'!C55="","",IF(ISERR(FIND(" ",'Lisans Öğr.Gör. Sonuç'!C55))=TRUE,LEFT('Lisans Öğr.Gör. Sonuç'!C55,2)&REPT("*",3),LEFT('Lisans Öğr.Gör. Sonuç'!C55,2)&REPT("*",3)&" "&MID('Lisans Öğr.Gör. Sonuç'!C55,FIND(" ",'Lisans Öğr.Gör. Sonuç'!C55)+1,2)&REPT("*",3))) ->  | D55: =IF('Lisans Öğr.Gör. Sonuç'!D55="","",IF(ISERR(FIND(" ",'Lisans Öğr.Gör. Sonuç'!D55))=TRUE,LEFT('Lisans Öğr.Gör. Sonuç'!D55,2)&REPT("*",3),LEFT('Lisans Öğr.Gör. Sonuç'!D55,2)&REPT("*",3)&" "&MID('Lisans Öğr.Gör. Sonuç'!D55,FIND(" ",'Lisans Öğr.Gör. Sonuç'!D55)+1,2)&REPT("*",3))) ->  | E55: =IF('Lisans Öğr.Gör. Sonuç'!E55="","",'Lisans Öğr.Gör. Sonuç'!E55) ->  | F55: =IF('Lisans Öğr.Gör. Sonuç'!F55="","",'Lisans Öğr.Gör. Sonuç'!F55) ->  | G55: =IF('Lisans Öğr.Gör. Sonuç'!G55="","",'Lisans Öğr.Gör. Sonuç'!G55) ->  | H55: =IF('Lisans Öğr.Gör. Sonuç'!H55="","",'Lisans Öğr.Gör. Sonuç'!H55) ->  | I55: =IF('Lisans Öğr.Gör. Sonuç'!I55="","",'Lisans Öğr.Gör. Sonuç'!I55) ->  | J55: =IF('Lisans Öğr.Gör. Sonuç'!J55="","",'Lisans Öğr.Gör. Sonuç'!J55) ->  | K55: =IF('Lisans Öğr.Gör. Sonuç'!K55="","",'Lisans Öğr.Gör. Sonuç'!K55) ->  | L55: =IF('Lisans Öğr.Gör. Sonuç'!L55="","",'Lisans Öğr.Gör. Sonuç'!L55) ->  | M55: =IF('Lisans Öğr.Gör. Sonuç'!M55="","",'Lisans Öğr.Gör. Sonuç'!M55) ->  | N55: =IF('Lisans Öğr.Gör. Sonuç'!N55="","",'Lisans Öğr.Gör. Sonuç'!N55) -> 
A56: =IF('Lisans Öğr.Gör. Sonuç'!A56="","",'Lisans Öğr.Gör. Sonuç'!A56) ->  | B56: =IF('Lisans Öğr.Gör. Sonuç'!B56="","",LEFT('Lisans Öğr.Gör. Sonuç'!B56,3)&REPT("*",4)&RIGHT('Lisans Öğr.Gör. Sonuç'!B56,2)) ->  | C56: =IF('Lisans Öğr.Gör. Sonuç'!C56="","",IF(ISERR(FIND(" ",'Lisans Öğr.Gör. Sonuç'!C56))=TRUE,LEFT('Lisans Öğr.Gör. Sonuç'!C56,2)&REPT("*",3),LEFT('Lisans Öğr.Gör. Sonuç'!C56,2)&REPT("*",3)&" "&MID('Lisans Öğr.Gör. Sonuç'!C56,FIND(" ",'Lisans Öğr.Gör. Sonuç'!C56)+1,2)&REPT("*",3))) ->  | D56: =IF('Lisans Öğr.Gör. Sonuç'!D56="","",IF(ISERR(FIND(" ",'Lisans Öğr.Gör. Sonuç'!D56))=TRUE,LEFT('Lisans Öğr.Gör. Sonuç'!D56,2)&REPT("*",3),LEFT('Lisans Öğr.Gör. Sonuç'!D56,2)&REPT("*",3)&" "&MID('Lisans Öğr.Gör. Sonuç'!D56,FIND(" ",'Lisans Öğr.Gör. Sonuç'!D56)+1,2)&REPT("*",3))) ->  | E56: =IF('Lisans Öğr.Gör. Sonuç'!E56="","",'Lisans Öğr.Gör. Sonuç'!E56) ->  | F56: =IF('Lisans Öğr.Gör. Sonuç'!F56="","",'Lisans Öğr.Gör. Sonuç'!F56) ->  | G56: =IF('Lisans Öğr.Gör. Sonuç'!G56="","",'Lisans Öğr.Gör. Sonuç'!G56) ->  | H56: =IF('Lisans Öğr.Gör. Sonuç'!H56="","",'Lisans Öğr.Gör. Sonuç'!H56) ->  | I56: =IF('Lisans Öğr.Gör. Sonuç'!I56="","",'Lisans Öğr.Gör. Sonuç'!I56) ->  | J56: =IF('Lisans Öğr.Gör. Sonuç'!J56="","",'Lisans Öğr.Gör. Sonuç'!J56) ->  | K56: =IF('Lisans Öğr.Gör. Sonuç'!K56="","",'Lisans Öğr.Gör. Sonuç'!K56) ->  | L56: =IF('Lisans Öğr.Gör. Sonuç'!L56="","",'Lisans Öğr.Gör. Sonuç'!L56) ->  | M56: =IF('Lisans Öğr.Gör. Sonuç'!M56="","",'Lisans Öğr.Gör. Sonuç'!M56) ->  | N56: =IF('Lisans Öğr.Gör. Sonuç'!N56="","",'Lisans Öğr.Gör. Sonuç'!N56) -> 
A57: =IF('Lisans Öğr.Gör. Sonuç'!A57="","",'Lisans Öğr.Gör. Sonuç'!A57) ->  | B57: =IF('Lisans Öğr.Gör. Sonuç'!B57="","",LEFT('Lisans Öğr.Gör. Sonuç'!B57,3)&REPT("*",4)&RIGHT('Lisans Öğr.Gör. Sonuç'!B57,2)) ->  | C57: =IF('Lisans Öğr.Gör. Sonuç'!C57="","",IF(ISERR(FIND(" ",'Lisans Öğr.Gör. Sonuç'!C57))=TRUE,LEFT('Lisans Öğr.Gör. Sonuç'!C57,2)&REPT("*",3),LEFT('Lisans Öğr.Gör. Sonuç'!C57,2)&REPT("*",3)&" "&MID('Lisans Öğr.Gör. Sonuç'!C57,FIND(" ",'Lisans Öğr.Gör. Sonuç'!C57)+1,2)&REPT("*",3))) ->  | D57: =IF('Lisans Öğr.Gör. Sonuç'!D57="","",IF(ISERR(FIND(" ",'Lisans Öğr.Gör. Sonuç'!D57))=TRUE,LEFT('Lisans Öğr.Gör. Sonuç'!D57,2)&REPT("*",3),LEFT('Lisans Öğr.Gör. Sonuç'!D57,2)&REPT("*",3)&" "&MID('Lisans Öğr.Gör. Sonuç'!D57,FIND(" ",'Lisans Öğr.Gör. Sonuç'!D57)+1,2)&REPT("*",3))) ->  | E57: =IF('Lisans Öğr.Gör. Sonuç'!E57="","",'Lisans Öğr.Gör. Sonuç'!E57) ->  | F57: =IF('Lisans Öğr.Gör. Sonuç'!F57="","",'Lisans Öğr.Gör. Sonuç'!F57) ->  | G57: =IF('Lisans Öğr.Gör. Sonuç'!G57="","",'Lisans Öğr.Gör. Sonuç'!G57) ->  | H57: =IF('Lisans Öğr.Gör. Sonuç'!H57="","",'Lisans Öğr.Gör. Sonuç'!H57) ->  | I57: =IF('Lisans Öğr.Gör. Sonuç'!I57="","",'Lisans Öğr.Gör. Sonuç'!I57) ->  | J57: =IF('Lisans Öğr.Gör. Sonuç'!J57="","",'Lisans Öğr.Gör. Sonuç'!J57) ->  | K57: =IF('Lisans Öğr.Gör. Sonuç'!K57="","",'Lisans Öğr.Gör. Sonuç'!K57) ->  | L57: =IF('Lisans Öğr.Gör. Sonuç'!L57="","",'Lisans Öğr.Gör. Sonuç'!L57) ->  | M57: =IF('Lisans Öğr.Gör. Sonuç'!M57="","",'Lisans Öğr.Gör. Sonuç'!M57) ->  | N57: =IF('Lisans Öğr.Gör. Sonuç'!N57="","",'Lisans Öğr.Gör. Sonuç'!N57) -> 
A58: =IF('Lisans Öğr.Gör. Sonuç'!A58="","",'Lisans Öğr.Gör. Sonuç'!A58) ->  | B58: =IF('Lisans Öğr.Gör. Sonuç'!B58="","",LEFT('Lisans Öğr.Gör. Sonuç'!B58,3)&REPT("*",4)&RIGHT('Lisans Öğr.Gör. Sonuç'!B58,2)) ->  | C58: =IF('Lisans Öğr.Gör. Sonuç'!C58="","",IF(ISERR(FIND(" ",'Lisans Öğr.Gör. Sonuç'!C58))=TRUE,LEFT('Lisans Öğr.Gör. Sonuç'!C58,2)&REPT("*",3),LEFT('Lisans Öğr.Gör. Sonuç'!C58,2)&REPT("*",3)&" "&MID('Lisans Öğr.Gör. Sonuç'!C58,FIND(" ",'Lisans Öğr.Gör. Sonuç'!C58)+1,2)&REPT("*",3))) ->  | D58: =IF('Lisans Öğr.Gör. Sonuç'!D58="","",IF(ISERR(FIND(" ",'Lisans Öğr.Gör. Sonuç'!D58))=TRUE,LEFT('Lisans Öğr.Gör. Sonuç'!D58,2)&REPT("*",3),LEFT('Lisans Öğr.Gör. Sonuç'!D58,2)&REPT("*",3)&" "&MID('Lisans Öğr.Gör. Sonuç'!D58,FIND(" ",'Lisans Öğr.Gör. Sonuç'!D58)+1,2)&REPT("*",3))) ->  | E58: =IF('Lisans Öğr.Gör. Sonuç'!E58="","",'Lisans Öğr.Gör. Sonuç'!E58) ->  | F58: =IF('Lisans Öğr.Gör. Sonuç'!F58="","",'Lisans Öğr.Gör. Sonuç'!F58) ->  | G58: =IF('Lisans Öğr.Gör. Sonuç'!G58="","",'Lisans Öğr.Gör. Sonuç'!G58) ->  | H58: =IF('Lisans Öğr.Gör. Sonuç'!H58="","",'Lisans Öğr.Gör. Sonuç'!H58) ->  | I58: =IF('Lisans Öğr.Gör. Sonuç'!I58="","",'Lisans Öğr.Gör. Sonuç'!I58) ->  | J58: =IF('Lisans Öğr.Gör. Sonuç'!J58="","",'Lisans Öğr.Gör. Sonuç'!J58) ->  | K58: =IF('Lisans Öğr.Gör. Sonuç'!K58="","",'Lisans Öğr.Gör. Sonuç'!K58) ->  | L58: =IF('Lisans Öğr.Gör. Sonuç'!L58="","",'Lisans Öğr.Gör. Sonuç'!L58) ->  | M58: =IF('Lisans Öğr.Gör. Sonuç'!M58="","",'Lisans Öğr.Gör. Sonuç'!M58) ->  | N58: =IF('Lisans Öğr.Gör. Sonuç'!N58="","",'Lisans Öğr.Gör. Sonuç'!N58) -> 
A59: =IF('Lisans Öğr.Gör. Sonuç'!A59="","",'Lisans Öğr.Gör. Sonuç'!A59) ->  | B59: =IF('Lisans Öğr.Gör. Sonuç'!B59="","",LEFT('Lisans Öğr.Gör. Sonuç'!B59,3)&REPT("*",4)&RIGHT('Lisans Öğr.Gör. Sonuç'!B59,2)) ->  | C59: =IF('Lisans Öğr.Gör. Sonuç'!C59="","",IF(ISERR(FIND(" ",'Lisans Öğr.Gör. Sonuç'!C59))=TRUE,LEFT('Lisans Öğr.Gör. Sonuç'!C59,2)&REPT("*",3),LEFT('Lisans Öğr.Gör. Sonuç'!C59,2)&REPT("*",3)&" "&MID('Lisans Öğr.Gör. Sonuç'!C59,FIND(" ",'Lisans Öğr.Gör. Sonuç'!C59)+1,2)&REPT("*",3))) ->  | D59: =IF('Lisans Öğr.Gör. Sonuç'!D59="","",IF(ISERR(FIND(" ",'Lisans Öğr.Gör. Sonuç'!D59))=TRUE,LEFT('Lisans Öğr.Gör. Sonuç'!D59,2)&REPT("*",3),LEFT('Lisans Öğr.Gör. Sonuç'!D59,2)&REPT("*",3)&" "&MID('Lisans Öğr.Gör. Sonuç'!D59,FIND(" ",'Lisans Öğr.Gör. Sonuç'!D59)+1,2)&REPT("*",3))) ->  | E59: =IF('Lisans Öğr.Gör. Sonuç'!E59="","",'Lisans Öğr.Gör. Sonuç'!E59) ->  | F59: =IF('Lisans Öğr.Gör. Sonuç'!F59="","",'Lisans Öğr.Gör. Sonuç'!F59) ->  | G59: =IF('Lisans Öğr.Gör. Sonuç'!G59="","",'Lisans Öğr.Gör. Sonuç'!G59) ->  | H59: =IF('Lisans Öğr.Gör. Sonuç'!H59="","",'Lisans Öğr.Gör. Sonuç'!H59) ->  | I59: =IF('Lisans Öğr.Gör. Sonuç'!I59="","",'Lisans Öğr.Gör. Sonuç'!I59) ->  | J59: =IF('Lisans Öğr.Gör. Sonuç'!J59="","",'Lisans Öğr.Gör. Sonuç'!J59) ->  | K59: =IF('Lisans Öğr.Gör. Sonuç'!K59="","",'Lisans Öğr.Gör. Sonuç'!K59) ->  | L59: =IF('Lisans Öğr.Gör. Sonuç'!L59="","",'Lisans Öğr.Gör. Sonuç'!L59) ->  | M59: =IF('Lisans Öğr.Gör. Sonuç'!M59="","",'Lisans Öğr.Gör. Sonuç'!M59) ->  | N59: =IF('Lisans Öğr.Gör. Sonuç'!N59="","",'Lisans Öğr.Gör. Sonuç'!N59) -> 
A60: =IF('Lisans Öğr.Gör. Sonuç'!A60="","",'Lisans Öğr.Gör. Sonuç'!A60) ->  | B60: =IF('Lisans Öğr.Gör. Sonuç'!B60="","",LEFT('Lisans Öğr.Gör. Sonuç'!B60,3)&REPT("*",4)&RIGHT('Lisans Öğr.Gör. Sonuç'!B60,2)) ->  | C60: =IF('Lisans Öğr.Gör. Sonuç'!C60="","",IF(ISERR(FIND(" ",'Lisans Öğr.Gör. Sonuç'!C60))=TRUE,LEFT('Lisans Öğr.Gör. Sonuç'!C60,2)&REPT("*",3),LEFT('Lisans Öğr.Gör. Sonuç'!C60,2)&REPT("*",3)&" "&MID('Lisans Öğr.Gör. Sonuç'!C60,FIND(" ",'Lisans Öğr.Gör. Sonuç'!C60)+1,2)&REPT("*",3))) ->  | D60: =IF('Lisans Öğr.Gör. Sonuç'!D60="","",IF(ISERR(FIND(" ",'Lisans Öğr.Gör. Sonuç'!D60))=TRUE,LEFT('Lisans Öğr.Gör. Sonuç'!D60,2)&REPT("*",3),LEFT('Lisans Öğr.Gör. Sonuç'!D60,2)&REPT("*",3)&" "&MID('Lisans Öğr.Gör. Sonuç'!D60,FIND(" ",'Lisans Öğr.Gör. Sonuç'!D60)+1,2)&REPT("*",3))) ->  | E60: =IF('Lisans Öğr.Gör. Sonuç'!E60="","",'Lisans Öğr.Gör. Sonuç'!E60) ->  | F60: =IF('Lisans Öğr.Gör. Sonuç'!F60="","",'Lisans Öğr.Gör. Sonuç'!F60) ->  | G60: =IF('Lisans Öğr.Gör. Sonuç'!G60="","",'Lisans Öğr.Gör. Sonuç'!G60) ->  | H60: =IF('Lisans Öğr.Gör. Sonuç'!H60="","",'Lisans Öğr.Gör. Sonuç'!H60) ->  | I60: =IF('Lisans Öğr.Gör. Sonuç'!I60="","",'Lisans Öğr.Gör. Sonuç'!I60) ->  | J60: =IF('Lisans Öğr.Gör. Sonuç'!J60="","",'Lisans Öğr.Gör. Sonuç'!J60) ->  | K60: =IF('Lisans Öğr.Gör. Sonuç'!K60="","",'Lisans Öğr.Gör. Sonuç'!K60) ->  | L60: =IF('Lisans Öğr.Gör. Sonuç'!L60="","",'Lisans Öğr.Gör. Sonuç'!L60) ->  | M60: =IF('Lisans Öğr.Gör. Sonuç'!M60="","",'Lisans Öğr.Gör. Sonuç'!M60) ->  | N60: =IF('Lisans Öğr.Gör. Sonuç'!N60="","",'Lisans Öğr.Gör. Sonuç'!N60) -> 
A61: =IF('Lisans Öğr.Gör. Sonuç'!A61="","",'Lisans Öğr.Gör. Sonuç'!A61) ->  | B61: =IF('Lisans Öğr.Gör. Sonuç'!B61="","",LEFT('Lisans Öğr.Gör. Sonuç'!B61,3)&REPT("*",4)&RIGHT('Lisans Öğr.Gör. Sonuç'!B61,2)) ->  | C61: =IF('Lisans Öğr.Gör. Sonuç'!C61="","",IF(ISERR(FIND(" ",'Lisans Öğr.Gör. Sonuç'!C61))=TRUE,LEFT('Lisans Öğr.Gör. Sonuç'!C61,2)&REPT("*",3),LEFT('Lisans Öğr.Gör. Sonuç'!C61,2)&REPT("*",3)&" "&MID('Lisans Öğr.Gör. Sonuç'!C61,FIND(" ",'Lisans Öğr.Gör. Sonuç'!C61)+1,2)&REPT("*",3))) ->  | D61: =IF('Lisans Öğr.Gör. Sonuç'!D61="","",IF(ISERR(FIND(" ",'Lisans Öğr.Gör. Sonuç'!D61))=TRUE,LEFT('Lisans Öğr.Gör. Sonuç'!D61,2)&REPT("*",3),LEFT('Lisans Öğr.Gör. Sonuç'!D61,2)&REPT("*",3)&" "&MID('Lisans Öğr.Gör. Sonuç'!D61,FIND(" ",'Lisans Öğr.Gör. Sonuç'!D61)+1,2)&REPT("*",3))) ->  | E61: =IF('Lisans Öğr.Gör. Sonuç'!E61="","",'Lisans Öğr.Gör. Sonuç'!E61) ->  | F61: =IF('Lisans Öğr.Gör. Sonuç'!F61="","",'Lisans Öğr.Gör. Sonuç'!F61) ->  | G61: =IF('Lisans Öğr.Gör. Sonuç'!G61="","",'Lisans Öğr.Gör. Sonuç'!G61) ->  | H61: =IF('Lisans Öğr.Gör. Sonuç'!H61="","",'Lisans Öğr.Gör. Sonuç'!H61) ->  | I61: =IF('Lisans Öğr.Gör. Sonuç'!I61="","",'Lisans Öğr.Gör. Sonuç'!I61) ->  | J61: =IF('Lisans Öğr.Gör. Sonuç'!J61="","",'Lisans Öğr.Gör. Sonuç'!J61) ->  | K61: =IF('Lisans Öğr.Gör. Sonuç'!K61="","",'Lisans Öğr.Gör. Sonuç'!K61) ->  | L61: =IF('Lisans Öğr.Gör. Sonuç'!L61="","",'Lisans Öğr.Gör. Sonuç'!L61) ->  | M61: =IF('Lisans Öğr.Gör. Sonuç'!M61="","",'Lisans Öğr.Gör. Sonuç'!M61) ->  | N61: =IF('Lisans Öğr.Gör. Sonuç'!N61="","",'Lisans Öğr.Gör. Sonuç'!N61) -> 
A62: =IF('Lisans Öğr.Gör. Sonuç'!A62="","",'Lisans Öğr.Gör. Sonuç'!A62) ->  | B62: =IF('Lisans Öğr.Gör. Sonuç'!B62="","",LEFT('Lisans Öğr.Gör. Sonuç'!B62,3)&REPT("*",4)&RIGHT('Lisans Öğr.Gör. Sonuç'!B62,2)) ->  | C62: =IF('Lisans Öğr.Gör. Sonuç'!C62="","",IF(ISERR(FIND(" ",'Lisans Öğr.Gör. Sonuç'!C62))=TRUE,LEFT('Lisans Öğr.Gör. Sonuç'!C62,2)&REPT("*",3),LEFT('Lisans Öğr.Gör. Sonuç'!C62,2)&REPT("*",3)&" "&MID('Lisans Öğr.Gör. Sonuç'!C62,FIND(" ",'Lisans Öğr.Gör. Sonuç'!C62)+1,2)&REPT("*",3))) ->  | D62: =IF('Lisans Öğr.Gör. Sonuç'!D62="","",IF(ISERR(FIND(" ",'Lisans Öğr.Gör. Sonuç'!D62))=TRUE,LEFT('Lisans Öğr.Gör. Sonuç'!D62,2)&REPT("*",3),LEFT('Lisans Öğr.Gör. Sonuç'!D62,2)&REPT("*",3)&" "&MID('Lisans Öğr.Gör. Sonuç'!D62,FIND(" ",'Lisans Öğr.Gör. Sonuç'!D62)+1,2)&REPT("*",3))) ->  | E62: =IF('Lisans Öğr.Gör. Sonuç'!E62="","",'Lisans Öğr.Gör. Sonuç'!E62) ->  | F62: =IF('Lisans Öğr.Gör. Sonuç'!F62="","",'Lisans Öğr.Gör. Sonuç'!F62) ->  | G62: =IF('Lisans Öğr.Gör. Sonuç'!G62="","",'Lisans Öğr.Gör. Sonuç'!G62) ->  | H62: =IF('Lisans Öğr.Gör. Sonuç'!H62="","",'Lisans Öğr.Gör. Sonuç'!H62) ->  | I62: =IF('Lisans Öğr.Gör. Sonuç'!I62="","",'Lisans Öğr.Gör. Sonuç'!I62) ->  | J62: =IF('Lisans Öğr.Gör. Sonuç'!J62="","",'Lisans Öğr.Gör. Sonuç'!J62) ->  | K62: =IF('Lisans Öğr.Gör. Sonuç'!K62="","",'Lisans Öğr.Gör. Sonuç'!K62) ->  | L62: =IF('Lisans Öğr.Gör. Sonuç'!L62="","",'Lisans Öğr.Gör. Sonuç'!L62) ->  | M62: =IF('Lisans Öğr.Gör. Sonuç'!M62="","",'Lisans Öğr.Gör. Sonuç'!M62) ->  | N62: =IF('Lisans Öğr.Gör. Sonuç'!N62="","",'Lisans Öğr.Gör. Sonuç'!N62) -> 
A63: =IF('Lisans Öğr.Gör. Sonuç'!A63="","",'Lisans Öğr.Gör. Sonuç'!A63) ->  | B63: =IF('Lisans Öğr.Gör. Sonuç'!B63="","",LEFT('Lisans Öğr.Gör. Sonuç'!B63,3)&REPT("*",4)&RIGHT('Lisans Öğr.Gör. Sonuç'!B63,2)) ->  | C63: =IF('Lisans Öğr.Gör. Sonuç'!C63="","",IF(ISERR(FIND(" ",'Lisans Öğr.Gör. Sonuç'!C63))=TRUE,LEFT('Lisans Öğr.Gör. Sonuç'!C63,2)&REPT("*",3),LEFT('Lisans Öğr.Gör. Sonuç'!C63,2)&REPT("*",3)&" "&MID('Lisans Öğr.Gör. Sonuç'!C63,FIND(" ",'Lisans Öğr.Gör. Sonuç'!C63)+1,2)&REPT("*",3))) ->  | D63: =IF('Lisans Öğr.Gör. Sonuç'!D63="","",IF(ISERR(FIND(" ",'Lisans Öğr.Gör. Sonuç'!D63))=TRUE,LEFT('Lisans Öğr.Gör. Sonuç'!D63,2)&REPT("*",3),LEFT('Lisans Öğr.Gör. Sonuç'!D63,2)&REPT("*",3)&" "&MID('Lisans Öğr.Gör. Sonuç'!D63,FIND(" ",'Lisans Öğr.Gör. Sonuç'!D63)+1,2)&REPT("*",3))) ->  | E63: =IF('Lisans Öğr.Gör. Sonuç'!E63="","",'Lisans Öğr.Gör. Sonuç'!E63) ->  | F63: =IF('Lisans Öğr.Gör. Sonuç'!F63="","",'Lisans Öğr.Gör. Sonuç'!F63) ->  | G63: =IF('Lisans Öğr.Gör. Sonuç'!G63="","",'Lisans Öğr.Gör. Sonuç'!G63) ->  | H63: =IF('Lisans Öğr.Gör. Sonuç'!H63="","",'Lisans Öğr.Gör. Sonuç'!H63) ->  | I63: =IF('Lisans Öğr.Gör. Sonuç'!I63="","",'Lisans Öğr.Gör. Sonuç'!I63) ->  | J63: =IF('Lisans Öğr.Gör. Sonuç'!J63="","",'Lisans Öğr.Gör. Sonuç'!J63) ->  | K63: =IF('Lisans Öğr.Gör. Sonuç'!K63="","",'Lisans Öğr.Gör. Sonuç'!K63) ->  | L63: =IF('Lisans Öğr.Gör. Sonuç'!L63="","",'Lisans Öğr.Gör. Sonuç'!L63) ->  | M63: =IF('Lisans Öğr.Gör. Sonuç'!M63="","",'Lisans Öğr.Gör. Sonuç'!M63) ->  | N63: =IF('Lisans Öğr.Gör. Sonuç'!N63="","",'Lisans Öğr.Gör. Sonuç'!N63) -> 
A64: =IF('Lisans Öğr.Gör. Sonuç'!A64="","",'Lisans Öğr.Gör. Sonuç'!A64) ->  | B64: =IF('Lisans Öğr.Gör. Sonuç'!B64="","",LEFT('Lisans Öğr.Gör. Sonuç'!B64,3)&REPT("*",4)&RIGHT('Lisans Öğr.Gör. Sonuç'!B64,2)) ->  | C64: =IF('Lisans Öğr.Gör. Sonuç'!C64="","",IF(ISERR(FIND(" ",'Lisans Öğr.Gör. Sonuç'!C64))=TRUE,LEFT('Lisans Öğr.Gör. Sonuç'!C64,2)&REPT("*",3),LEFT('Lisans Öğr.Gör. Sonuç'!C64,2)&REPT("*",3)&" "&MID('Lisans Öğr.Gör. Sonuç'!C64,FIND(" ",'Lisans Öğr.Gör. Sonuç'!C64)+1,2)&REPT("*",3))) ->  | D64: =IF('Lisans Öğr.Gör. Sonuç'!D64="","",IF(ISERR(FIND(" ",'Lisans Öğr.Gör. Sonuç'!D64))=TRUE,LEFT('Lisans Öğr.Gör. Sonuç'!D64,2)&REPT("*",3),LEFT('Lisans Öğr.Gör. Sonuç'!D64,2)&REPT("*",3)&" "&MID('Lisans Öğr.Gör. Sonuç'!D64,FIND(" ",'Lisans Öğr.Gör. Sonuç'!D64)+1,2)&REPT("*",3))) ->  | E64: =IF('Lisans Öğr.Gör. Sonuç'!E64="","",'Lisans Öğr.Gör. Sonuç'!E64) ->  | F64: =IF('Lisans Öğr.Gör. Sonuç'!F64="","",'Lisans Öğr.Gör. Sonuç'!F64) ->  | G64: =IF('Lisans Öğr.Gör. Sonuç'!G64="","",'Lisans Öğr.Gör. Sonuç'!G64) ->  | H64: =IF('Lisans Öğr.Gör. Sonuç'!H64="","",'Lisans Öğr.Gör. Sonuç'!H64) ->  | I64: =IF('Lisans Öğr.Gör. Sonuç'!I64="","",'Lisans Öğr.Gör. Sonuç'!I64) ->  | J64: =IF('Lisans Öğr.Gör. Sonuç'!J64="","",'Lisans Öğr.Gör. Sonuç'!J64) ->  | K64: =IF('Lisans Öğr.Gör. Sonuç'!K64="","",'Lisans Öğr.Gör. Sonuç'!K64) ->  | L64: =IF('Lisans Öğr.Gör. Sonuç'!L64="","",'Lisans Öğr.Gör. Sonuç'!L64) ->  | M64: =IF('Lisans Öğr.Gör. Sonuç'!M64="","",'Lisans Öğr.Gör. Sonuç'!M64) ->  | N64: =IF('Lisans Öğr.Gör. Sonuç'!N64="","",'Lisans Öğr.Gör. Sonuç'!N64) -> 
A65: =IF('Lisans Öğr.Gör. Sonuç'!A65="","",'Lisans Öğr.Gör. Sonuç'!A65) ->  | B65: =IF('Lisans Öğr.Gör. Sonuç'!B65="","",LEFT('Lisans Öğr.Gör. Sonuç'!B65,3)&REPT("*",4)&RIGHT('Lisans Öğr.Gör. Sonuç'!B65,2)) ->  | C65: =IF('Lisans Öğr.Gör. Sonuç'!C65="","",IF(ISERR(FIND(" ",'Lisans Öğr.Gör. Sonuç'!C65))=TRUE,LEFT('Lisans Öğr.Gör. Sonuç'!C65,2)&REPT("*",3),LEFT('Lisans Öğr.Gör. Sonuç'!C65,2)&REPT("*",3)&" "&MID('Lisans Öğr.Gör. Sonuç'!C65,FIND(" ",'Lisans Öğr.Gör. Sonuç'!C65)+1,2)&REPT("*",3))) ->  | D65: =IF('Lisans Öğr.Gör. Sonuç'!D65="","",IF(ISERR(FIND(" ",'Lisans Öğr.Gör. Sonuç'!D65))=TRUE,LEFT('Lisans Öğr.Gör. Sonuç'!D65,2)&REPT("*",3),LEFT('Lisans Öğr.Gör. Sonuç'!D65,2)&REPT("*",3)&" "&MID('Lisans Öğr.Gör. Sonuç'!D65,FIND(" ",'Lisans Öğr.Gör. Sonuç'!D65)+1,2)&REPT("*",3))) ->  | E65: =IF('Lisans Öğr.Gör. Sonuç'!E65="","",'Lisans Öğr.Gör. Sonuç'!E65) ->  | F65: =IF('Lisans Öğr.Gör. Sonuç'!F65="","",'Lisans Öğr.Gör. Sonuç'!F65) ->  | G65: =IF('Lisans Öğr.Gör. Sonuç'!G65="","",'Lisans Öğr.Gör. Sonuç'!G65) ->  | H65: =IF('Lisans Öğr.Gör. Sonuç'!H65="","",'Lisans Öğr.Gör. Sonuç'!H65) ->  | I65: =IF('Lisans Öğr.Gör. Sonuç'!I65="","",'Lisans Öğr.Gör. Sonuç'!I65) ->  | J65: =IF('Lisans Öğr.Gör. Sonuç'!J65="","",'Lisans Öğr.Gör. Sonuç'!J65) ->  | K65: =IF('Lisans Öğr.Gör. Sonuç'!K65="","",'Lisans Öğr.Gör. Sonuç'!K65) ->  | L65: =IF('Lisans Öğr.Gör. Sonuç'!L65="","",'Lisans Öğr.Gör. Sonuç'!L65) ->  | M65: =IF('Lisans Öğr.Gör. Sonuç'!M65="","",'Lisans Öğr.Gör. Sonuç'!M65) ->  | N65: =IF('Lisans Öğr.Gör. Sonuç'!N65="","",'Lisans Öğr.Gör. Sonuç'!N65) -> 
A66: =IF('Lisans Öğr.Gör. Sonuç'!A66="","",'Lisans Öğr.Gör. Sonuç'!A66) ->  | B66: =IF('Lisans Öğr.Gör. Sonuç'!B66="","",LEFT('Lisans Öğr.Gör. Sonuç'!B66,3)&REPT("*",4)&RIGHT('Lisans Öğr.Gör. Sonuç'!B66,2)) ->  | C66: =IF('Lisans Öğr.Gör. Sonuç'!C66="","",IF(ISERR(FIND(" ",'Lisans Öğr.Gör. Sonuç'!C66))=TRUE,LEFT('Lisans Öğr.Gör. Sonuç'!C66,2)&REPT("*",3),LEFT('Lisans Öğr.Gör. Sonuç'!C66,2)&REPT("*",3)&" "&MID('Lisans Öğr.Gör. Sonuç'!C66,FIND(" ",'Lisans Öğr.Gör. Sonuç'!C66)+1,2)&REPT("*",3))) ->  | D66: =IF('Lisans Öğr.Gör. Sonuç'!D66="","",IF(ISERR(FIND(" ",'Lisans Öğr.Gör. Sonuç'!D66))=TRUE,LEFT('Lisans Öğr.Gör. Sonuç'!D66,2)&REPT("*",3),LEFT('Lisans Öğr.Gör. Sonuç'!D66,2)&REPT("*",3)&" "&MID('Lisans Öğr.Gör. Sonuç'!D66,FIND(" ",'Lisans Öğr.Gör. Sonuç'!D66)+1,2)&REPT("*",3))) ->  | E66: =IF('Lisans Öğr.Gör. Sonuç'!E66="","",'Lisans Öğr.Gör. Sonuç'!E66) ->  | F66: =IF('Lisans Öğr.Gör. Sonuç'!F66="","",'Lisans Öğr.Gör. Sonuç'!F66) ->  | G66: =IF('Lisans Öğr.Gör. Sonuç'!G66="","",'Lisans Öğr.Gör. Sonuç'!G66) ->  | H66: =IF('Lisans Öğr.Gör. Sonuç'!H66="","",'Lisans Öğr.Gör. Sonuç'!H66) ->  | I66: =IF('Lisans Öğr.Gör. Sonuç'!I66="","",'Lisans Öğr.Gör. Sonuç'!I66) ->  | J66: =IF('Lisans Öğr.Gör. Sonuç'!J66="","",'Lisans Öğr.Gör. Sonuç'!J66) ->  | K66: =IF('Lisans Öğr.Gör. Sonuç'!K66="","",'Lisans Öğr.Gör. Sonuç'!K66) ->  | L66: =IF('Lisans Öğr.Gör. Sonuç'!L66="","",'Lisans Öğr.Gör. Sonuç'!L66) ->  | M66: =IF('Lisans Öğr.Gör. Sonuç'!M66="","",'Lisans Öğr.Gör. Sonuç'!M66) ->  | N66: =IF('Lisans Öğr.Gör. Sonuç'!N66="","",'Lisans Öğr.Gör. Sonuç'!N66) -> 
A67: =IF('Lisans Öğr.Gör. Sonuç'!A67="","",'Lisans Öğr.Gör. Sonuç'!A67) ->  | B67: =IF('Lisans Öğr.Gör. Sonuç'!B67="","",LEFT('Lisans Öğr.Gör. Sonuç'!B67,3)&REPT("*",4)&RIGHT('Lisans Öğr.Gör. Sonuç'!B67,2)) ->  | C67: =IF('Lisans Öğr.Gör. Sonuç'!C67="","",IF(ISERR(FIND(" ",'Lisans Öğr.Gör. Sonuç'!C67))=TRUE,LEFT('Lisans Öğr.Gör. Sonuç'!C67,2)&REPT("*",3),LEFT('Lisans Öğr.Gör. Sonuç'!C67,2)&REPT("*",3)&" "&MID('Lisans Öğr.Gör. Sonuç'!C67,FIND(" ",'Lisans Öğr.Gör. Sonuç'!C67)+1,2)&REPT("*",3))) ->  | D67: =IF('Lisans Öğr.Gör. Sonuç'!D67="","",IF(ISERR(FIND(" ",'Lisans Öğr.Gör. Sonuç'!D67))=TRUE,LEFT('Lisans Öğr.Gör. Sonuç'!D67,2)&REPT("*",3),LEFT('Lisans Öğr.Gör. Sonuç'!D67,2)&REPT("*",3)&" "&MID('Lisans Öğr.Gör. Sonuç'!D67,FIND(" ",'Lisans Öğr.Gör. Sonuç'!D67)+1,2)&REPT("*",3))) ->  | E67: =IF('Lisans Öğr.Gör. Sonuç'!E67="","",'Lisans Öğr.Gör. Sonuç'!E67) ->  | F67: =IF('Lisans Öğr.Gör. Sonuç'!F67="","",'Lisans Öğr.Gör. Sonuç'!F67) ->  | G67: =IF('Lisans Öğr.Gör. Sonuç'!G67="","",'Lisans Öğr.Gör. Sonuç'!G67) ->  | H67: =IF('Lisans Öğr.Gör. Sonuç'!H67="","",'Lisans Öğr.Gör. Sonuç'!H67) ->  | I67: =IF('Lisans Öğr.Gör. Sonuç'!I67="","",'Lisans Öğr.Gör. Sonuç'!I67) ->  | J67: =IF('Lisans Öğr.Gör. Sonuç'!J67="","",'Lisans Öğr.Gör. Sonuç'!J67) ->  | K67: =IF('Lisans Öğr.Gör. Sonuç'!K67="","",'Lisans Öğr.Gör. Sonuç'!K67) ->  | L67: =IF('Lisans Öğr.Gör. Sonuç'!L67="","",'Lisans Öğr.Gör. Sonuç'!L67) ->  | M67: =IF('Lisans Öğr.Gör. Sonuç'!M67="","",'Lisans Öğr.Gör. Sonuç'!M67) ->  | N67: =IF('Lisans Öğr.Gör. Sonuç'!N67="","",'Lisans Öğr.Gör. Sonuç'!N67) -> 
A68: =IF('Lisans Öğr.Gör. Sonuç'!A68="","",'Lisans Öğr.Gör. Sonuç'!A68) ->  | B68: =IF('Lisans Öğr.Gör. Sonuç'!B68="","",LEFT('Lisans Öğr.Gör. Sonuç'!B68,3)&REPT("*",4)&RIGHT('Lisans Öğr.Gör. Sonuç'!B68,2)) ->  | C68: =IF('Lisans Öğr.Gör. Sonuç'!C68="","",IF(ISERR(FIND(" ",'Lisans Öğr.Gör. Sonuç'!C68))=TRUE,LEFT('Lisans Öğr.Gör. Sonuç'!C68,2)&REPT("*",3),LEFT('Lisans Öğr.Gör. Sonuç'!C68,2)&REPT("*",3)&" "&MID('Lisans Öğr.Gör. Sonuç'!C68,FIND(" ",'Lisans Öğr.Gör. Sonuç'!C68)+1,2)&REPT("*",3))) ->  | D68: =IF('Lisans Öğr.Gör. Sonuç'!D68="","",IF(ISERR(FIND(" ",'Lisans Öğr.Gör. Sonuç'!D68))=TRUE,LEFT('Lisans Öğr.Gör. Sonuç'!D68,2)&REPT("*",3),LEFT('Lisans Öğr.Gör. Sonuç'!D68,2)&REPT("*",3)&" "&MID('Lisans Öğr.Gör. Sonuç'!D68,FIND(" ",'Lisans Öğr.Gör. Sonuç'!D68)+1,2)&REPT("*",3))) ->  | E68: =IF('Lisans Öğr.Gör. Sonuç'!E68="","",'Lisans Öğr.Gör. Sonuç'!E68) ->  | F68: =IF('Lisans Öğr.Gör. Sonuç'!F68="","",'Lisans Öğr.Gör. Sonuç'!F68) ->  | G68: =IF('Lisans Öğr.Gör. Sonuç'!G68="","",'Lisans Öğr.Gör. Sonuç'!G68) ->  | H68: =IF('Lisans Öğr.Gör. Sonuç'!H68="","",'Lisans Öğr.Gör. Sonuç'!H68) ->  | I68: =IF('Lisans Öğr.Gör. Sonuç'!I68="","",'Lisans Öğr.Gör. Sonuç'!I68) ->  | J68: =IF('Lisans Öğr.Gör. Sonuç'!J68="","",'Lisans Öğr.Gör. Sonuç'!J68) ->  | K68: =IF('Lisans Öğr.Gör. Sonuç'!K68="","",'Lisans Öğr.Gör. Sonuç'!K68) ->  | L68: =IF('Lisans Öğr.Gör. Sonuç'!L68="","",'Lisans Öğr.Gör. Sonuç'!L68) ->  | M68: =IF('Lisans Öğr.Gör. Sonuç'!M68="","",'Lisans Öğr.Gör. Sonuç'!M68) ->  | N68: =IF('Lisans Öğr.Gör. Sonuç'!N68="","",'Lisans Öğr.Gör. Sonuç'!N68) -> 
A69: =IF('Lisans Öğr.Gör. Sonuç'!A69="","",'Lisans Öğr.Gör. Sonuç'!A69) ->  | B69: =IF('Lisans Öğr.Gör. Sonuç'!B69="","",LEFT('Lisans Öğr.Gör. Sonuç'!B69,3)&REPT("*",4)&RIGHT('Lisans Öğr.Gör. Sonuç'!B69,2)) ->  | C69: =IF('Lisans Öğr.Gör. Sonuç'!C69="","",IF(ISERR(FIND(" ",'Lisans Öğr.Gör. Sonuç'!C69))=TRUE,LEFT('Lisans Öğr.Gör. Sonuç'!C69,2)&REPT("*",3),LEFT('Lisans Öğr.Gör. Sonuç'!C69,2)&REPT("*",3)&" "&MID('Lisans Öğr.Gör. Sonuç'!C69,FIND(" ",'Lisans Öğr.Gör. Sonuç'!C69)+1,2)&REPT("*",3))) ->  | D69: =IF('Lisans Öğr.Gör. Sonuç'!D69="","",IF(ISERR(FIND(" ",'Lisans Öğr.Gör. Sonuç'!D69))=TRUE,LEFT('Lisans Öğr.Gör. Sonuç'!D69,2)&REPT("*",3),LEFT('Lisans Öğr.Gör. Sonuç'!D69,2)&REPT("*",3)&" "&MID('Lisans Öğr.Gör. Sonuç'!D69,FIND(" ",'Lisans Öğr.Gör. Sonuç'!D69)+1,2)&REPT("*",3))) ->  | E69: =IF('Lisans Öğr.Gör. Sonuç'!E69="","",'Lisans Öğr.Gör. Sonuç'!E69) ->  | F69: =IF('Lisans Öğr.Gör. Sonuç'!F69="","",'Lisans Öğr.Gör. Sonuç'!F69) ->  | G69: =IF('Lisans Öğr.Gör. Sonuç'!G69="","",'Lisans Öğr.Gör. Sonuç'!G69) ->  | H69: =IF('Lisans Öğr.Gör. Sonuç'!H69="","",'Lisans Öğr.Gör. Sonuç'!H69) ->  | I69: =IF('Lisans Öğr.Gör. Sonuç'!I69="","",'Lisans Öğr.Gör. Sonuç'!I69) ->  | J69: =IF('Lisans Öğr.Gör. Sonuç'!J69="","",'Lisans Öğr.Gör. Sonuç'!J69) ->  | K69: =IF('Lisans Öğr.Gör. Sonuç'!K69="","",'Lisans Öğr.Gör. Sonuç'!K69) ->  | L69: =IF('Lisans Öğr.Gör. Sonuç'!L69="","",'Lisans Öğr.Gör. Sonuç'!L69) ->  | M69: =IF('Lisans Öğr.Gör. Sonuç'!M69="","",'Lisans Öğr.Gör. Sonuç'!M69) ->  | N69: =IF('Lisans Öğr.Gör. Sonuç'!N69="","",'Lisans Öğr.Gör. Sonuç'!N69) -> 
A70: =IF('Lisans Öğr.Gör. Sonuç'!A70="","",'Lisans Öğr.Gör. Sonuç'!A70) ->  | B70: =IF('Lisans Öğr.Gör. Sonuç'!B70="","",LEFT('Lisans Öğr.Gör. Sonuç'!B70,3)&REPT("*",4)&RIGHT('Lisans Öğr.Gör. Sonuç'!B70,2)) ->  | C70: =IF('Lisans Öğr.Gör. Sonuç'!C70="","",IF(ISERR(FIND(" ",'Lisans Öğr.Gör. Sonuç'!C70))=TRUE,LEFT('Lisans Öğr.Gör. Sonuç'!C70,2)&REPT("*",3),LEFT('Lisans Öğr.Gör. Sonuç'!C70,2)&REPT("*",3)&" "&MID('Lisans Öğr.Gör. Sonuç'!C70,FIND(" ",'Lisans Öğr.Gör. Sonuç'!C70)+1,2)&REPT("*",3))) ->  | D70: =IF('Lisans Öğr.Gör. Sonuç'!D70="","",IF(ISERR(FIND(" ",'Lisans Öğr.Gör. Sonuç'!D70))=TRUE,LEFT('Lisans Öğr.Gör. Sonuç'!D70,2)&REPT("*",3),LEFT('Lisans Öğr.Gör. Sonuç'!D70,2)&REPT("*",3)&" "&MID('Lisans Öğr.Gör. Sonuç'!D70,FIND(" ",'Lisans Öğr.Gör. Sonuç'!D70)+1,2)&REPT("*",3))) ->  | E70: =IF('Lisans Öğr.Gör. Sonuç'!E70="","",'Lisans Öğr.Gör. Sonuç'!E70) ->  | F70: =IF('Lisans Öğr.Gör. Sonuç'!F70="","",'Lisans Öğr.Gör. Sonuç'!F70) ->  | G70: =IF('Lisans Öğr.Gör. Sonuç'!G70="","",'Lisans Öğr.Gör. Sonuç'!G70) ->  | H70: =IF('Lisans Öğr.Gör. Sonuç'!H70="","",'Lisans Öğr.Gör. Sonuç'!H70) ->  | I70: =IF('Lisans Öğr.Gör. Sonuç'!I70="","",'Lisans Öğr.Gör. Sonuç'!I70) ->  | J70: =IF('Lisans Öğr.Gör. Sonuç'!J70="","",'Lisans Öğr.Gör. Sonuç'!J70) ->  | K70: =IF('Lisans Öğr.Gör. Sonuç'!K70="","",'Lisans Öğr.Gör. Sonuç'!K70) ->  | L70: =IF('Lisans Öğr.Gör. Sonuç'!L70="","",'Lisans Öğr.Gör. Sonuç'!L70) ->  | M70: =IF('Lisans Öğr.Gör. Sonuç'!M70="","",'Lisans Öğr.Gör. Sonuç'!M70) ->  | N70: =IF('Lisans Öğr.Gör. Sonuç'!N70="","",'Lisans Öğr.Gör. Sonuç'!N70) -> 
A71: =IF('Lisans Öğr.Gör. Sonuç'!A71="","",'Lisans Öğr.Gör. Sonuç'!A71) ->  | B71: =IF('Lisans Öğr.Gör. Sonuç'!B71="","",LEFT('Lisans Öğr.Gör. Sonuç'!B71,3)&REPT("*",4)&RIGHT('Lisans Öğr.Gör. Sonuç'!B71,2)) ->  | C71: =IF('Lisans Öğr.Gör. Sonuç'!C71="","",IF(ISERR(FIND(" ",'Lisans Öğr.Gör. Sonuç'!C71))=TRUE,LEFT('Lisans Öğr.Gör. Sonuç'!C71,2)&REPT("*",3),LEFT('Lisans Öğr.Gör. Sonuç'!C71,2)&REPT("*",3)&" "&MID('Lisans Öğr.Gör. Sonuç'!C71,FIND(" ",'Lisans Öğr.Gör. Sonuç'!C71)+1,2)&REPT("*",3))) ->  | D71: =IF('Lisans Öğr.Gör. Sonuç'!D71="","",IF(ISERR(FIND(" ",'Lisans Öğr.Gör. Sonuç'!D71))=TRUE,LEFT('Lisans Öğr.Gör. Sonuç'!D71,2)&REPT("*",3),LEFT('Lisans Öğr.Gör. Sonuç'!D71,2)&REPT("*",3)&" "&MID('Lisans Öğr.Gör. Sonuç'!D71,FIND(" ",'Lisans Öğr.Gör. Sonuç'!D71)+1,2)&REPT("*",3))) ->  | E71: =IF('Lisans Öğr.Gör. Sonuç'!E71="","",'Lisans Öğr.Gör. Sonuç'!E71) ->  | F71: =IF('Lisans Öğr.Gör. Sonuç'!F71="","",'Lisans Öğr.Gör. Sonuç'!F71) ->  | G71: =IF('Lisans Öğr.Gör. Sonuç'!G71="","",'Lisans Öğr.Gör. Sonuç'!G71) ->  | H71: =IF('Lisans Öğr.Gör. Sonuç'!H71="","",'Lisans Öğr.Gör. Sonuç'!H71) ->  | I71: =IF('Lisans Öğr.Gör. Sonuç'!I71="","",'Lisans Öğr.Gör. Sonuç'!I71) ->  | J71: =IF('Lisans Öğr.Gör. Sonuç'!J71="","",'Lisans Öğr.Gör. Sonuç'!J71) ->  | K71: =IF('Lisans Öğr.Gör. Sonuç'!K71="","",'Lisans Öğr.Gör. Sonuç'!K71) ->  | L71: =IF('Lisans Öğr.Gör. Sonuç'!L71="","",'Lisans Öğr.Gör. Sonuç'!L71) ->  | M71: =IF('Lisans Öğr.Gör. Sonuç'!M71="","",'Lisans Öğr.Gör. Sonuç'!M71) ->  | N71: =IF('Lisans Öğr.Gör. Sonuç'!N71="","",'Lisans Öğr.Gör. Sonuç'!N71) -> 
A72: =IF('Lisans Öğr.Gör. Sonuç'!A72="","",'Lisans Öğr.Gör. Sonuç'!A72) ->  | B72: =IF('Lisans Öğr.Gör. Sonuç'!B72="","",LEFT('Lisans Öğr.Gör. Sonuç'!B72,3)&REPT("*",4)&RIGHT('Lisans Öğr.Gör. Sonuç'!B72,2)) ->  | C72: =IF('Lisans Öğr.Gör. Sonuç'!C72="","",IF(ISERR(FIND(" ",'Lisans Öğr.Gör. Sonuç'!C72))=TRUE,LEFT('Lisans Öğr.Gör. Sonuç'!C72,2)&REPT("*",3),LEFT('Lisans Öğr.Gör. Sonuç'!C72,2)&REPT("*",3)&" "&MID('Lisans Öğr.Gör. Sonuç'!C72,FIND(" ",'Lisans Öğr.Gör. Sonuç'!C72)+1,2)&REPT("*",3))) ->  | D72: =IF('Lisans Öğr.Gör. Sonuç'!D72="","",IF(ISERR(FIND(" ",'Lisans Öğr.Gör. Sonuç'!D72))=TRUE,LEFT('Lisans Öğr.Gör. Sonuç'!D72,2)&REPT("*",3),LEFT('Lisans Öğr.Gör. Sonuç'!D72,2)&REPT("*",3)&" "&MID('Lisans Öğr.Gör. Sonuç'!D72,FIND(" ",'Lisans Öğr.Gör. Sonuç'!D72)+1,2)&REPT("*",3))) ->  | E72: =IF('Lisans Öğr.Gör. Sonuç'!E72="","",'Lisans Öğr.Gör. Sonuç'!E72) ->  | F72: =IF('Lisans Öğr.Gör. Sonuç'!F72="","",'Lisans Öğr.Gör. Sonuç'!F72) ->  | G72: =IF('Lisans Öğr.Gör. Sonuç'!G72="","",'Lisans Öğr.Gör. Sonuç'!G72) ->  | H72: =IF('Lisans Öğr.Gör. Sonuç'!H72="","",'Lisans Öğr.Gör. Sonuç'!H72) ->  | I72: =IF('Lisans Öğr.Gör. Sonuç'!I72="","",'Lisans Öğr.Gör. Sonuç'!I72) ->  | J72: =IF('Lisans Öğr.Gör. Sonuç'!J72="","",'Lisans Öğr.Gör. Sonuç'!J72) ->  | K72: =IF('Lisans Öğr.Gör. Sonuç'!K72="","",'Lisans Öğr.Gör. Sonuç'!K72) ->  | L72: =IF('Lisans Öğr.Gör. Sonuç'!L72="","",'Lisans Öğr.Gör. Sonuç'!L72) ->  | M72: =IF('Lisans Öğr.Gör. Sonuç'!M72="","",'Lisans Öğr.Gör. Sonuç'!M72) ->  | N72: =IF('Lisans Öğr.Gör. Sonuç'!N72="","",'Lisans Öğr.Gör. Sonuç'!N72) -> 
A73: =IF('Lisans Öğr.Gör. Sonuç'!A73="","",'Lisans Öğr.Gör. Sonuç'!A73) ->  | B73: =IF('Lisans Öğr.Gör. Sonuç'!B73="","",LEFT('Lisans Öğr.Gör. Sonuç'!B73,3)&REPT("*",4)&RIGHT('Lisans Öğr.Gör. Sonuç'!B73,2)) ->  | C73: =IF('Lisans Öğr.Gör. Sonuç'!C73="","",IF(ISERR(FIND(" ",'Lisans Öğr.Gör. Sonuç'!C73))=TRUE,LEFT('Lisans Öğr.Gör. Sonuç'!C73,2)&REPT("*",3),LEFT('Lisans Öğr.Gör. Sonuç'!C73,2)&REPT("*",3)&" "&MID('Lisans Öğr.Gör. Sonuç'!C73,FIND(" ",'Lisans Öğr.Gör. Sonuç'!C73)+1,2)&REPT("*",3))) ->  | D73: =IF('Lisans Öğr.Gör. Sonuç'!D73="","",IF(ISERR(FIND(" ",'Lisans Öğr.Gör. Sonuç'!D73))=TRUE,LEFT('Lisans Öğr.Gör. Sonuç'!D73,2)&REPT("*",3),LEFT('Lisans Öğr.Gör. Sonuç'!D73,2)&REPT("*",3)&" "&MID('Lisans Öğr.Gör. Sonuç'!D73,FIND(" ",'Lisans Öğr.Gör. Sonuç'!D73)+1,2)&REPT("*",3))) ->  | E73: =IF('Lisans Öğr.Gör. Sonuç'!E73="","",'Lisans Öğr.Gör. Sonuç'!E73) ->  | F73: =IF('Lisans Öğr.Gör. Sonuç'!F73="","",'Lisans Öğr.Gör. Sonuç'!F73) ->  | G73: =IF('Lisans Öğr.Gör. Sonuç'!G73="","",'Lisans Öğr.Gör. Sonuç'!G73) ->  | H73: =IF('Lisans Öğr.Gör. Sonuç'!H73="","",'Lisans Öğr.Gör. Sonuç'!H73) ->  | I73: =IF('Lisans Öğr.Gör. Sonuç'!I73="","",'Lisans Öğr.Gör. Sonuç'!I73) ->  | J73: =IF('Lisans Öğr.Gör. Sonuç'!J73="","",'Lisans Öğr.Gör. Sonuç'!J73) ->  | K73: =IF('Lisans Öğr.Gör. Sonuç'!K73="","",'Lisans Öğr.Gör. Sonuç'!K73) ->  | L73: =IF('Lisans Öğr.Gör. Sonuç'!L73="","",'Lisans Öğr.Gör. Sonuç'!L73) ->  | M73: =IF('Lisans Öğr.Gör. Sonuç'!M73="","",'Lisans Öğr.Gör. Sonuç'!M73) ->  | N73: =IF('Lisans Öğr.Gör. Sonuç'!N73="","",'Lisans Öğr.Gör. Sonuç'!N73) -> 
A74: =IF('Lisans Öğr.Gör. Sonuç'!A74="","",'Lisans Öğr.Gör. Sonuç'!A74) ->  | B74: =IF('Lisans Öğr.Gör. Sonuç'!B74="","",LEFT('Lisans Öğr.Gör. Sonuç'!B74,3)&REPT("*",4)&RIGHT('Lisans Öğr.Gör. Sonuç'!B74,2)) ->  | C74: =IF('Lisans Öğr.Gör. Sonuç'!C74="","",IF(ISERR(FIND(" ",'Lisans Öğr.Gör. Sonuç'!C74))=TRUE,LEFT('Lisans Öğr.Gör. Sonuç'!C74,2)&REPT("*",3),LEFT('Lisans Öğr.Gör. Sonuç'!C74,2)&REPT("*",3)&" "&MID('Lisans Öğr.Gör. Sonuç'!C74,FIND(" ",'Lisans Öğr.Gör. Sonuç'!C74)+1,2)&REPT("*",3))) ->  | D74: =IF('Lisans Öğr.Gör. Sonuç'!D74="","",IF(ISERR(FIND(" ",'Lisans Öğr.Gör. Sonuç'!D74))=TRUE,LEFT('Lisans Öğr.Gör. Sonuç'!D74,2)&REPT("*",3),LEFT('Lisans Öğr.Gör. Sonuç'!D74,2)&REPT("*",3)&" "&MID('Lisans Öğr.Gör. Sonuç'!D74,FIND(" ",'Lisans Öğr.Gör. Sonuç'!D74)+1,2)&REPT("*",3))) ->  | E74: =IF('Lisans Öğr.Gör. Sonuç'!E74="","",'Lisans Öğr.Gör. Sonuç'!E74) ->  | F74: =IF('Lisans Öğr.Gör. Sonuç'!F74="","",'Lisans Öğr.Gör. Sonuç'!F74) ->  | G74: =IF('Lisans Öğr.Gör. Sonuç'!G74="","",'Lisans Öğr.Gör. Sonuç'!G74) ->  | H74: =IF('Lisans Öğr.Gör. Sonuç'!H74="","",'Lisans Öğr.Gör. Sonuç'!H74) ->  | I74: =IF('Lisans Öğr.Gör. Sonuç'!I74="","",'Lisans Öğr.Gör. Sonuç'!I74) ->  | J74: =IF('Lisans Öğr.Gör. Sonuç'!J74="","",'Lisans Öğr.Gör. Sonuç'!J74) ->  | K74: =IF('Lisans Öğr.Gör. Sonuç'!K74="","",'Lisans Öğr.Gör. Sonuç'!K74) ->  | L74: =IF('Lisans Öğr.Gör. Sonuç'!L74="","",'Lisans Öğr.Gör. Sonuç'!L74) ->  | M74: =IF('Lisans Öğr.Gör. Sonuç'!M74="","",'Lisans Öğr.Gör. Sonuç'!M74) ->  | N74: =IF('Lisans Öğr.Gör. Sonuç'!N74="","",'Lisans Öğr.Gör. Sonuç'!N74) -> 
A75: =IF('Lisans Öğr.Gör. Sonuç'!A75="","",'Lisans Öğr.Gör. Sonuç'!A75) ->  | B75: =IF('Lisans Öğr.Gör. Sonuç'!B75="","",LEFT('Lisans Öğr.Gör. Sonuç'!B75,3)&REPT("*",4)&RIGHT('Lisans Öğr.Gör. Sonuç'!B75,2)) ->  | C75: =IF('Lisans Öğr.Gör. Sonuç'!C75="","",IF(ISERR(FIND(" ",'Lisans Öğr.Gör. Sonuç'!C75))=TRUE,LEFT('Lisans Öğr.Gör. Sonuç'!C75,2)&REPT("*",3),LEFT('Lisans Öğr.Gör. Sonuç'!C75,2)&REPT("*",3)&" "&MID('Lisans Öğr.Gör. Sonuç'!C75,FIND(" ",'Lisans Öğr.Gör. Sonuç'!C75)+1,2)&REPT("*",3))) ->  | D75: =IF('Lisans Öğr.Gör. Sonuç'!D75="","",IF(ISERR(FIND(" ",'Lisans Öğr.Gör. Sonuç'!D75))=TRUE,LEFT('Lisans Öğr.Gör. Sonuç'!D75,2)&REPT("*",3),LEFT('Lisans Öğr.Gör. Sonuç'!D75,2)&REPT("*",3)&" "&MID('Lisans Öğr.Gör. Sonuç'!D75,FIND(" ",'Lisans Öğr.Gör. Sonuç'!D75)+1,2)&REPT("*",3))) ->  | E75: =IF('Lisans Öğr.Gör. Sonuç'!E75="","",'Lisans Öğr.Gör. Sonuç'!E75) ->  | F75: =IF('Lisans Öğr.Gör. Sonuç'!F75="","",'Lisans Öğr.Gör. Sonuç'!F75) ->  | G75: =IF('Lisans Öğr.Gör. Sonuç'!G75="","",'Lisans Öğr.Gör. Sonuç'!G75) ->  | H75: =IF('Lisans Öğr.Gör. Sonuç'!H75="","",'Lisans Öğr.Gör. Sonuç'!H75) ->  | I75: =IF('Lisans Öğr.Gör. Sonuç'!I75="","",'Lisans Öğr.Gör. Sonuç'!I75) ->  | J75: =IF('Lisans Öğr.Gör. Sonuç'!J75="","",'Lisans Öğr.Gör. Sonuç'!J75) ->  | K75: =IF('Lisans Öğr.Gör. Sonuç'!K75="","",'Lisans Öğr.Gör. Sonuç'!K75) ->  | L75: =IF('Lisans Öğr.Gör. Sonuç'!L75="","",'Lisans Öğr.Gör. Sonuç'!L75) ->  | M75: =IF('Lisans Öğr.Gör. Sonuç'!M75="","",'Lisans Öğr.Gör. Sonuç'!M75) ->  | N75: =IF('Lisans Öğr.Gör. Sonuç'!N75="","",'Lisans Öğr.Gör. Sonuç'!N75) -> 
